BODY NAME,,SERVICE AREA,EXPENSES TYPE,EXPENSE CODE,DATE,TRANSACTION NO.,AMOUNT, SUPPLIER NAME,SUPPLIER ID
EFDC,78001,HRA SUPPORT SERVICES,EQUIPMENT - MAINTENANCE,3030,02-Jan-19,143454,2495.65,OPENVIEW SECURITY SOLUTIONS LTD,CAR003
EFDC,78001,HRA SUPPORT SERVICES,EQUIPMENT - MAINTENANCE,3030,02-Jan-19,143453,2495.65,OPENVIEW SECURITY SOLUTIONS LTD,CAR003
EFDC,78001,HRA SUPPORT SERVICES,EQUIPMENT - MAINTENANCE,3030,02-Jan-19,143452,2495.65,OPENVIEW SECURITY SOLUTIONS LTD,CAR003
EFDC,78001,HRA SUPPORT SERVICES,EQUIPMENT - MAINTENANCE,3030,02-Jan-19,143420,2495.65,OPENVIEW SECURITY SOLUTIONS LTD,CAR003
EFDC,RM100,RESPONSIVE & VOID REPAIRS,BUILDING MAINTENANCE,1010,02-Jan-19,143092,2259.08,EXTERIOR PLAS,EXT001
EFDC,RM100,RESPONSIVE & VOID REPAIRS,BUILDING MAINTENANCE,1010,02-Jan-19,143091,1995.1,EXTERIOR PLAS,EXT001
EFDC,RM100,RESPONSIVE & VOID REPAIRS,BUILDING MAINTENANCE,1010,02-Jan-19,143252,811.93,EXTERIOR PLAS,EXT001
EFDC,RM100,RESPONSIVE & VOID REPAIRS,BUILDING MAINTENANCE,1010,02-Jan-19,143090,2205.54,EXTERIOR PLAS,EXT001
EFDC,RM100,RESPONSIVE & VOID REPAIRS,BUILDING MAINTENANCE,1010,02-Jan-19,143089,1868.15,EXTERIOR PLAS,EXT001
EFDC,32200,OTHER SUPPORT SERVICES,STOCK ISSUES,3070,02-Jan-19,143619,237.6,HOUND ENVELOPES LTD,HOU003
EFDC,32200,OTHER SUPPORT SERVICES,STOCK ISSUES,3070,02-Jan-19,143619,216,HOUND ENVELOPES LTD,HOU003
EFDC,32200,OTHER SUPPORT SERVICES,STOCK ISSUES,3070,02-Jan-19,143619,242.5,HOUND ENVELOPES LTD,HOU003
EFDC,32200,OTHER SUPPORT SERVICES,STOCK ISSUES,3070,02-Jan-19,143619,198,HOUND ENVELOPES LTD,HOU003
EFDC,32200,OTHER SUPPORT SERVICES,STOCK ISSUES,3070,02-Jan-19,143619,139,HOUND ENVELOPES LTD,HOU003
EFDC,32200,OTHER SUPPORT SERVICES,STOCK ISSUES,3070,02-Jan-19,143619,121.25,HOUND ENVELOPES LTD,HOU003
EFDC,32220,OTHER SUPPORT SERVICES,AGENCY STAFF,0120,02-Jan-19,143062,1589.28,HAYS SPECIALIST RECRUITMENT LTD,HAY011
EFDC,32220,OTHER SUPPORT SERVICES,AGENCY STAFF,0120,02-Jan-19,143051,1589.28,HAYS SPECIALIST RECRUITMENT LTD,HAY011
EFDC,78001,HRA SUPPORT SERVICES,REFUSE REMOVAL,1640,02-Jan-19,142985,550,HEATHERLAND LTD T/A LUNNON PLANT & WASTE SERV,HEA001
EFDC,GD190,VOLUNTARY SECTOR SUPPORT,MATERIALS,3080,02-Jan-19,143167,905.52,LANDSCAPE SUPPLY COMPANY,LAN014
EFDC,78001,HRA SUPPORT SERVICES,MATERIALS,3080,02-Jan-19,143501,622.64,IG DOORS LTD,IGD001
EFDC,78001,HRA SUPPORT SERVICES,PROFESSIONAL FEES,3420,02-Jan-19,142957,9799.63,MEARS LTD,MEA002
EFDC,32191,OTHER SUPPORT SERVICES,CONSULTANTS FEES,3490,02-Jan-19,143050,3115.91,MEARS LTD,MEA002
EFDC,37100,PLANNING SUPPORT SERVICES,DOCUMENT ARCHIVING,3340,02-Jan-19,143174,1000,NORTHGATE PUBLIC SERVICES (UK) LTD,NOR018
EFDC,ED100,LOCAL PLAN IMPLEMENTATION,MARKETING & EVENTS,3370,02-Jan-19,143395,2995,PARTNERS BY DESIGN,PAR005
EFDC,OS100,PARKS & GROUNDS,GROUNDS MAINTENANCE,1040,02-Jan-19,143077,575,G A & D PERRY BUILDING CONTRACTORS,PER005
EFDC,OS101,PARKS & GROUNDS,TREE  MAINTENANCE,1070,02-Jan-19,143077,384,G A & D PERRY BUILDING CONTRACTORS,PER005
EFDC,OS101,PARKS & GROUNDS,TREE  MAINTENANCE,1070,02-Jan-19,143077,386,G A & D PERRY BUILDING CONTRACTORS,PER005
EFDC,35300,CONTRACT & TECH SUPPORT SERVIC,FUEL,2330,02-Jan-19,143025,1885.22,SHELL U.K. OIL PRODUCTS LIMITED,SHE007
EFDC,RE100,ELECTIONS,CONFERENCE EXPENSES,3620,02-Jan-19,142695,900,SOLACE GROUP LTD,SOL010
EFDC,YB200,SUPERVISION/MANAGEMENT SPECIAL,EQUIPMENT - NEW,3010,02-Jan-19,143005,796,TUNSTALL HEALTHCARE (UK) LTD,TUN001
EFDC,32121,OTHER SUPPORT SERVICES,CLEANING MATERIALS,1610,02-Jan-19,143194,792.8,SUMMIT HYGIENE,SUM002
EFDC,32060,OTHER SUPPORT SERVICES,CONSULTANTS FEES,3490,02-Jan-19,142992,1250,MISS MEGAN THOMAS,THO013
EFDC,78001,HRA SUPPORT SERVICES,MATERIALS,3080,02-Jan-19,135878,1010.12,TRAVIS PERKINS TRADING COMPANY LTD,TRA001
EFDC,78001,HRA SUPPORT SERVICES,MATERIALS,3080,02-Jan-19,135873,613.4,TRAVIS PERKINS TRADING COMPANY LTD,TRA001
EFDC,32115,OTHER SUPPORT SERVICES,CONSULTANTS FEES,3490,02-Jan-19,143671,650,TRAINING & COACHING SOLUTIONS LTD,TRA029
EFDC,SC100,WASTE MANAGEMENT,HIGHWAYS CONTRACTORS,4310,02-Jan-19,143461,8218.84,VEOLIA ES (UK) LTD,VER004
EFDC,RM400,PLANNED & CYCLICAL MAINTENANCE,BUILDING MAINTENANCE,1010,02-Jan-19,143607,684,EMERY ELECTRICAL LTD,EME001
EFDC,26200,OTHER SUPPORT SERVICES,BUILDING MAINTENANCE,1010,02-Jan-19,143612,508.3,EMERY ELECTRICAL LTD,EME001
EFDC,RM200,RESPONSIVE & VOID REPAIRS,BUILDING MAINTENANCE,1010,02-Jan-19,143065,555,GRACELANDS COMPLETE MAINTENANCE SERVICES LTD,GRA007
EFDC,RM200,RESPONSIVE & VOID REPAIRS,BUILDING MAINTENANCE,1010,02-Jan-19,142378,781.63,GRACELANDS COMPLETE MAINTENANCE SERVICES LTD,GRA007
EFDC,RM100,RESPONSIVE & VOID REPAIRS,BUILDING MAINTENANCE,1010,02-Jan-19,143521,560,GRACELANDS COMPLETE MAINTENANCE SERVICES LTD,GRA007
EFDC,RM100,RESPONSIVE & VOID REPAIRS,BUILDING MAINTENANCE,1010,02-Jan-19,143559,796,GRACELANDS COMPLETE MAINTENANCE SERVICES LTD,GRA007
EFDC,FD100,LAND DRAINAGE/SEWERAGE,HIGHWAYS CONTRACTORS,4310,02-Jan-19,142937,836,HUGH PEARL (LAND DRAINAGE) LTD,HUG001
EFDC,36650,HRA SUPPORT SERVICES,AGENCY STAFF,0120,02-Jan-19,144003,1229.04,MORGAN HUNT UK LTD,MOR001
EFDC,33075,OTHER ACTIVITIES,AGENCY STAFF,0120,02-Jan-19,144004,843.97,MORGAN HUNT UK LTD,MOR001
EFDC,35300,CONTRACT & TECH SUPPORT SERVIC,AGENCY STAFF,0120,02-Jan-19,143040,674.63,BERRY RECRUITMENT LTD,BER001
EFDC,78001,HRA SUPPORT SERVICES,MATERIALS,3080,02-Jan-19,143142,850,CRANBROOK ELECTRICS,CRA001
EFDC,LA100,LAA POOLED FUNDS,LAA EXPENDITURE,Y100,02-Jan-19,143179,590,POSITIVE MEDIA PROMOTIONS LTD,POS002
EFDC,CAPCM,COMMUNITIES CAPITAL,VOIDS WORKS,A045,02-Jan-19,142944,695.2,WOODS BUILDING SERVICES LTD,WOO001
EFDC,DR150,MEMBER ACTIVITIES,MEMBERS COURSES & CONFERENCES,3632,02-Jan-19,143168,925,LINK SUPPORT SERVICES (UK) LTD,LIN001
EFDC,DR150,MEMBER ACTIVITIES,MEMBERS COURSES & CONFERENCES,3632,02-Jan-19,143168,75,LINK SUPPORT SERVICES (UK) LTD,LIN001
EFDC,33080,OTHER ACTIVITIES,PROFESSIONAL FEES,3420,02-Jan-19,144006,1662,SEC-1 LIMITED,SEC002
EFDC,CAPRS,RESOURCES CAPITAL,EQUIPMENT ACQUISITION,C330,02-Jan-19,144021,2752.11,SEC-1 LIMITED,SEC002
EFDC,36650,HRA SUPPORT SERVICES,AGENCY STAFF,0120,02-Jan-19,142935,2500,THE OYSTER PARTNERSHIP LTD,OYS001
EFDC,WC200,WASTE MANAGEMENT,HIGHWAYS CONTRACTORS,4310,02-Jan-19,143047,3450,DOCKLANDS WASTE RECYCLING LTD,DOC001
EFDC,UO130,LAND & PROPERTY,LEGAL EXPENSES,3680,02-Jan-19,143978,608,BLAKE MORGAN LLP,BLA002
EFDC,RM500,OTHER ITEMS,CONSULTANTS FEES,3490,02-Jan-19,142913,1215,ZENERGI LTD,ZEN001
EFDC,37600,PLANNING SUPPORT SERVICES,AGENCY STAFF,0120,02-Jan-19,142974,1312.5,VIVID RESOURCING LTD,VIV002
EFDC,37600,PLANNING SUPPORT SERVICES,AGENCY STAFF,0120,02-Jan-19,142954,1312.5,VIVID RESOURCING LTD,VIV002
EFDC,PS100,CAR PARKING,BANKING AND CASH COLLECTION,3440,02-Jan-19,143267,791.89,CHIPSIDE LIMITED,CHI030
EFDC,PS100,CAR PARKING,BANKING AND CASH COLLECTION,3440,02-Jan-19,143266,1369.97,CHIPSIDE LIMITED,CHI030
EFDC,DC120,PLANNING REGULATORY SERVICES,CONSULTANTS FEES,3490,02-Jan-19,142630,2028,MARSHALL ENVIRONMENTAL CONSULTING LTD,MAR027
EFDC,SC100,WASTE MANAGEMENT,CLEANSING CONTRACTORS,4320,02-Jan-19,139871,915,WINDSOR WASTE MANAGEMENT LIMITED,WIN027
EFDC,CAPCM,COMMUNITIES CAPITAL,MANAGEMENT CONSULTANT,E130,02-Jan-19,144016,1143.81,AIREY MILLER LIMITED,AIR027
EFDC,CAPCM,COMMUNITIES CAPITAL,MANAGEMENT CONSULTANT,E130,02-Jan-19,144016,1143.81,AIREY MILLER LIMITED,AIR027
EFDC,CAPCM,COMMUNITIES CAPITAL,MANAGEMENT CONSULTANT,E130,02-Jan-19,144017,1187.91,AIREY MILLER LIMITED,AIR027
EFDC,CAPCM,COMMUNITIES CAPITAL,MANAGEMENT CONSULTANT,E130,02-Jan-19,144017,1187.92,AIREY MILLER LIMITED,AIR027
EFDC,CAPCM,COMMUNITIES CAPITAL,MANAGEMENT CONSULTANT,E130,02-Jan-19,144018,1062.07,AIREY MILLER LIMITED,AIR027
EFDC,CAPCM,COMMUNITIES CAPITAL,MANAGEMENT CONSULTANT,E130,02-Jan-19,144018,1062.08,AIREY MILLER LIMITED,AIR027
EFDC,33080,OTHER ACTIVITIES,PROFESSIONAL FEES,3420,02-Jan-19,143971,845,ARISTI LIMITED,ARI001
EFDC,36500,HRA SUPPORT SERVICES,AGENCY STAFF,0120,02-Jan-19,143123,1044,PRENTIS SOLUTIONS LIMITED,PRE027
EFDC,PP112,LOCAL PLAN IMPLEMENTATION,CONSULTANTS FEES,3490,02-Jan-19,142105,9002.31,JOHN SLATER PLANNING LIMITED,JOH069
EFDC,36700,HRA SUPPORT SERVICES,AGENCY STAFF,0120,02-Jan-19,143198,566.25,VENTURE CONSTRUCTION SERVICES LTD,VEN002
EFDC,36700,HRA SUPPORT SERVICES,AGENCY STAFF,0120,02-Jan-19,143197,972,VENTURE CONSTRUCTION SERVICES LTD,VEN002
EFDC,RM200,RESPONSIVE & VOID REPAIRS,BUILDING MAINTENANCE,1010,02-Jan-19,142224,1345,JPS GROUP SERVICES LIMITED,JPS002
EFDC,RM200,RESPONSIVE & VOID REPAIRS,BUILDING MAINTENANCE,1010,02-Jan-19,142611,1950,JPS GROUP SERVICES LIMITED,JPS002
EFDC,PH100,PRIVATE SECTOR HOUSING,GRANTS GENERAL,3720,08-Jan-19,31557,1500,COLIN SOUTHGATE,4321P
EFDC,BAL01,EFDC BALANCE SHEET,HOME ASST GRANT CHARGE ON PROP,Z055,08-Jan-19,31550,4195,BENBROOK WINDOWS,8542P
EFDC,BAL01,EFDC BALANCE SHEET,HOUSING RENT REFUNDS,Z613,08-Jan-19,31532,1155.58,MRS DOREEN ALLDEN,8535P
EFDC,BAL01,EFDC BALANCE SHEET,SUNDRY DEBTORS (OTHER),Z208,08-Jan-19,31554,625,CARIDON PROPERTY LTD,8014P
EFDC,BAL01,EFDC BALANCE SHEET,DEPOSITS - PAID,Z223,08-Jan-19,31554,625,CARIDON PROPERTY LTD,8014P
EFDC,PH100,PRIVATE SECTOR HOUSING,GRANTS GENERAL,3720,08-Jan-19,31552,12494.25,BISHOP & REED CONSTRUCTION LTD,BIS028
EFDC,BAL01,EFDC BALANCE SHEET,DEPOSITS - PAID,Z223,08-Jan-19,31559,1050,SHAN LETTINGS,8078P
EFDC,BAL01,EFDC BALANCE SHEET,SUNDRY DEBTORS (OTHER),Z208,08-Jan-19,31559,1050,SHAN LETTINGS,8078P
EFDC,78001,HRA SUPPORT SERVICES,EQUIPMENT - MAINTENANCE,3030,09-Jan-19,143465,2495.65,OPENVIEW SECURITY SOLUTIONS LTD,CAR003
EFDC,RM400,PLANNED & CYCLICAL MAINTENANCE,BUILDING MAINTENANCE,1010,09-Jan-19,143604,473.9,EDMUNDSON ELECTRICAL LTD,EDM001
EFDC,RM400,PLANNED & CYCLICAL MAINTENANCE,BUILDING MAINTENANCE,1010,09-Jan-19,143604,378.8,EDMUNDSON ELECTRICAL LTD,EDM001
EFDC,RM400,PLANNED & CYCLICAL MAINTENANCE,BUILDING MAINTENANCE,1010,09-Jan-19,144551,749.7,ESSEX LIFT SERVICES LTD,ESS032
EFDC,26200,OTHER SUPPORT SERVICES,FIXED PLANT MAINTENANCE,1020,09-Jan-19,144551,312.8,ESSEX LIFT SERVICES LTD,ESS032
EFDC,26200,OTHER SUPPORT SERVICES,BUILDING MAINTENANCE,1010,09-Jan-19,144551,83.3,ESSEX LIFT SERVICES LTD,ESS032
EFDC,26200,OTHER SUPPORT SERVICES,BUILDING MAINTENANCE,1010,09-Jan-19,144551,83.3,ESSEX LIFT SERVICES LTD,ESS032
EFDC,26200,OTHER SUPPORT SERVICES,BUILDING MAINTENANCE,1010,09-Jan-19,144551,83.3,ESSEX LIFT SERVICES LTD,ESS032
EFDC,32220,OTHER SUPPORT SERVICES,AGENCY STAFF,0120,09-Jan-19,143406,1589.28,HAYS SPECIALIST RECRUITMENT LTD,HAY011
EFDC,78001,HRA SUPPORT SERVICES,REFUSE REMOVAL,1640,09-Jan-19,142982,2290.4,HEATHERLAND LTD T/A LUNNON PLANT & WASTE SERV,HEA001
EFDC,YA300,SUPERVISION/MANAGEMENT GENERAL,BANKING AND CASH COLLECTION,3440,09-Jan-19,144283,536.77,ALLPAY.NET.LIMITED,ALL010
EFDC,YA300,SUPERVISION/MANAGEMENT GENERAL,BANKING AND CASH COLLECTION,3440,09-Jan-19,144284,1554.3,ALLPAY.NET.LIMITED,ALL010
EFDC,RM200,RESPONSIVE & VOID REPAIRS,BUILDING MAINTENANCE,1010,09-Jan-19,144478,44461.58,MEARS LTD,MEA002
EFDC,CAPCM,COMMUNITIES CAPITAL,VOIDS WORKS,A045,09-Jan-19,144480,25475.62,MEARS LTD,MEA002
EFDC,CAPCM,COMMUNITIES CAPITAL,VOIDS WORKS,A045,09-Jan-19,144478,4636.42,MEARS LTD,MEA002
EFDC,CAPCM,COMMUNITIES CAPITAL,VOIDS WORKS,A045,09-Jan-19,144478,9774.36,MEARS LTD,MEA002
EFDC,RM200,RESPONSIVE & VOID REPAIRS,BUILDING MAINTENANCE,1010,09-Jan-19,144480,50264.05,MEARS LTD,MEA002
EFDC,CAPCM,COMMUNITIES CAPITAL,VOIDS WORKS,A045,09-Jan-19,144480,2571.34,MEARS LTD,MEA002
EFDC,CAPCM,COMMUNITIES CAPITAL,VOIDS WORKS,A045,09-Jan-19,144480,15048.36,MEARS LTD,MEA002
EFDC,CAPCM,COMMUNITIES CAPITAL,VOIDS WORKS,A045,09-Jan-19,144478,6619.3,MEARS LTD,MEA002
EFDC,YB400,SUPERVISION/MANAGEMENT SPECIAL,TREE  MAINTENANCE,1070,09-Jan-19,144584,875,PRINCIPAL TREES LTD,PRI017
EFDC,35300,CONTRACT & TECH SUPPORT SERVIC,PROFESSIONAL FEES,3420,09-Jan-19,144586,285,PRINCIPAL TREES LTD,PRI017
EFDC,35300,CONTRACT & TECH SUPPORT SERVIC,PROFESSIONAL FEES,3420,09-Jan-19,144585,250,PRINCIPAL TREES LTD,PRI017
EFDC,HI122,HIGHWAYS,TREE  MAINTENANCE,1070,09-Jan-19,144583,1325,PRINCIPAL TREES LTD,PRI017
EFDC,35300,CONTRACT & TECH SUPPORT SERVIC,PROFESSIONAL FEES,3420,09-Jan-19,144585,840,PRINCIPAL TREES LTD,PRI017
EFDC,35300,CONTRACT & TECH SUPPORT SERVIC,PROFESSIONAL FEES,3420,09-Jan-19,144586,265,PRINCIPAL TREES LTD,PRI017
EFDC,RE100,ELECTIONS,PRINTING - EXTERNAL,3390,09-Jan-19,144324,1138,PRINT IMAGE NETWORK LTD,PRI018
EFDC,32170,OTHER SUPPORT SERVICES,AGENCY STAFF,0120,09-Jan-19,144597,533.75,REED SPECIALIST RECRUITMENT LTD,REE002
EFDC,32170,OTHER SUPPORT SERVICES,AGENCY STAFF,0120,09-Jan-19,144596,533.75,REED SPECIALIST RECRUITMENT LTD,REE002
EFDC,37100,PLANNING SUPPORT SERVICES,AGENCY STAFF,0120,09-Jan-19,144594,591.12,REED SPECIALIST RECRUITMENT LTD,REE002
EFDC,37100,PLANNING SUPPORT SERVICES,AGENCY STAFF,0120,09-Jan-19,144592,591.12,REED SPECIALIST RECRUITMENT LTD,REE002
EFDC,78001,HRA SUPPORT SERVICES,FUEL,2330,09-Jan-19,143566,1592.42,SHELL U.K. OIL PRODUCTS LIMITED,SHE007
EFDC,YB120,SUPERVISION/MANAGEMENT SPECIAL,FUEL,2330,09-Jan-19,143566,196.19,SHELL U.K. OIL PRODUCTS LIMITED,SHE007
EFDC,35900,CONTRACT & TECH SUPPORT SERVIC,POSTAGE,3510,09-Jan-19,143935,73.94,ROYAL MAIL GROUP PLC,ROY015
EFDC,34110,HOUSING PROP SUPPORT SERVICES,POSTAGE,3510,09-Jan-19,143935,4.06,ROYAL MAIL GROUP PLC,ROY015
EFDC,32030,OTHER SUPPORT SERVICES,POSTAGE,3510,09-Jan-19,143935,14.98,ROYAL MAIL GROUP PLC,ROY015
EFDC,33075,OTHER ACTIVITIES,POSTAGE,3510,09-Jan-19,143935,703.16,ROYAL MAIL GROUP PLC,ROY015
EFDC,33055,OTHER ACTIVITIES,POSTAGE,3510,09-Jan-19,143935,195.62,ROYAL MAIL GROUP PLC,ROY015
EFDC,RE100,ELECTIONS,POSTAGE,3510,09-Jan-19,143935,87.98,ROYAL MAIL GROUP PLC,ROY015
EFDC,36200,HRA SUPPORT SERVICES,POSTAGE,3510,09-Jan-19,143935,80.5,ROYAL MAIL GROUP PLC,ROY015
EFDC,37100,PLANNING SUPPORT SERVICES,POSTAGE,3510,09-Jan-19,143935,139.78,ROYAL MAIL GROUP PLC,ROY015
EFDC,26200,OTHER SUPPORT SERVICES,BUILDING MAINTENANCE,1010,09-Jan-19,144607,750,TANKER AND DRAIN SOLUTIONS LTD,TAN004
EFDC,26200,OTHER SUPPORT SERVICES,BUILDING MAINTENANCE,1010,09-Jan-19,144607,1230,TANKER AND DRAIN SOLUTIONS LTD,TAN004
EFDC,36650,HRA SUPPORT SERVICES,RECRUITMENT EXPENSES,0320,09-Jan-19,144616,723.45,TMP WORLDWIDE LTD,TMP001
EFDC,36650,HRA SUPPORT SERVICES,RECRUITMENT EXPENSES,0320,09-Jan-19,144616,75,TMP WORLDWIDE LTD,TMP001
EFDC,SC100,WASTE MANAGEMENT,HIGHWAYS CONTRACTORS,4310,09-Jan-19,142561,10370.31,VEOLIA ES (UK) LTD,VER004
EFDC,EH112,LAND DRAINAGE/SEWERAGE,OTHER MAINTENANCE,1050,09-Jan-19,143965,1531.27,VEOLIA ES (UK) LTD,VER004
EFDC,RM400,PLANNED & CYCLICAL MAINTENANCE,BUILDING MAINTENANCE,1010,09-Jan-19,144549,612.75,EMERY ELECTRICAL LTD,EME001
EFDC,26200,OTHER SUPPORT SERVICES,BUILDING MAINTENANCE,1010,09-Jan-19,144549,242.25,EMERY ELECTRICAL LTD,EME001
EFDC,26200,OTHER SUPPORT SERVICES,BUILDING MAINTENANCE,1010,09-Jan-19,144549,71.25,EMERY ELECTRICAL LTD,EME001
EFDC,RM100,RESPONSIVE & VOID REPAIRS,BUILDING MAINTENANCE,1010,09-Jan-19,143558,923.96,GRACELANDS COMPLETE MAINTENANCE SERVICES LTD,GRA007
EFDC,CAPCM,COMMUNITIES CAPITAL,VOIDS WORKS,A045,09-Jan-19,144473,4169.1,GRACELANDS COMPLETE MAINTENANCE SERVICES LTD,GRA007
EFDC,CAPCM,COMMUNITIES CAPITAL,VOIDS WORKS,A045,09-Jan-19,144473,23991.23,GRACELANDS COMPLETE MAINTENANCE SERVICES LTD,GRA007
EFDC,RM300,PLANNED & CYCLICAL MAINTENANCE,BUILDING MAINTENANCE,1010,09-Jan-19,144475,110149.68,GRACELANDS COMPLETE MAINTENANCE SERVICES LTD,GRA007
EFDC,CAPCM,COMMUNITIES CAPITAL,WORKS,D040,09-Jan-19,144468,2128.33,GRACELANDS COMPLETE MAINTENANCE SERVICES LTD,GRA007
EFDC,CAPCM,COMMUNITIES CAPITAL,VOIDS WORKS,A045,09-Jan-19,144473,12027.5,GRACELANDS COMPLETE MAINTENANCE SERVICES LTD,GRA007
EFDC,CAPCM,COMMUNITIES CAPITAL,VOIDS WORKS,A045,09-Jan-19,144470,26717.84,GRACELANDS COMPLETE MAINTENANCE SERVICES LTD,GRA007
EFDC,RM100,RESPONSIVE & VOID REPAIRS,BUILDING MAINTENANCE,1010,09-Jan-19,144143,640,GRACELANDS COMPLETE MAINTENANCE SERVICES LTD,GRA007
EFDC,CAPCM,COMMUNITIES CAPITAL,VOIDS WORKS,A045,09-Jan-19,144470,21347.64,GRACELANDS COMPLETE MAINTENANCE SERVICES LTD,GRA007
EFDC,CAPCM,COMMUNITIES CAPITAL,VOIDS WORKS,A045,09-Jan-19,144470,2195.35,GRACELANDS COMPLETE MAINTENANCE SERVICES LTD,GRA007
EFDC,CAPCM,COMMUNITIES CAPITAL,VOIDS WORKS,A045,09-Jan-19,144470,26523.58,GRACELANDS COMPLETE MAINTENANCE SERVICES LTD,GRA007
EFDC,RM200,RESPONSIVE & VOID REPAIRS,BUILDING MAINTENANCE,1010,09-Jan-19,144470,89308.43,GRACELANDS COMPLETE MAINTENANCE SERVICES LTD,GRA007
EFDC,RM200,RESPONSIVE & VOID REPAIRS,BUILDING MAINTENANCE,1010,09-Jan-19,144473,69050.06,GRACELANDS COMPLETE MAINTENANCE SERVICES LTD,GRA007
EFDC,YB150,SUPERVISION/MANAGEMENT SPECIAL,GROUNDS MAINTENANCE,1040,09-Jan-19,144172,800.2,HUGH PEARL (LAND DRAINAGE) LTD,HUG001
EFDC,YB150,SUPERVISION/MANAGEMENT SPECIAL,GROUNDS MAINTENANCE,1040,09-Jan-19,144174,1186.48,HUGH PEARL (LAND DRAINAGE) LTD,HUG001
EFDC,RM400,PLANNED & CYCLICAL MAINTENANCE,BUILDING MAINTENANCE,1010,09-Jan-19,144589,3733.33,PURDY CONTRACTS LTD,PUR002
EFDC,33055,OTHER ACTIVITIES,AGENCY STAFF,0120,09-Jan-19,144572,952.75,MORGAN HUNT UK LTD,MOR001
EFDC,33055,OTHER ACTIVITIES,AGENCY STAFF,0120,09-Jan-19,144571,824,MORGAN HUNT UK LTD,MOR001
EFDC,36650,HRA SUPPORT SERVICES,AGENCY STAFF,0120,09-Jan-19,144570,1226.31,MORGAN HUNT UK LTD,MOR001
EFDC,33075,OTHER ACTIVITIES,AGENCY STAFF,0120,09-Jan-19,144569,843.97,MORGAN HUNT UK LTD,MOR001
EFDC,33080,OTHER ACTIVITIES,FIXED NETWORK LINE COSTS,3520,09-Jan-19,144502,4231.79,SOLAR COMMUNICATION LIMITED,SOL002
EFDC,YB140,SUPERVISION/MANAGEMENT SPECIAL,OTHER MAINTENANCE,1050,09-Jan-19,143409,167.27,BINDER LTD,BIN001
EFDC,YB140,SUPERVISION/MANAGEMENT SPECIAL,OTHER MAINTENANCE,1050,09-Jan-19,144327,58,BINDER LTD,BIN001
EFDC,YB140,SUPERVISION/MANAGEMENT SPECIAL,OTHER MAINTENANCE,1050,09-Jan-19,143954,69.35,BINDER LTD,BIN001
EFDC,RS301,NORTH WEALD CENTRE,OTHER MAINTENANCE,1050,09-Jan-19,143405,443.97,BINDER LTD,BIN001
EFDC,RS301,NORTH WEALD CENTRE,OTHER MAINTENANCE,1050,09-Jan-19,143405,112.5,BINDER LTD,BIN001
EFDC,YB140,SUPERVISION/MANAGEMENT SPECIAL,OTHER MAINTENANCE,1050,09-Jan-19,144327,450,BINDER LTD,BIN001
EFDC,YB140,SUPERVISION/MANAGEMENT SPECIAL,OTHER MAINTENANCE,1050,09-Jan-19,143954,109.27,BINDER LTD,BIN001
EFDC,YB140,SUPERVISION/MANAGEMENT SPECIAL,OTHER MAINTENANCE,1050,09-Jan-19,143954,450,BINDER LTD,BIN001
EFDC,YB140,SUPERVISION/MANAGEMENT SPECIAL,OTHER MAINTENANCE,1050,09-Jan-19,143249,450,BINDER LTD,BIN001
EFDC,YB140,SUPERVISION/MANAGEMENT SPECIAL,OTHER MAINTENANCE,1050,09-Jan-19,143400,450,BINDER LTD,BIN001
EFDC,YB140,SUPERVISION/MANAGEMENT SPECIAL,OTHER MAINTENANCE,1050,09-Jan-19,143400,860.4,BINDER LTD,BIN001
EFDC,YB140,SUPERVISION/MANAGEMENT SPECIAL,OTHER MAINTENANCE,1050,09-Jan-19,143409,450,BINDER LTD,BIN001
EFDC,YB140,SUPERVISION/MANAGEMENT SPECIAL,OTHER MAINTENANCE,1050,09-Jan-19,144327,109.27,BINDER LTD,BIN001
EFDC,YB140,SUPERVISION/MANAGEMENT SPECIAL,OTHER MAINTENANCE,1050,09-Jan-19,143249,109.27,BINDER LTD,BIN001
EFDC,BAL01,EFDC BALANCE SHEET,TUSKER CAR SCHEME,Z631,09-Jan-19,144504,387.51,TUSKERDIRECT LTD,TUS002
EFDC,BAL01,EFDC BALANCE SHEET,TUSKER CAR SCHEME,Z631,09-Jan-19,144504,-193.75,TUSKERDIRECT LTD,TUS002
EFDC,BAL01,EFDC BALANCE SHEET,TUSKER CAR SCHEME,Z631,09-Jan-19,144504,262.33,TUSKERDIRECT LTD,TUS002
EFDC,BAL01,EFDC BALANCE SHEET,TUSKER CAR SCHEME,Z631,09-Jan-19,144504,160.97,TUSKERDIRECT LTD,TUS002
EFDC,33080,OTHER ACTIVITIES,LICENCES,3870,09-Jan-19,144533,169.95,BOTTOMLINE TECHNOLOGIES LTD,BOT001
EFDC,33080,OTHER ACTIVITIES,LICENCES,3870,09-Jan-19,144533,169.95,BOTTOMLINE TECHNOLOGIES LTD,BOT001
EFDC,33080,OTHER ACTIVITIES,LICENCES,3870,09-Jan-19,144533,772.5,BOTTOMLINE TECHNOLOGIES LTD,BOT001
EFDC,33080,OTHER ACTIVITIES,LICENCES,3870,09-Jan-19,144533,3660,BOTTOMLINE TECHNOLOGIES LTD,BOT001
EFDC,RS410,"COMMUNITY, HEALTH & WELLBEING",ACTIVITIES,3372,09-Jan-19,144602,545,SHARRONS EVENT CATERING COMPANY LTD,SHA002
EFDC,DC120,PLANNING REGULATORY SERVICES,CONSULTANTS FEES,3490,09-Jan-19,144558,5000,KIFT CONSULTING LTD,KIF001
EFDC,CH116,"MUSEUM, HERITAGE & CULTURE",PROFESSIONAL FEES,3420,09-Jan-19,143672,700,T.S.S. (TOTAL SECURITY SERVICES) LTD,TSS001
EFDC,CH110,"MUSEUM, HERITAGE & CULTURE",PROFESSIONAL FEES,3420,09-Jan-19,143672,700,T.S.S. (TOTAL SECURITY SERVICES) LTD,TSS001
EFDC,CH110,"MUSEUM, HERITAGE & CULTURE",PROFESSIONAL FEES,3420,09-Jan-19,143672,700,T.S.S. (TOTAL SECURITY SERVICES) LTD,TSS001
EFDC,CAPRS,RESOURCES CAPITAL,WORKS,J040,09-Jan-19,143623,27267.6,MAINTECH POWER SERVICES LTD,MAI003
EFDC,43310,CONTRACT & TECH SUPPORT SERVIC,AGENCY STAFF,0120,09-Jan-19,141883,13657.4,OVE ARUP & PARTNERS LTD,OVE002
EFDC,PP113,LOCAL PLAN IMPLEMENTATION,AGENCY STAFF,0120,09-Jan-19,141883,3382.4,OVE ARUP & PARTNERS LTD,OVE002
EFDC,EH160,OTHER ACTIVITIES,CLEANING,1630,09-Jan-19,144466,1334.15,ATLAS CONTRACTORS LTD,ATL001
EFDC,26200,OTHER SUPPORT SERVICES,BUILDING MAINTENANCE,1010,09-Jan-19,143997,675,IMPERIAL INSULATIONS,IMP003
EFDC,37600,PLANNING SUPPORT SERVICES,AGENCY STAFF,0120,09-Jan-19,143542,1312.5,VIVID RESOURCING LTD,VIV002
EFDC,32180,OTHER SUPPORT SERVICES,TRAINING EXPENSES,0310,09-Jan-19,143991,310,CIBSE SERVICES LTD,CIB001
EFDC,32180,OTHER SUPPORT SERVICES,TRAINING EXPENSES,0310,09-Jan-19,143991,310,CIBSE SERVICES LTD,CIB001
EFDC,32180,OTHER SUPPORT SERVICES,TRAINING EXPENSES,0310,09-Jan-19,143991,310,CIBSE SERVICES LTD,CIB001
EFDC,32180,OTHER SUPPORT SERVICES,TRAINING EXPENSES,0310,09-Jan-19,143991,310,CIBSE SERVICES LTD,CIB001
EFDC,CAPCM,COMMUNITIES CAPITAL,WORKS,C040,09-Jan-19,143555,750,TUV SUD LIMITED,TUV001
EFDC,34160,HOUSING PROP SUPPORT SERVICES,CONSULTANTS FEES,3490,09-Jan-19,144536,3375,CL COMMUNICATIONS,CLC001
EFDC,GT100,LOCAL PLAN IMPLEMENTATION,CONSULTANTS FEES,3490,09-Jan-19,144554,5500,FRAME PROJECTS LIMITED,FRA001
EFDC,GT100,LOCAL PLAN IMPLEMENTATION,PROFESSIONAL FEES,3420,09-Jan-19,144555,2500,FRAME PROJECTS LIMITED,FRA001
EFDC,WC200,WASTE MANAGEMENT,CLEANSING CONTRACTORS,4320,09-Jan-19,143096,1750,LOCAL GREEN POINTS LLP,GRE020
EFDC,WC200,WASTE MANAGEMENT,CLEANSING CONTRACTORS,4320,09-Jan-19,143096,4902,LOCAL GREEN POINTS LLP,GRE020
EFDC,WC200,WASTE MANAGEMENT,CONSULTANTS FEES,3490,09-Jan-19,143094,4442,LOCAL GREEN POINTS LLP,GRE020
EFDC,CAPCM,COMMUNITIES CAPITAL,WORKS,A040,09-Jan-19,144486,760,SOIL INVESTIGATION EASTERN LTD,SOI027
EFDC,33080,OTHER ACTIVITIES,PROFESSIONAL FEES,3420,09-Jan-19,144531,845,ARISTI LIMITED,ARI001
EFDC,RM400,PLANNED & CYCLICAL MAINTENANCE,BUILDING MAINTENANCE,1010,09-Jan-19,144546,589.14,DDM FIRE SAFETY,DDM001
EFDC,26200,OTHER SUPPORT SERVICES,BUILDING MAINTENANCE,1010,09-Jan-19,144546,120.86,DDM FIRE SAFETY,DDM001
EFDC,PP100,LOCAL PLAN IMPLEMENTATION,LICENCES,3870,09-Jan-19,142718,5000,BREADBOARD LABS,BRE003
EFDC,CAPCM,COMMUNITIES CAPITAL,WORKS,A040,09-Jan-19,144455,3244,PREMIER SERVICES & INSTALLATION,PRE028
EFDC,32180,OTHER SUPPORT SERVICES,TRAINING EXPENSES,0310,09-Jan-19,143586,595,BRITISH SAFETY COUNCIL,BRI077
EFDC,32180,OTHER SUPPORT SERVICES,TRAINING EXPENSES,0310,09-Jan-19,143588,922.5,BRITISH SAFETY COUNCIL,BRI077
EFDC,32180,OTHER SUPPORT SERVICES,TRAINING EXPENSES,0310,09-Jan-19,143586,595,BRITISH SAFETY COUNCIL,BRI077
EFDC,36500,HRA SUPPORT SERVICES,AGENCY STAFF,0120,09-Jan-19,143934,935.25,PRENTIS SOLUTIONS LIMITED,PRE027
EFDC,BAL01,EFDC BALANCE SHEET,HOME ASST GRANT CHARGE ON PROP,Z055,15-Jan-19,31614,2501.91,GRACELANDS COMPLETE MAINTENANCE SERVICES LTD,GRA015
EFDC,BAL01,EFDC BALANCE SHEET,SUNDRY DEBTORS (OTHER),Z208,15-Jan-19,31611,1150,KNIGHTONS CLIENT,2419P
EFDC,TO100,LAND & PROPERTY,LEVY FEES,3890,15-Jan-19,31606,1640,DVSA FINANCE SERVICE MANAGEMENT,5750P
EFDC,TO100,LAND & PROPERTY,LICENSES,2360,15-Jan-19,31619,755,POST OFFICE LTD,5023P
EFDC,BAL01,EFDC BALANCE SHEET,HOUSING RENT REFUNDS,Z613,15-Jan-19,31602,523.01,MRS J BURKE,8551P
EFDC,CAPCM,COMMUNITIES CAPITAL,WORKS,A040,15-Jan-19,31603,508.33,PATRICIA BARRELL,8552P
EFDC,GD100,VOLUNTARY SECTOR SUPPORT,GRANTS GENERAL,3720,15-Jan-19,31604,1000,MICHAEL CREAN,8553P
EFDC,YR200,CHARGES SERVICES & FACILITIES,REFUNDS,9211,15-Jan-19,31605,1200,MR S DELARRE,8554P
EFDC,32030,OTHER SUPPORT SERVICES,BOOKS & PUBLICATIONS,3350,16-Jan-19,143393,2090,CIPFA BUSINESS LTD,CIP005
EFDC,LT120,LOCAL TAXATION,CONSULTANTS FEES,3490,16-Jan-19,143237,1900,CAPITA BUSINESS SERVICES LTD,CAP004
EFDC,28030,OTHER SUPPORT SERVICES,MATERIALS,3080,16-Jan-19,144427,624.32,CARE VENDING SERVICES LTD,CAR017
EFDC,28030,OTHER SUPPORT SERVICES,MATERIALS,3080,16-Jan-19,144427,-87.5,CARE VENDING SERVICES LTD,CAR017
EFDC,33080,OTHER ACTIVITIES,EQUIPMENT - NEW,3010,16-Jan-19,144956,1386.45,CCS MEDIA LTD,CCS002
EFDC,CAPRS,RESOURCES CAPITAL,EQUIPMENT ACQUISITION,C330,16-Jan-19,144956,4775.55,CCS MEDIA LTD,CCS002
EFDC,32120,OTHER SUPPORT SERVICES,EMPLOYEES - OTHER PAYMENTS,0191,16-Jan-19,144935,137.46,COMPUTERSHAREVOUCHER SERVICES,BUS009
EFDC,BAL01,EFDC BALANCE SHEET,BUSY BEES,Z606,16-Jan-19,144935,2114.75,COMPUTERSHAREVOUCHER SERVICES,BUS009
EFDC,EH150,REGULATORY SERVICES,CRB POLICE CHECK COSTS,0381,16-Jan-19,144395,1056,DISCLOSURE & BARRING SERVICE,CRB002
EFDC,35300,CONTRACT & TECH SUPPORT SERVIC,VEHICLE HIRE,2620,16-Jan-19,144341,2880,ERNEST DOE & SONS LTD,ERN001
EFDC,CAPCM,COMMUNITIES CAPITAL,EQUIPMENT ACQUISITION,C330,16-Jan-19,145033,14166.96,ESSEX LIFT SERVICES LTD,ESS032
EFDC,CAPCM,COMMUNITIES CAPITAL,EQUIPMENT ACQUISITION,C330,16-Jan-19,145034,43139.38,ESSEX LIFT SERVICES LTD,ESS032
EFDC,CAPCM,COMMUNITIES CAPITAL,EQUIPMENT ACQUISITION,C330,16-Jan-19,145032,11808.9,ESSEX LIFT SERVICES LTD,ESS032
EFDC,CAPCM,COMMUNITIES CAPITAL,EQUIPMENT ACQUISITION,C330,16-Jan-19,145035,7177.9,ESSEX LIFT SERVICES LTD,ESS032
EFDC,EI131,LOCAL PLAN IMPLEMENTATION,CONTRIBUTIONS,3740,16-Jan-19,144168,515.24,FARM & COUNTRY SUPPLIES LTD,FAR003
EFDC,OS101,PARKS & GROUNDS,TREE  MAINTENANCE,1070,16-Jan-19,143394,822,GRISTWOOD & TOMS LTD,GRI001
EFDC,HI122,HIGHWAYS,TREE  MAINTENANCE,1070,16-Jan-19,143394,3421.44,GRISTWOOD & TOMS LTD,GRI001
EFDC,YB400,SUPERVISION/MANAGEMENT SPECIAL,TREE  MAINTENANCE,1070,16-Jan-19,143394,9982,GRISTWOOD & TOMS LTD,GRI001
EFDC,PS100,CAR PARKING,TREE  MAINTENANCE,1070,16-Jan-19,143394,759,GRISTWOOD & TOMS LTD,GRI001
EFDC,OS110,PARKS & GROUNDS,GROUNDS MAINTENANCE,1040,16-Jan-19,143251,780,GRISTWOOD & TOMS LTD,GRI001
EFDC,32120,OTHER SUPPORT SERVICES,EMPLOYEES - OTHER PAYMENTS,0191,16-Jan-19,144225,2927.75,HARLOW OCCUPATIONAL HEALTH SERVICE LTD,HAR006
EFDC,32120,OTHER SUPPORT SERVICES,EMPLOYEES - OTHER PAYMENTS,0191,16-Jan-19,144225,19.65,HARLOW OCCUPATIONAL HEALTH SERVICE LTD,HAR006
EFDC,32120,OTHER SUPPORT SERVICES,EMPLOYEES - OTHER PAYMENTS,0191,16-Jan-19,144225,28,HARLOW OCCUPATIONAL HEALTH SERVICE LTD,HAR006
EFDC,32220,OTHER SUPPORT SERVICES,AGENCY STAFF,0120,16-Jan-19,144302,1589.28,HAYS SPECIALIST RECRUITMENT LTD,HAY011
EFDC,78001,HRA SUPPORT SERVICES,REFUSE REMOVAL,1640,16-Jan-19,144453,550,HEATHERLAND LTD T/A LUNNON PLANT & WASTE SERV,HEA001
EFDC,78001,HRA SUPPORT SERVICES,REFUSE REMOVAL,1640,16-Jan-19,144454,1472.8,HEATHERLAND LTD T/A LUNNON PLANT & WASTE SERV,HEA001
EFDC,35300,CONTRACT & TECH SUPPORT SERVIC,MATERIALS,3080,16-Jan-19,144556,2132.7,JAMES COLES & SONS (NURSERIES) LTD,JAM007
EFDC,RM100,RESPONSIVE & VOID REPAIRS,BUILDING MAINTENANCE,1010,16-Jan-19,144199,935,ABBEY DRAINS LTD,ABB009
EFDC,YB620,SUPERVISION/MANAGEMENT SPECIAL,WATER CHARGES,1410,16-Jan-19,144924,656.96,AFFINITY FOR BUSINESS LTD,AFF001
EFDC,YB620,SUPERVISION/MANAGEMENT SPECIAL,WATER CHARGES,1410,16-Jan-19,144923,902.98,AFFINITY FOR BUSINESS LTD,AFF001
EFDC,YB120,SUPERVISION/MANAGEMENT SPECIAL,CLEANING MATERIALS,1610,16-Jan-19,144948,26.96,BUNZL CLEANING & HYGIENE SUPPLIES,BUN004
EFDC,YB120,SUPERVISION/MANAGEMENT SPECIAL,CLEANING MATERIALS,1610,16-Jan-19,144948,26.4,BUNZL CLEANING & HYGIENE SUPPLIES,BUN004
EFDC,YB120,SUPERVISION/MANAGEMENT SPECIAL,CLEANING MATERIALS,1610,16-Jan-19,144948,45.6,BUNZL CLEANING & HYGIENE SUPPLIES,BUN004
EFDC,YB120,SUPERVISION/MANAGEMENT SPECIAL,CLEANING MATERIALS,1610,16-Jan-19,144948,24.88,BUNZL CLEANING & HYGIENE SUPPLIES,BUN004
EFDC,YB120,SUPERVISION/MANAGEMENT SPECIAL,CLEANING MATERIALS,1610,16-Jan-19,144948,16.25,BUNZL CLEANING & HYGIENE SUPPLIES,BUN004
EFDC,YB120,SUPERVISION/MANAGEMENT SPECIAL,CLEANING MATERIALS,1610,16-Jan-19,144948,8.4,BUNZL CLEANING & HYGIENE SUPPLIES,BUN004
EFDC,YB120,SUPERVISION/MANAGEMENT SPECIAL,CLEANING MATERIALS,1610,16-Jan-19,144948,52.05,BUNZL CLEANING & HYGIENE SUPPLIES,BUN004
EFDC,YB120,SUPERVISION/MANAGEMENT SPECIAL,CLEANING MATERIALS,1610,16-Jan-19,144948,77.4,BUNZL CLEANING & HYGIENE SUPPLIES,BUN004
EFDC,YB120,SUPERVISION/MANAGEMENT SPECIAL,CLEANING MATERIALS,1610,16-Jan-19,144948,87.6,BUNZL CLEANING & HYGIENE SUPPLIES,BUN004
EFDC,YB120,SUPERVISION/MANAGEMENT SPECIAL,CLEANING MATERIALS,1610,16-Jan-19,144948,44.3,BUNZL CLEANING & HYGIENE SUPPLIES,BUN004
EFDC,YB120,SUPERVISION/MANAGEMENT SPECIAL,CLEANING MATERIALS,1610,16-Jan-19,144948,58.54,BUNZL CLEANING & HYGIENE SUPPLIES,BUN004
EFDC,YB120,SUPERVISION/MANAGEMENT SPECIAL,CLEANING MATERIALS,1610,16-Jan-19,144948,21.7,BUNZL CLEANING & HYGIENE SUPPLIES,BUN004
EFDC,YB120,SUPERVISION/MANAGEMENT SPECIAL,CLEANING MATERIALS,1610,16-Jan-19,144948,55.45,BUNZL CLEANING & HYGIENE SUPPLIES,BUN004
EFDC,YB120,SUPERVISION/MANAGEMENT SPECIAL,CLEANING MATERIALS,1610,16-Jan-19,144948,36.95,BUNZL CLEANING & HYGIENE SUPPLIES,BUN004
EFDC,YB120,SUPERVISION/MANAGEMENT SPECIAL,CLEANING MATERIALS,1610,16-Jan-19,144948,48,BUNZL CLEANING & HYGIENE SUPPLIES,BUN004
EFDC,YB120,SUPERVISION/MANAGEMENT SPECIAL,CLEANING MATERIALS,1610,16-Jan-19,144948,16.2,BUNZL CLEANING & HYGIENE SUPPLIES,BUN004
EFDC,YB120,SUPERVISION/MANAGEMENT SPECIAL,CLEANING MATERIALS,1610,16-Jan-19,144948,16.2,BUNZL CLEANING & HYGIENE SUPPLIES,BUN004
EFDC,YB120,SUPERVISION/MANAGEMENT SPECIAL,CLEANING MATERIALS,1610,16-Jan-19,144948,33.4,BUNZL CLEANING & HYGIENE SUPPLIES,BUN004
EFDC,DC120,PLANNING REGULATORY SERVICES,PUBLICITY,3360,16-Jan-19,143966,714,NEWSQUEST MEDIA GROUP,NEW002
EFDC,33080,OTHER ACTIVITIES,MOBILE PHONE LINE COSTS,3580,16-Jan-19,144865,5263.09,O2 (UK) LTD,OTW002
EFDC,33080,OTHER ACTIVITIES,EQUIPMENT - NEW,3010,16-Jan-19,144866,665,O2 (UK) LTD,OTW002
EFDC,CAPRS,RESOURCES CAPITAL,EQUIPMENT ACQUISITION,C330,16-Jan-19,144867,1805,O2 (UK) LTD,OTW002
EFDC,33080,OTHER ACTIVITIES,ANNUAL SUPPORT /  LICENSES,3872,16-Jan-19,142697,3000,MODERN MINDSET LTD,MOD004
EFDC,OS100,PARKS & GROUNDS,MATERIALS,3080,16-Jan-19,144604,461.6,P & L SIGNS LTD T/A SIGNS EXPRESS (HARLOW),SIG002
EFDC,OS100,PARKS & GROUNDS,MATERIALS,3080,16-Jan-19,144604,10,P & L SIGNS LTD T/A SIGNS EXPRESS (HARLOW),SIG002
EFDC,OS100,PARKS & GROUNDS,MATERIALS,3080,16-Jan-19,144604,239.5,P & L SIGNS LTD T/A SIGNS EXPRESS (HARLOW),SIG002
EFDC,YB400,SUPERVISION/MANAGEMENT SPECIAL,GROUNDS MAINTENANCE,1040,16-Jan-19,144604,119.75,P & L SIGNS LTD T/A SIGNS EXPRESS (HARLOW),SIG002
EFDC,YB400,SUPERVISION/MANAGEMENT SPECIAL,GROUNDS MAINTENANCE,1040,16-Jan-19,144307,1080,HAGS-SMP LTD,SMP001
EFDC,LA100,LAA POOLED FUNDS,LAA EXPENDITURE,Y100,16-Jan-19,145016,457.6,SOLON SECURITY LTD,SOL008
EFDC,LA100,LAA POOLED FUNDS,LAA EXPENDITURE,Y100,16-Jan-19,145016,107.5,SOLON SECURITY LTD,SOL008
EFDC,LA100,LAA POOLED FUNDS,LAA EXPENDITURE,Y100,16-Jan-19,145016,100,SOLON SECURITY LTD,SOL008
EFDC,LA100,LAA POOLED FUNDS,LAA EXPENDITURE,Y100,16-Jan-19,145016,89.45,SOLON SECURITY LTD,SOL008
EFDC,LA100,LAA POOLED FUNDS,LAA EXPENDITURE,Y100,16-Jan-19,145016,103.68,SOLON SECURITY LTD,SOL008
EFDC,LA100,LAA POOLED FUNDS,LAA EXPENDITURE,Y100,16-Jan-19,145016,65,SOLON SECURITY LTD,SOL008
EFDC,LA100,LAA POOLED FUNDS,LAA EXPENDITURE,Y100,16-Jan-19,145016,89.45,SOLON SECURITY LTD,SOL008
EFDC,LA100,LAA POOLED FUNDS,LAA EXPENDITURE,Y100,16-Jan-19,145016,200,SOLON SECURITY LTD,SOL008
EFDC,LA100,LAA POOLED FUNDS,LAA EXPENDITURE,Y100,16-Jan-19,145016,140,SOLON SECURITY LTD,SOL008
EFDC,LA100,LAA POOLED FUNDS,LAA EXPENDITURE,Y100,16-Jan-19,145016,175,SOLON SECURITY LTD,SOL008
EFDC,LA100,LAA POOLED FUNDS,LAA EXPENDITURE,Y100,16-Jan-19,145016,0,SOLON SECURITY LTD,SOL008
EFDC,LA100,LAA POOLED FUNDS,LAA EXPENDITURE,Y100,16-Jan-19,145016,210,SOLON SECURITY LTD,SOL008
EFDC,35900,CONTRACT & TECH SUPPORT SERVIC,POSTAGE,3510,16-Jan-19,144839,144.65,ROYAL MAIL GROUP PLC,ROY015
EFDC,35900,CONTRACT & TECH SUPPORT SERVIC,POSTAGE,3510,16-Jan-19,144300,49.3,ROYAL MAIL GROUP PLC,ROY015
EFDC,34110,HOUSING PROP SUPPORT SERVICES,POSTAGE,3510,16-Jan-19,144839,4.15,ROYAL MAIL GROUP PLC,ROY015
EFDC,34110,HOUSING PROP SUPPORT SERVICES,POSTAGE,3510,16-Jan-19,144300,2.5,ROYAL MAIL GROUP PLC,ROY015
EFDC,33055,OTHER ACTIVITIES,POSTAGE,3510,16-Jan-19,144839,312.9,ROYAL MAIL GROUP PLC,ROY015
EFDC,32030,OTHER SUPPORT SERVICES,POSTAGE,3510,16-Jan-19,144839,68.97,ROYAL MAIL GROUP PLC,ROY015
EFDC,32030,OTHER SUPPORT SERVICES,POSTAGE,3510,16-Jan-19,144300,33.38,ROYAL MAIL GROUP PLC,ROY015
EFDC,RE100,ELECTIONS,POSTAGE,3510,16-Jan-19,144300,193.44,ROYAL MAIL GROUP PLC,ROY015
EFDC,33075,OTHER ACTIVITIES,POSTAGE,3510,16-Jan-19,144300,769.14,ROYAL MAIL GROUP PLC,ROY015
EFDC,33075,OTHER ACTIVITIES,POSTAGE,3510,16-Jan-19,144839,794.56,ROYAL MAIL GROUP PLC,ROY015
EFDC,33075,OTHER ACTIVITIES,POSTAGE,3510,16-Jan-19,144839,35.98,ROYAL MAIL GROUP PLC,ROY015
EFDC,33055,OTHER ACTIVITIES,POSTAGE,3510,16-Jan-19,144300,176.28,ROYAL MAIL GROUP PLC,ROY015
EFDC,36200,HRA SUPPORT SERVICES,POSTAGE,3510,16-Jan-19,144300,191.26,ROYAL MAIL GROUP PLC,ROY015
EFDC,37100,PLANNING SUPPORT SERVICES,POSTAGE,3510,16-Jan-19,144839,244.39,ROYAL MAIL GROUP PLC,ROY015
EFDC,36200,HRA SUPPORT SERVICES,POSTAGE,3510,16-Jan-19,144839,121.57,ROYAL MAIL GROUP PLC,ROY015
EFDC,RE100,ELECTIONS,POSTAGE,3510,16-Jan-19,144839,581.22,ROYAL MAIL GROUP PLC,ROY015
EFDC,CH110,"MUSEUM, HERITAGE & CULTURE",POSTAGE,3510,16-Jan-19,144300,3.12,ROYAL MAIL GROUP PLC,ROY015
EFDC,37100,PLANNING SUPPORT SERVICES,POSTAGE,3510,16-Jan-19,144300,183.14,ROYAL MAIL GROUP PLC,ROY015
EFDC,26200,OTHER SUPPORT SERVICES,BUILDING MAINTENANCE,1010,16-Jan-19,144234,665,TANKER AND DRAIN SOLUTIONS LTD,TAN004
EFDC,26200,OTHER SUPPORT SERVICES,BUILDING MAINTENANCE,1010,16-Jan-19,144234,1850,TANKER AND DRAIN SOLUTIONS LTD,TAN004
EFDC,78001,HRA SUPPORT SERVICES,MATERIALS,3080,16-Jan-19,144269,1750,TRAVIS PERKINS TRADING COMPANY LTD,TRA001
EFDC,YA100,SUPERVISION/MANAGEMENT GENERAL,PROFESSIONAL FEES,3420,16-Jan-19,142925,800,VALUATION OFFICE AGENCY,VAL002
EFDC,RS410,"COMMUNITY, HEALTH & WELLBEING",ACTIVITIES,3372,16-Jan-19,144393,600,ZOE MOREY,MOR019
EFDC,RM100,RESPONSIVE & VOID REPAIRS,BUILDING MAINTENANCE,1010,16-Jan-19,144246,620.51,GRACELANDS COMPLETE MAINTENANCE SERVICES LTD,GRA007
EFDC,RM100,RESPONSIVE & VOID REPAIRS,BUILDING MAINTENANCE,1010,16-Jan-19,143909,2074.8,GRACELANDS COMPLETE MAINTENANCE SERVICES LTD,GRA007
EFDC,RM100,RESPONSIVE & VOID REPAIRS,BUILDING MAINTENANCE,1010,16-Jan-19,144248,637.23,GRACELANDS COMPLETE MAINTENANCE SERVICES LTD,GRA007
EFDC,RM100,RESPONSIVE & VOID REPAIRS,BUILDING MAINTENANCE,1010,16-Jan-19,144418,1225.7,GRACELANDS COMPLETE MAINTENANCE SERVICES LTD,GRA007
EFDC,RM100,RESPONSIVE & VOID REPAIRS,BUILDING MAINTENANCE,1010,16-Jan-19,144218,3943.56,GRACELANDS COMPLETE MAINTENANCE SERVICES LTD,GRA007
EFDC,RM200,RESPONSIVE & VOID REPAIRS,BUILDING MAINTENANCE,1010,16-Jan-19,143907,2232.72,GRACELANDS COMPLETE MAINTENANCE SERVICES LTD,GRA007
EFDC,RM100,RESPONSIVE & VOID REPAIRS,BUILDING MAINTENANCE,1010,16-Jan-19,144161,771.37,GRACELANDS COMPLETE MAINTENANCE SERVICES LTD,GRA007
EFDC,RM100,RESPONSIVE & VOID REPAIRS,BUILDING MAINTENANCE,1010,16-Jan-19,144163,1867.18,GRACELANDS COMPLETE MAINTENANCE SERVICES LTD,GRA007
EFDC,CAPCM,COMMUNITIES CAPITAL,VOIDS WORKS,A045,16-Jan-19,145038,4016,GRACELANDS COMPLETE MAINTENANCE SERVICES LTD,GRA007
EFDC,CAPCM,COMMUNITIES CAPITAL,VOIDS WORKS,A045,16-Jan-19,145038,84548.78,GRACELANDS COMPLETE MAINTENANCE SERVICES LTD,GRA007
EFDC,RM200,RESPONSIVE & VOID REPAIRS,BUILDING MAINTENANCE,1010,16-Jan-19,144164,1525.78,GRACELANDS COMPLETE MAINTENANCE SERVICES LTD,GRA007
EFDC,CAPCM,COMMUNITIES CAPITAL,WORKS,A040,16-Jan-19,145040,89765.61,M & J SERVICES LTD,SER009
EFDC,35300,CONTRACT & TECH SUPPORT SERVIC,AGENCY STAFF,0120,16-Jan-19,143551,889.5,BERRY RECRUITMENT LTD,BER001
EFDC,GT100,LOCAL PLAN IMPLEMENTATION,CONSULTANTS FEES,3490,16-Jan-19,143969,4863,ALLIES AND MORRISON LLP,ALL001
EFDC,BAL01,EFDC BALANCE SHEET,TUSKER CAR SCHEME,Z631,16-Jan-19,145042,2923.34,TUSKERDIRECT LTD,TUS002
EFDC,BAL01,EFDC BALANCE SHEET,TUSKER CAR SCHEME,Z631,16-Jan-19,145042,-1915.14,TUSKERDIRECT LTD,TUS002
EFDC,BAL01,EFDC BALANCE SHEET,TUSKER CAR SCHEME,Z631,16-Jan-19,145042,1895.89,TUSKERDIRECT LTD,TUS002
EFDC,BAL01,EFDC BALANCE SHEET,TUSKER CAR SCHEME,Z631,16-Jan-19,145042,3830.31,TUSKERDIRECT LTD,TUS002
EFDC,32120,OTHER SUPPORT SERVICES,RECRUITMENT EXPENSES,0320,16-Jan-19,144605,5600,SOLACE IN BUSINESS LTD,SOL003
EFDC,32120,OTHER SUPPORT SERVICES,RECRUITMENT EXPENSES,0320,16-Jan-19,144413,6443.09,SOLACE IN BUSINESS LTD,SOL003
EFDC,35900,CONTRACT & TECH SUPPORT SERVIC,TRAINING EXPENSES,0310,16-Jan-19,144517,800,WRITTLE COLLEGE,WRI004
EFDC,35900,CONTRACT & TECH SUPPORT SERVIC,TRAINING EXPENSES,0310,16-Jan-19,144308,1040,WRITTLE COLLEGE,WRI004
EFDC,26200,OTHER SUPPORT SERVICES,BUILDING MAINTENANCE,1010,16-Jan-19,144430,4481.8,CALBARRIE COMPLIANCE SERVICES,CAL001
EFDC,32121,OTHER SUPPORT SERVICES,HOSPITALITY,3840,16-Jan-19,145012,695,SHARRONS EVENT CATERING COMPANY LTD,SHA002
EFDC,CAPCM,COMMUNITIES CAPITAL,VOIDS WORKS,A045,16-Jan-19,144156,830,WOODS BUILDING SERVICES LTD,WOO001
EFDC,CAPCM,COMMUNITIES CAPITAL,VOIDS WORKS,A045,16-Jan-19,143926,1980,WOODS BUILDING SERVICES LTD,WOO001
EFDC,27050,ACCOMMODATION,SECURITY,1650,16-Jan-19,144009,6936.69,T.S.S. (TOTAL SECURITY SERVICES) LTD,TSS001
EFDC,CD110,"COMMUNITY, HEALTH & WELLBEING",ACTIVITIES,3372,16-Jan-19,143955,600,ARC THEATRE,ARC003
EFDC,36650,HRA SUPPORT SERVICES,AGENCY STAFF,0120,16-Jan-19,144169,2000,THE OYSTER PARTNERSHIP LTD,OYS001
EFDC,CH110,"MUSEUM, HERITAGE & CULTURE",RENTS / HIRE OF HALL,1210,16-Jan-19,144214,1100,GRANGEWOOD INVESTMENTS LTD,GRA006
EFDC,35300,CONTRACT & TECH SUPPORT SERVIC,AGENCY STAFF,0120,16-Jan-19,143250,572.8,HL SERVICES (LONDON) LTD,HLS001
EFDC,YB110,SUPERVISION/MANAGEMENT SPECIAL,ELECTRICITY,1120,16-Jan-19,144843,6.59,EDF ENERGY,EDF001
EFDC,YB110,SUPERVISION/MANAGEMENT SPECIAL,ELECTRICITY,1120,16-Jan-19,144843,16.35,EDF ENERGY,EDF001
EFDC,YB200,SUPERVISION/MANAGEMENT SPECIAL,ELECTRICITY,1120,16-Jan-19,144843,21.37,EDF ENERGY,EDF001
EFDC,YB200,SUPERVISION/MANAGEMENT SPECIAL,ELECTRICITY,1120,16-Jan-19,144843,10.03,EDF ENERGY,EDF001
EFDC,YB200,SUPERVISION/MANAGEMENT SPECIAL,ELECTRICITY,1120,16-Jan-19,144843,39.51,EDF ENERGY,EDF001
EFDC,YB500,SUPERVISION/MANAGEMENT SPECIAL,ELECTRICITY,1120,16-Jan-19,144843,37.7,EDF ENERGY,EDF001
EFDC,YB500,SUPERVISION/MANAGEMENT SPECIAL,ELECTRICITY,1120,16-Jan-19,144843,26.51,EDF ENERGY,EDF001
EFDC,PS100,CAR PARKING,ELECTRICITY,1120,16-Jan-19,144843,6.07,EDF ENERGY,EDF001
EFDC,PS100,CAR PARKING,ELECTRICITY,1120,16-Jan-19,144843,146.41,EDF ENERGY,EDF001
EFDC,PS100,CAR PARKING,ELECTRICITY,1120,16-Jan-19,144843,20.48,EDF ENERGY,EDF001
EFDC,PS100,CAR PARKING,ELECTRICITY,1120,16-Jan-19,144843,247.51,EDF ENERGY,EDF001
EFDC,PS100,CAR PARKING,ELECTRICITY,1120,16-Jan-19,144843,16.13,EDF ENERGY,EDF001
EFDC,PS100,CAR PARKING,ELECTRICITY,1120,16-Jan-19,144843,17.76,EDF ENERGY,EDF001
EFDC,PS100,CAR PARKING,ELECTRICITY,1120,16-Jan-19,144843,229.65,EDF ENERGY,EDF001
EFDC,PS100,CAR PARKING,ELECTRICITY,1120,16-Jan-19,144843,123.37,EDF ENERGY,EDF001
EFDC,PS100,CAR PARKING,ELECTRICITY,1120,16-Jan-19,144843,78.07,EDF ENERGY,EDF001
EFDC,35009,CONTRACT & TECH SUPPORT SERVIC,ELECTRICITY,1120,16-Jan-19,144843,15.53,EDF ENERGY,EDF001
EFDC,35009,CONTRACT & TECH SUPPORT SERVIC,ELECTRICITY,1120,16-Jan-19,144843,14.75,EDF ENERGY,EDF001
EFDC,FD100,LAND DRAINAGE/SEWERAGE,ELECTRICITY,1120,16-Jan-19,144843,6.37,EDF ENERGY,EDF001
EFDC,FD100,LAND DRAINAGE/SEWERAGE,ELECTRICITY,1120,16-Jan-19,144843,38.39,EDF ENERGY,EDF001
EFDC,FD100,LAND DRAINAGE/SEWERAGE,ELECTRICITY,1120,16-Jan-19,144843,45.51,EDF ENERGY,EDF001
EFDC,42310,GOVERNANCE SUPPORT SERVICES,AGENCY STAFF,0120,16-Jan-19,143921,1443,MATCHTECH GROUP LTD,MAT002
EFDC,42310,GOVERNANCE SUPPORT SERVICES,AGENCY STAFF,0120,16-Jan-19,143922,1192.62,MATCHTECH GROUP LTD,MAT002
EFDC,CAPCM,COMMUNITIES CAPITAL,ARCHITECTS FEES,E160,16-Jan-19,145030,4216.25,ECD ARCHITECTS LTD,ECD001
EFDC,CAPCM,COMMUNITIES CAPITAL,ARCHITECTS FEES,E160,16-Jan-19,145031,4346.5,ECD ARCHITECTS LTD,ECD001
EFDC,CAPCM,COMMUNITIES CAPITAL,ARCHITECTS FEES,E160,16-Jan-19,144936,7052.5,ECD ARCHITECTS LTD,ECD001
EFDC,CAPCM,COMMUNITIES CAPITAL,ARCHITECTS FEES,E160,16-Jan-19,144937,2823.75,ECD ARCHITECTS LTD,ECD001
EFDC,CAPCM,COMMUNITIES CAPITAL,ARCHITECTS FEES,E160,16-Jan-19,144938,1787.5,ECD ARCHITECTS LTD,ECD001
EFDC,CAPCM,COMMUNITIES CAPITAL,ARCHITECTS FEES,E160,16-Jan-19,144939,4288.75,ECD ARCHITECTS LTD,ECD001
EFDC,CAPCM,COMMUNITIES CAPITAL,ARCHITECTS FEES,E160,16-Jan-19,144940,4286.25,ECD ARCHITECTS LTD,ECD001
EFDC,CAPNB,NEIGHBOURHOODS CAPITAL,WORKS,B040,16-Jan-19,144941,1620,M J ANDERSON MAINTENANCE CONTRACTORS LTD,AND003
EFDC,CAPNB,NEIGHBOURHOODS CAPITAL,WORKS,B040,16-Jan-19,144941,769.26,M J ANDERSON MAINTENANCE CONTRACTORS LTD,AND003
EFDC,32220,OTHER SUPPORT SERVICES,AGENCY STAFF,0120,16-Jan-19,144227,4004.65,CAPSTONE PROPERTY RECRUITMENT LTD,CAP001
EFDC,32220,OTHER SUPPORT SERVICES,AGENCY STAFF,0120,16-Jan-19,144443,3573.38,CAPSTONE PROPERTY RECRUITMENT LTD,CAP001
EFDC,32220,OTHER SUPPORT SERVICES,AGENCY STAFF,0120,16-Jan-19,144422,4189.48,CAPSTONE PROPERTY RECRUITMENT LTD,CAP001
EFDC,YB400,SUPERVISION/MANAGEMENT SPECIAL,TREE  MAINTENANCE,1070,16-Jan-19,143262,533.33,CROWN TREE SERVICES,CRO004
EFDC,RS410,"COMMUNITY, HEALTH & WELLBEING",ACTIVITIES,3372,16-Jan-19,144206,1617,HIGH BEECH RIDING SCHOOL,HIG002
EFDC,43310,CONTRACT & TECH SUPPORT SERVIC,AGENCY STAFF,0120,16-Jan-19,143901,11368.3,OVE ARUP & PARTNERS LTD,OVE002
EFDC,GT100,LOCAL PLAN IMPLEMENTATION,CONSULTANTS FEES,3490,16-Jan-19,144229,10420.6,OVE ARUP & PARTNERS LTD,OVE002
EFDC,PP113,LOCAL PLAN IMPLEMENTATION,AGENCY STAFF,0120,16-Jan-19,143901,845.6,OVE ARUP & PARTNERS LTD,OVE002
EFDC,CAPCM,COMMUNITIES CAPITAL,WORKS,A040,16-Jan-19,145039,49560,PREMIER SECURITY & FIRE CONSULTANTS LTD,PRE007
EFDC,26200,OTHER SUPPORT SERVICES,BUILDING MAINTENANCE,1010,16-Jan-19,144999,198,PARKER AIR CONDITIONING LTD,PAR017
EFDC,26200,OTHER SUPPORT SERVICES,BUILDING MAINTENANCE,1010,16-Jan-19,144999,1465,PARKER AIR CONDITIONING LTD,PAR017
EFDC,37600,PLANNING SUPPORT SERVICES,AGENCY STAFF,0120,16-Jan-19,144216,1312.5,VIVID RESOURCING LTD,VIV002
EFDC,37600,PLANNING SUPPORT SERVICES,AGENCY STAFF,0120,16-Jan-19,144306,1303.75,VIVID RESOURCING LTD,VIV002
EFDC,37600,PLANNING SUPPORT SERVICES,AGENCY STAFF,0120,16-Jan-19,144213,1303.75,VIVID RESOURCING LTD,VIV002
EFDC,37600,PLANNING SUPPORT SERVICES,AGENCY STAFF,0120,16-Jan-19,144215,1356.25,VIVID RESOURCING LTD,VIV002
EFDC,TI170,LAND & PROPERTY,CONSULTANTS FEES,3490,16-Jan-19,143616,750,GBNS PARTNERSHIP LTD,GBN003
EFDC,CH116,"MUSEUM, HERITAGE & CULTURE",EXHIBITIONS,3375,16-Jan-19,143956,1050,DAUPHIN ACRYLIC DESIGN LIMITED,DAU001
EFDC,SC100,WASTE MANAGEMENT,CLEANSING CONTRACTORS,4320,16-Jan-19,143265,640,WINDSOR WASTE MANAGEMENT LIMITED,WIN027
EFDC,SC100,WASTE MANAGEMENT,CLEANSING CONTRACTORS,4320,16-Jan-19,143264,640,WINDSOR WASTE MANAGEMENT LIMITED,WIN027
EFDC,CAPCM,COMMUNITIES CAPITAL,WORKS,A040,16-Jan-19,144926,570,BABEC ECOLOGICAL CONSULTANTS LTD,BAB027
EFDC,32115,OTHER SUPPORT SERVICES,CONSULTANTS FEES,3490,16-Jan-19,144930,1300,THE CTG GROUP LIMITED,CTG001
EFDC,32115,OTHER SUPPORT SERVICES,CONSULTANTS FEES,3490,16-Jan-19,144928,1385.8,THE CTG GROUP LIMITED,CTG001
EFDC,32030,OTHER SUPPORT SERVICES,TRAINING EXPENSES,0310,16-Jan-19,144439,2140.5,THE CTG GROUP LIMITED,CTG001
EFDC,32115,OTHER SUPPORT SERVICES,CONSULTANTS FEES,3490,16-Jan-19,144929,1245.38,THE CTG GROUP LIMITED,CTG001
EFDC,32115,OTHER SUPPORT SERVICES,CONSULTANTS FEES,3490,16-Jan-19,144541,2600,THE CTG GROUP LIMITED,CTG001
EFDC,32115,OTHER SUPPORT SERVICES,CONSULTANTS FEES,3490,16-Jan-19,144541,77,THE CTG GROUP LIMITED,CTG001
EFDC,32030,OTHER SUPPORT SERVICES,TRAINING EXPENSES,0310,16-Jan-19,144440,2025,THE CTG GROUP LIMITED,CTG001
EFDC,36700,HRA SUPPORT SERVICES,AGENCY STAFF,0120,16-Jan-19,144845,1878,DIGBY QUAINE TECHNICAL RESOURCES LTD,DIG003
EFDC,PP111,LOCAL PLAN IMPLEMENTATION,CONSULTANTS FEES,3490,16-Jan-19,144425,1187.5,CLOUDCOURT LIMITED,CLO022
EFDC,GT100,LOCAL PLAN IMPLEMENTATION,CONSULTANTS FEES,3490,16-Jan-19,145021,5000,THINKING PLACE LIMITED,THI027
EFDC,26200,OTHER SUPPORT SERVICES,FIXED PLANT MAINTENANCE,1020,16-Jan-19,143994,900,FIRECO LIMITED,FIR026
EFDC,HL100,HOMELESSNESS,PROFESSIONAL FEES,3420,16-Jan-19,144971,600,HOUSING REVIEWS LIMITED,HOU020
EFDC,YA110,SUPERVISION/MANAGEMENT GENERAL,CONSULTANTS FEES,3490,16-Jan-19,144535,900,CARTER JONAS,CAR020
EFDC,36500,HRA SUPPORT SERVICES,AGENCY STAFF,0120,16-Jan-19,144242,1044,PRENTIS SOLUTIONS LIMITED,PRE027
EFDC,RM200,RESPONSIVE & VOID REPAIRS,BUILDING MAINTENANCE,1010,16-Jan-19,144146,1875,JPS GROUP SERVICES LIMITED,JPS002
EFDC,BAL01,EFDC BALANCE SHEET,SALARIES - UNIONS,Z605,22-Jan-19,31664,1435,UNISON,UNI001
EFDC,32140,OTHER SUPPORT SERVICES,COMMISSION,9320,22-Jan-19,31664,-35.88,UNISON,UNI001
EFDC,GD100,VOLUNTARY SECTOR SUPPORT,GRANTS TO VOLUNTARY ORGS,3710,22-Jan-19,31653,3190.2,LOUGHTON VOLUNTARY CARE ASSOCIATION,559P
EFDC,BAL01,EFDC BALANCE SHEET,MISC DEDUCTIONS,Z611,22-Jan-19,31655,625,PRUDENTIAL,PRU001
EFDC,GD100,VOLUNTARY SECTOR SUPPORT,GRANTS TO VOLUNTARY ORGS,3710,22-Jan-19,31696,5000,SPARK,7853P
EFDC,BAL01,EFDC BALANCE SHEET,DEPOSITS - PAID,Z223,22-Jan-19,31682,675,BSV INVESTMENTS LTD,8575P
EFDC,BAL01,EFDC BALANCE SHEET,SUNDRY DEBTORS (OTHER),Z208,22-Jan-19,31682,675,BSV INVESTMENTS LTD,8575P
EFDC,BAL01,EFDC BALANCE SHEET,DEPOSITS - PAID,Z223,22-Jan-19,31686,795,R N DAVIS,8578P
EFDC,BAL01,EFDC BALANCE SHEET,SUNDRY DEBTORS (OTHER),Z208,22-Jan-19,31686,795,R N DAVIS,8578P
EFDC,GD100,VOLUNTARY SECTOR SUPPORT,GRANTS TO VOLUNTARY ORGS,3710,22-Jan-19,31687,915,EPPING TOWN FOOTBALL CLUB,8579P
EFDC,GD100,VOLUNTARY SECTOR SUPPORT,GRANTS TO VOLUNTARY ORGS,3710,22-Jan-19,31654,1338.15,OPEN DOOR,7828P
EFDC,GD100,VOLUNTARY SECTOR SUPPORT,GRANTS TO VOLUNTARY ORGS,3710,22-Jan-19,31656,5000,TRUSTEES OF LOUGHTON LOPPING ENDOWMENT FUND,8565P
EFDC,GD100,VOLUNTARY SECTOR SUPPORT,GRANTS GENERAL,3720,22-Jan-19,31666,1000,PAUL ELLIS,8567P
EFDC,BAL01,EFDC BALANCE SHEET,TUSKER CAR SCHEME,Z631,22-Jan-19,31650,522.97,DWP CMG EMPLOYERS,DWP028
EFDC,33080,OTHER ACTIVITIES,FIXED NETWORK LINE COSTS,3520,23-Jan-19,145259,11845.91,BRITISH TELECOMMUNICATIONS PLC,BRI002
EFDC,33080,OTHER ACTIVITIES,FIXED NETWORK LINE COSTS,3520,23-Jan-19,145259,185.24,BRITISH TELECOMMUNICATIONS PLC,BRI002
EFDC,32200,OTHER SUPPORT SERVICES,EQUIPMENT - HIRED,3020,23-Jan-19,144336,2776.81,CANON (UK) LTD,CAN004
EFDC,CAPRS,RESOURCES CAPITAL,EQUIPMENT ACQUISITION,C330,23-Jan-19,145362,1565,CCS MEDIA LTD,CCS002
EFDC,34110,HOUSING PROP SUPPORT SERVICES,FURNITURE - NEW,3040,23-Jan-19,145360,1637.87,CCS MEDIA LTD,CCS002
EFDC,CAPRS,RESOURCES CAPITAL,EQUIPMENT ACQUISITION,C330,23-Jan-19,145362,1325,CCS MEDIA LTD,CCS002
EFDC,CH110,"MUSEUM, HERITAGE & CULTURE",BANKING AND CASH COLLECTION,3440,23-Jan-19,144846,36.29,CONTRACT SECURITY SERVICES LTD,CON033
EFDC,34110,HOUSING PROP SUPPORT SERVICES,BANKING AND CASH COLLECTION,3440,23-Jan-19,144846,72.59,CONTRACT SECURITY SERVICES LTD,CON033
EFDC,33020,OTHER ACTIVITIES,BANKING AND CASH COLLECTION,3440,23-Jan-19,144846,725.83,CONTRACT SECURITY SERVICES LTD,CON033
EFDC,YB620,SUPERVISION/MANAGEMENT SPECIAL,BANKING AND CASH COLLECTION,3440,23-Jan-19,144846,72.58,CONTRACT SECURITY SERVICES LTD,CON033
EFDC,33020,OTHER ACTIVITIES,BANKING AND CASH COLLECTION,3440,23-Jan-19,144846,362.92,CONTRACT SECURITY SERVICES LTD,CON033
EFDC,TO100,LAND & PROPERTY,BANKING AND CASH COLLECTION,3440,23-Jan-19,144846,72.58,CONTRACT SECURITY SERVICES LTD,CON033
EFDC,CAPNB,NEIGHBOURHOODS CAPITAL,CONSULTANCY FEES,E200,23-Jan-19,145342,5955.54,DERRICK WADE WATERS,DER001
EFDC,CAPCM,COMMUNITIES CAPITAL,WORKS,A040,23-Jan-19,145432,107245.26,EXTERIOR PLAS,EXT001
EFDC,CAPCM,COMMUNITIES CAPITAL,WORKS,A040,23-Jan-19,145432,3312.65,EXTERIOR PLAS,EXT001
EFDC,RM300,PLANNED & CYCLICAL MAINTENANCE,BUILDING MAINTENANCE,1010,23-Jan-19,145343,56946.01,FLOWLINE (BUILDERS) LTD,FLO003
EFDC,RE100,ELECTIONS,POSTAGE,3510,23-Jan-19,145248,828.13,ELECTORAL REFORM SERVICES,ELE013
EFDC,32120,OTHER SUPPORT SERVICES,EMPLOYEES - OTHER PAYMENTS,0191,23-Jan-19,144822,213.45,HARLOW OCCUPATIONAL HEALTH SERVICE LTD,HAR006
EFDC,32120,OTHER SUPPORT SERVICES,EMPLOYEES - OTHER PAYMENTS,0191,23-Jan-19,144822,568,HARLOW OCCUPATIONAL HEALTH SERVICE LTD,HAR006
EFDC,32060,OTHER SUPPORT SERVICES,AGENCY STAFF,0120,23-Jan-19,144434,1694,LAW ABSOLUTE LIMITED,LAW009
EFDC,32060,OTHER SUPPORT SERVICES,AGENCY STAFF,0120,23-Jan-19,145045,1430,LAW ABSOLUTE LIMITED,LAW009
EFDC,32060,OTHER SUPPORT SERVICES,AGENCY STAFF,0120,23-Jan-19,144153,1628,LAW ABSOLUTE LIMITED,LAW009
EFDC,32060,OTHER SUPPORT SERVICES,AGENCY STAFF,0120,23-Jan-19,144151,1628,LAW ABSOLUTE LIMITED,LAW009
EFDC,32060,OTHER SUPPORT SERVICES,AGENCY STAFF,0120,23-Jan-19,144150,1837,LAW ABSOLUTE LIMITED,LAW009
EFDC,32060,OTHER SUPPORT SERVICES,AGENCY STAFF,0120,23-Jan-19,144152,1628,LAW ABSOLUTE LIMITED,LAW009
EFDC,32060,OTHER SUPPORT SERVICES,AGENCY STAFF,0120,23-Jan-19,144299,1562,LAW ABSOLUTE LIMITED,LAW009
EFDC,CAPCM,COMMUNITIES CAPITAL,EQUIPMENT ACQUISITION,C330,23-Jan-19,144525,19882.5,ADVANCED VISION SURVEILLANCE LTD,ADV001
EFDC,PP111,LOCAL PLAN IMPLEMENTATION,CONSULTANTS FEES,3490,23-Jan-19,145044,595,NEWSQUEST MEDIA GROUP,NEW002
EFDC,35300,CONTRACT & TECH SUPPORT SERVIC,PROFESSIONAL FEES,3420,23-Jan-19,144587,1025,PRINCIPAL TREES LTD,PRI017
EFDC,OS101,PARKS & GROUNDS,TREE  MAINTENANCE,1070,23-Jan-19,145004,910,PRINCIPAL TREES LTD,PRI017
EFDC,OS100,PARKS & GROUNDS,GROUNDS MAINTENANCE,1040,23-Jan-19,121561,2205,PRINCIPAL TREES LTD,PRI017
EFDC,35300,CONTRACT & TECH SUPPORT SERVIC,PROFESSIONAL FEES,3420,23-Jan-19,144580,1415,PRINCIPAL TREES LTD,PRI017
EFDC,OS101,PARKS & GROUNDS,TREE  MAINTENANCE,1070,23-Jan-19,121561,570,PRINCIPAL TREES LTD,PRI017
EFDC,37100,PLANNING SUPPORT SERVICES,SUBSCRIPTIONS,3730,23-Jan-19,145400,695,RESOLUTION DATA MANAGEMENT LTD,RES005
EFDC,RM300,PLANNED & CYCLICAL MAINTENANCE,BUILDING MAINTENANCE,1010,23-Jan-19,144647,1937.07,SCCI ALPHATRACK LTD,SCC003
EFDC,78001,HRA SUPPORT SERVICES,FUEL,2330,23-Jan-19,144410,2156,SHELL U.K. OIL PRODUCTS LIMITED,SHE007
EFDC,35300,CONTRACT & TECH SUPPORT SERVIC,FUEL,2330,23-Jan-19,144412,1383.32,SHELL U.K. OIL PRODUCTS LIMITED,SHE007
EFDC,YB120,SUPERVISION/MANAGEMENT SPECIAL,FUEL,2330,23-Jan-19,144408,75.41,SHELL U.K. OIL PRODUCTS LIMITED,SHE007
EFDC,YB120,SUPERVISION/MANAGEMENT SPECIAL,FUEL,2330,23-Jan-19,144410,111.21,SHELL U.K. OIL PRODUCTS LIMITED,SHE007
EFDC,78001,HRA SUPPORT SERVICES,FUEL,2330,23-Jan-19,144408,850.79,SHELL U.K. OIL PRODUCTS LIMITED,SHE007
EFDC,CAPCM,COMMUNITIES CAPITAL,WORKS,A040,23-Jan-19,144885,800,STACE LLP,STA012
EFDC,78001,HRA SUPPORT SERVICES,MATERIALS,3080,23-Jan-19,143951,523.44,TRAVIS PERKINS TRADING COMPANY LTD,TRA001
EFDC,32060,OTHER SUPPORT SERVICES,RECRUITMENT EXPENSES,0320,23-Jan-19,144878,591.5,VENN GROUP LTD,VEN004
EFDC,32060,OTHER SUPPORT SERVICES,RECRUITMENT EXPENSES,0320,23-Jan-19,144363,942.5,VENN GROUP LTD,VEN004
EFDC,32060,OTHER SUPPORT SERVICES,RECRUITMENT EXPENSES,0320,23-Jan-19,144195,858,VENN GROUP LTD,VEN004
EFDC,SC100,WASTE MANAGEMENT,HIGHWAYS CONTRACTORS,4310,23-Jan-19,144515,4939.38,VEOLIA ES (UK) LTD,VER004
EFDC,25300,INTERNAL INSURANCE FUND,PROFESSIONAL FEES,3420,23-Jan-19,145266,2069.5,ZURICH INSURANCE PLC,ZUR008
EFDC,RM200,RESPONSIVE & VOID REPAIRS,BUILDING MAINTENANCE,1010,23-Jan-19,144385,856.9,GRACELANDS COMPLETE MAINTENANCE SERVICES LTD,GRA007
EFDC,RM100,RESPONSIVE & VOID REPAIRS,BUILDING MAINTENANCE,1010,23-Jan-19,144838,560,GRACELANDS COMPLETE MAINTENANCE SERVICES LTD,GRA007
EFDC,RM100,RESPONSIVE & VOID REPAIRS,BUILDING MAINTENANCE,1010,23-Jan-19,145059,915.19,GRACELANDS COMPLETE MAINTENANCE SERVICES LTD,GRA007
EFDC,RM200,RESPONSIVE & VOID REPAIRS,BUILDING MAINTENANCE,1010,23-Jan-19,144285,805,GRACELANDS COMPLETE MAINTENANCE SERVICES LTD,GRA007
EFDC,33055,OTHER ACTIVITIES,AGENCY STAFF,0120,23-Jan-19,145389,935.5,MORGAN HUNT UK LTD,MOR001
EFDC,33055,OTHER ACTIVITIES,AGENCY STAFF,0120,23-Jan-19,145385,633.19,MORGAN HUNT UK LTD,MOR001
EFDC,36650,HRA SUPPORT SERVICES,AGENCY STAFF,0120,23-Jan-19,145392,976.06,MORGAN HUNT UK LTD,MOR001
EFDC,36650,HRA SUPPORT SERVICES,AGENCY STAFF,0120,23-Jan-19,145387,682.8,MORGAN HUNT UK LTD,MOR001
EFDC,36650,HRA SUPPORT SERVICES,AGENCY STAFF,0120,23-Jan-19,145386,1194.9,MORGAN HUNT UK LTD,MOR001
EFDC,36500,HRA SUPPORT SERVICES,AGENCY STAFF,0120,23-Jan-19,145391,881.48,MORGAN HUNT UK LTD,MOR001
EFDC,33075,OTHER ACTIVITIES,AGENCY STAFF,0120,23-Jan-19,145390,838.27,MORGAN HUNT UK LTD,MOR001
EFDC,33075,OTHER ACTIVITIES,AGENCY STAFF,0120,23-Jan-19,145388,501.82,MORGAN HUNT UK LTD,MOR001
EFDC,33080,OTHER ACTIVITIES,LICENCES,3870,23-Jan-19,139299,420,SOLAR COMMUNICATION LIMITED,SOL002
EFDC,33080,OTHER ACTIVITIES,CONSULTANTS FEES,3490,23-Jan-19,139299,1627.73,SOLAR COMMUNICATION LIMITED,SOL002
EFDC,RM100,RESPONSIVE & VOID REPAIRS,BUILDING MAINTENANCE,1010,23-Jan-19,144191,531,DARTFORD METALCRAFTS,DAR001
EFDC,23130,ACCOMMODATION,RODENT/PEST CONTROL,3410,23-Jan-19,145369,840,DISCREET PEST CONTROL LTD,DIS004
EFDC,BAL01,EFDC BALANCE SHEET,TUSKER CAR SCHEME,Z631,23-Jan-19,145263,3830.31,TUSKERDIRECT LTD,TUS002
EFDC,BAL01,EFDC BALANCE SHEET,TUSKER CAR SCHEME,Z631,23-Jan-19,145263,-1915.14,TUSKERDIRECT LTD,TUS002
EFDC,BAL01,EFDC BALANCE SHEET,TUSKER CAR SCHEME,Z631,23-Jan-19,145263,2923.34,TUSKERDIRECT LTD,TUS002
EFDC,BAL01,EFDC BALANCE SHEET,TUSKER CAR SCHEME,Z631,23-Jan-19,145263,1895.89,TUSKERDIRECT LTD,TUS002
EFDC,CAPCM,COMMUNITIES CAPITAL,VOIDS WORKS,A045,23-Jan-19,144157,602,WOODS BUILDING SERVICES LTD,WOO001
EFDC,UO110,OTHER ACTIVITIES,SECURITY,1650,23-Jan-19,144617,2250,T.S.S. (TOTAL SECURITY SERVICES) LTD,TSS001
EFDC,WC100,WASTE MANAGEMENT,CLEANSING CONTRACTORS,4320,23-Jan-19,145431,6249.6,BIFFA MUNICIPAL LTD,BIF001
EFDC,WC100,WASTE MANAGEMENT,CLEANSING CONTRACTORS,4320,23-Jan-19,145431,26.21,BIFFA MUNICIPAL LTD,BIF001
EFDC,WC100,WASTE MANAGEMENT,CLEANSING CONTRACTORS,4320,23-Jan-19,145431,49,BIFFA MUNICIPAL LTD,BIF001
EFDC,WC100,WASTE MANAGEMENT,CLEANSING CONTRACTORS,4320,23-Jan-19,145431,68,BIFFA MUNICIPAL LTD,BIF001
EFDC,FD100,LAND DRAINAGE/SEWERAGE,PROFESSIONAL FEES,3420,23-Jan-19,145431,17.83,BIFFA MUNICIPAL LTD,BIF001
EFDC,SC100,WASTE MANAGEMENT,CLEANSING CONTRACTORS,4320,23-Jan-19,145431,1505.93,BIFFA MUNICIPAL LTD,BIF001
EFDC,YB400,SUPERVISION/MANAGEMENT SPECIAL,EQUIPMENT - NEW,3010,23-Jan-19,145431,238,BIFFA MUNICIPAL LTD,BIF001
EFDC,WC300,WASTE MANAGEMENT,CLEANSING CONTRACTORS,4320,23-Jan-19,145431,630,BIFFA MUNICIPAL LTD,BIF001
EFDC,CY100,COMMUNITY & PARTNERSHIP,CONTRIBUTIONS,3740,23-Jan-19,145431,525,BIFFA MUNICIPAL LTD,BIF001
EFDC,WC102,WASTE MANAGEMENT,CLEANSING CONTRACTORS,4320,23-Jan-19,145431,1577.61,BIFFA MUNICIPAL LTD,BIF001
EFDC,RS301,NORTH WEALD CENTRE,RENTS,9410,23-Jan-19,145431,-600,BIFFA MUNICIPAL LTD,BIF001
EFDC,WC200,WASTE MANAGEMENT,CLEANSING CONTRACTORS,4320,23-Jan-19,145431,17320.93,BIFFA MUNICIPAL LTD,BIF001
EFDC,WC100,WASTE MANAGEMENT,EQUIPMENT - NEW,3010,23-Jan-19,145431,6284.52,BIFFA MUNICIPAL LTD,BIF001
EFDC,OS100,PARKS & GROUNDS,GROUNDS MAINTENANCE,1040,23-Jan-19,145431,168.09,BIFFA MUNICIPAL LTD,BIF001
EFDC,GD190,VOLUNTARY SECTOR SUPPORT,GROUNDS MAINTENANCE,1040,23-Jan-19,145431,111.21,BIFFA MUNICIPAL LTD,BIF001
EFDC,YB620,SUPERVISION/MANAGEMENT SPECIAL,REFUSE REMOVAL,1640,23-Jan-19,145431,11.01,BIFFA MUNICIPAL LTD,BIF001
EFDC,OS110,PARKS & GROUNDS,GROUNDS MAINTENANCE,1040,23-Jan-19,145431,16.67,BIFFA MUNICIPAL LTD,BIF001
EFDC,OS110,PARKS & GROUNDS,GROUNDS MAINTENANCE,1040,23-Jan-19,145431,333.94,BIFFA MUNICIPAL LTD,BIF001
EFDC,HI124,HIGHWAYS,OTHER MAINTENANCE,1050,23-Jan-19,145431,14.8,BIFFA MUNICIPAL LTD,BIF001
EFDC,23110,ACCOMMODATION,REFUSE REMOVAL,1640,23-Jan-19,145431,11.01,BIFFA MUNICIPAL LTD,BIF001
EFDC,23110,ACCOMMODATION,REFUSE REMOVAL,1640,23-Jan-19,145431,50,BIFFA MUNICIPAL LTD,BIF001
EFDC,YB500,SUPERVISION/MANAGEMENT SPECIAL,REFUSE REMOVAL,1640,23-Jan-19,145431,11.01,BIFFA MUNICIPAL LTD,BIF001
EFDC,YB400,SUPERVISION/MANAGEMENT SPECIAL,REFUSE REMOVAL,1640,23-Jan-19,145431,1995.32,BIFFA MUNICIPAL LTD,BIF001
EFDC,PS100,CAR PARKING,CLEANSING CONTRACTORS,4320,23-Jan-19,145431,-284.17,BIFFA MUNICIPAL LTD,BIF001
EFDC,PS100,CAR PARKING,CLEANSING CONTRACTORS,4320,23-Jan-19,145431,433,BIFFA MUNICIPAL LTD,BIF001
EFDC,27150,"COMMUNITY, HEALTH & WELLBEING",REFUSE REMOVAL,1640,23-Jan-19,145431,11.01,BIFFA MUNICIPAL LTD,BIF001
EFDC,OS100,PARKS & GROUNDS,GROUNDS MAINTENANCE,1040,23-Jan-19,145431,159.39,BIFFA MUNICIPAL LTD,BIF001
EFDC,27110,ACCOMMODATION,REFUSE REMOVAL,1640,23-Jan-19,145431,11,BIFFA MUNICIPAL LTD,BIF001
EFDC,27050,ACCOMMODATION,REFUSE REMOVAL,1640,23-Jan-19,145431,440.4,BIFFA MUNICIPAL LTD,BIF001
EFDC,27050,ACCOMMODATION,REFUSE REMOVAL,1640,23-Jan-19,145431,13,BIFFA MUNICIPAL LTD,BIF001
EFDC,23140,ACCOMMODATION,REFUSE REMOVAL,1640,23-Jan-19,145431,22.02,BIFFA MUNICIPAL LTD,BIF001
EFDC,36650,HRA SUPPORT SERVICES,AGENCY STAFF,0120,23-Jan-19,143397,2500,THE OYSTER PARTNERSHIP LTD,OYS001
EFDC,42310,GOVERNANCE SUPPORT SERVICES,AGENCY STAFF,0120,23-Jan-19,144274,617.37,MATCHTECH GROUP LTD,MAT002
EFDC,SC100,WASTE MANAGEMENT,CLEANSING CONTRACTORS,4320,23-Jan-19,143522,1950,DOCKLANDS WASTE RECYCLING LTD,DOC001
EFDC,35300,CONTRACT & TECH SUPPORT SERVIC,PROFESSIONAL FEES,3420,23-Jan-19,144296,630,DAY'S RENTAL,DAY002
EFDC,32060,OTHER SUPPORT SERVICES,CONSULTANTS FEES,3490,23-Jan-19,145253,696,BEVAN BRITTAN LLP CLIENT A/C,BEV002
EFDC,RS400,"COMMUNITY, HEALTH & WELLBEING",RENTS / HIRE OF HALL,1210,23-Jan-19,144657,950,LOUGHTON BOWLING CLUB LTD,LOU008
EFDC,PP111,LOCAL PLAN IMPLEMENTATION,PROFESSIONAL FEES,3420,23-Jan-19,144919,669.7,OVE ARUP & PARTNERS LTD,OVE002
EFDC,43310,CONTRACT & TECH SUPPORT SERVIC,AGENCY STAFF,0120,23-Jan-19,144921,14027.4,OVE ARUP & PARTNERS LTD,OVE002
EFDC,PP111,LOCAL PLAN IMPLEMENTATION,PROFESSIONAL FEES,3420,23-Jan-19,144920,4483.39,OVE ARUP & PARTNERS LTD,OVE002
EFDC,BAL01,EFDC BALANCE SHEET,CIS,Z625,23-Jan-19,145346,6912,PREMIER SECURITY & FIRE CONSULTANTS LTD,PRE007
EFDC,78001,HRA SUPPORT SERVICES,MATERIALS,3080,23-Jan-19,144210,653.4,M E DUFFELL LTD,DUF001
EFDC,CAPCM,COMMUNITIES CAPITAL,VOIDS WORKS,A045,23-Jan-19,145434,61612.53,W H CONSTRUCTION LTD,CON014
EFDC,CAPCM,COMMUNITIES CAPITAL,WORKS,A040,23-Jan-19,145434,13029.57,W H CONSTRUCTION LTD,CON014
EFDC,CAPCM,COMMUNITIES CAPITAL,WORKS,A040,23-Jan-19,145434,28932.76,W H CONSTRUCTION LTD,CON014
EFDC,32060,OTHER SUPPORT SERVICES,CONSULTANTS FEES,3490,23-Jan-19,144178,1000,MR ANDREW LANE,LAN003
EFDC,PS100,CAR PARKING,SEWAGE & ENVIRONMENTAL SERVICE,1430,23-Jan-19,145338,610.57,CASTLE WATER LTD,CAS001
EFDC,YB620,SUPERVISION/MANAGEMENT SPECIAL,WATER CHARGES,1410,23-Jan-19,145339,891.62,CASTLE WATER LTD,CAS001
EFDC,YD100,"RENTS, RATES TAXES & INSURANCE",WATER CHARGES,1410,23-Jan-19,145336,595.41,CASTLE WATER LTD,CAS001
EFDC,SC100,WASTE MANAGEMENT,CLEANSING CONTRACTORS,4320,23-Jan-19,142918,767.5,WINDSOR WASTE MANAGEMENT LIMITED,WIN027
EFDC,SC100,WASTE MANAGEMENT,CLEANSING CONTRACTORS,4320,23-Jan-19,142921,700,WINDSOR WASTE MANAGEMENT LIMITED,WIN027
EFDC,SC100,WASTE MANAGEMENT,CLEANSING CONTRACTORS,4320,23-Jan-19,142917,700,WINDSOR WASTE MANAGEMENT LIMITED,WIN027
EFDC,SC100,WASTE MANAGEMENT,CLEANSING CONTRACTORS,4320,23-Jan-19,142919,700,WINDSOR WASTE MANAGEMENT LIMITED,WIN027
EFDC,SC100,WASTE MANAGEMENT,CLEANSING CONTRACTORS,4320,23-Jan-19,142920,700,WINDSOR WASTE MANAGEMENT LIMITED,WIN027
EFDC,GT100,LOCAL PLAN IMPLEMENTATION,PROFESSIONAL FEES,3420,23-Jan-19,145398,9600,PUTTOCK BROWN LIMITED,PUT001
EFDC,PP111,LOCAL PLAN IMPLEMENTATION,PROFESSIONAL FEES,3420,23-Jan-19,144423,17514,BLOOM PROCUREMENT SERVICES LTD,BLO001
EFDC,32060,OTHER SUPPORT SERVICES,CONSULTANTS FEES,3490,23-Jan-19,144297,5200,11KBW JAMES GOUDIE QC,11K001
EFDC,HL100,HOMELESSNESS,PROFESSIONAL FEES,3420,23-Jan-19,145378,80,HOUSING REVIEWS LIMITED,HOU020
EFDC,HL100,HOMELESSNESS,PROFESSIONAL FEES,3420,23-Jan-19,145378,720,HOUSING REVIEWS LIMITED,HOU020
EFDC,CH113,"MUSEUM, HERITAGE & CULTURE",MARKETING & EVENTS,3370,23-Jan-19,145036,929.95,CONNIE FLYNN,FLY002
EFDC,36500,HRA SUPPORT SERVICES,AGENCY STAFF,0120,23-Jan-19,144312,1044,PRENTIS SOLUTIONS LIMITED,PRE027
EFDC,CAPNB,NEIGHBOURHOODS CAPITAL,CONSULTANCY FEES,E200,23-Jan-19,144816,6995.66,THE SPORTS CONSULTANCY LTD,SPO008
EFDC,YR200,CHARGES SERVICES & FACILITIES,REFUNDS,9211,29-Jan-19,31785,1200,MRS V I SAUNDERS,8576P
EFDC,YB200,SUPERVISION/MANAGEMENT SPECIAL,COMPENSATION PAYMENTS,3880,29-Jan-19,31777,1000,MISS A HAYNS,8600P
EFDC,YB200,SUPERVISION/MANAGEMENT SPECIAL,REMOVAL EXPENSES,3830,29-Jan-19,31777,500,MISS A HAYNS,8600P
EFDC,YB200,SUPERVISION/MANAGEMENT SPECIAL,CONTRIBUTIONS,3740,29-Jan-19,31777,500,MISS A HAYNS,8600P
EFDC,BAL01,EFDC BALANCE SHEET,DEPOSITS - PAID,Z223,29-Jan-19,31787,700,THAME HOUSE LTD,8603P
EFDC,BAL01,EFDC BALANCE SHEET,SUNDRY DEBTORS (OTHER),Z208,29-Jan-19,31787,700,THAME HOUSE LTD,8603P
EFDC,RS400,"COMMUNITY, HEALTH & WELLBEING",ACTIVITIES,3372,29-Jan-19,31752,2000,CRY-CARDIAC RISK IN THE YOUNG,8585P
EFDC,BAL01,EFDC BALANCE SHEET,HOUSING RENT REFUNDS,Z613,29-Jan-19,31763,1454.52,MR I W HOLIGAN,8595P
EFDC,BAL01,EFDC BALANCE SHEET,SUNDRY DEBTORS (OTHER),Z208,29-Jan-19,31764,1150,LAWLORS PROPERTY SERVICES LTD,996P
EFDC,BAL01,EFDC BALANCE SHEET,DEPOSITS - PAID,Z223,29-Jan-19,31764,1150,LAWLORS PROPERTY SERVICES LTD,996P
EFDC,YR200,CHARGES SERVICES & FACILITIES,REFUNDS,9211,29-Jan-19,31683,1200,MRS V I SAUNDERS,8576P
EFDC,33080,OTHER ACTIVITIES,FIXED NETWORK LINE COSTS,3520,30-Jan-19,145798,1411.5,BRITISH TELECOMMUNICATIONS PLC,BRI002
EFDC,33080,OTHER ACTIVITIES,FIXED NETWORK LINE COSTS,3520,30-Jan-19,145799,3440,BRITISH TELECOMMUNICATIONS PLC,BRI002
EFDC,YB110,SUPERVISION/MANAGEMENT SPECIAL,ELECTRICITY,1120,30-Jan-19,145586,93.67,BRITISH GAS,BRI040
EFDC,YB110,SUPERVISION/MANAGEMENT SPECIAL,ELECTRICITY,1120,30-Jan-19,145586,21.09,BRITISH GAS,BRI040
EFDC,YB110,SUPERVISION/MANAGEMENT SPECIAL,ELECTRICITY,1120,30-Jan-19,145586,13.83,BRITISH GAS,BRI040
EFDC,YB110,SUPERVISION/MANAGEMENT SPECIAL,ELECTRICITY,1120,30-Jan-19,145586,15.13,BRITISH GAS,BRI040
EFDC,YB110,SUPERVISION/MANAGEMENT SPECIAL,ELECTRICITY,1120,30-Jan-19,145586,15.14,BRITISH GAS,BRI040
EFDC,YB110,SUPERVISION/MANAGEMENT SPECIAL,ELECTRICITY,1120,30-Jan-19,145586,101.5,BRITISH GAS,BRI040
EFDC,YB110,SUPERVISION/MANAGEMENT SPECIAL,ELECTRICITY,1120,30-Jan-19,145586,15.41,BRITISH GAS,BRI040
EFDC,YB110,SUPERVISION/MANAGEMENT SPECIAL,ELECTRICITY,1120,30-Jan-19,145586,97.76,BRITISH GAS,BRI040
EFDC,YB110,SUPERVISION/MANAGEMENT SPECIAL,ELECTRICITY,1120,30-Jan-19,145586,-135.95,BRITISH GAS,BRI040
EFDC,YB110,SUPERVISION/MANAGEMENT SPECIAL,ELECTRICITY,1120,30-Jan-19,145586,7.15,BRITISH GAS,BRI040
EFDC,YB110,SUPERVISION/MANAGEMENT SPECIAL,ELECTRICITY,1120,30-Jan-19,145586,6.93,BRITISH GAS,BRI040
EFDC,YB110,SUPERVISION/MANAGEMENT SPECIAL,ELECTRICITY,1120,30-Jan-19,145586,15.52,BRITISH GAS,BRI040
EFDC,YB110,SUPERVISION/MANAGEMENT SPECIAL,ELECTRICITY,1120,30-Jan-19,145586,16.65,BRITISH GAS,BRI040
EFDC,YB110,SUPERVISION/MANAGEMENT SPECIAL,ELECTRICITY,1120,30-Jan-19,145586,14.5,BRITISH GAS,BRI040
EFDC,YB110,SUPERVISION/MANAGEMENT SPECIAL,ELECTRICITY,1120,30-Jan-19,145586,22.14,BRITISH GAS,BRI040
EFDC,YB110,SUPERVISION/MANAGEMENT SPECIAL,ELECTRICITY,1120,30-Jan-19,145586,19.27,BRITISH GAS,BRI040
EFDC,YB110,SUPERVISION/MANAGEMENT SPECIAL,ELECTRICITY,1120,30-Jan-19,145586,15.19,BRITISH GAS,BRI040
EFDC,YB110,SUPERVISION/MANAGEMENT SPECIAL,ELECTRICITY,1120,30-Jan-19,145586,12.68,BRITISH GAS,BRI040
EFDC,YB110,SUPERVISION/MANAGEMENT SPECIAL,ELECTRICITY,1120,30-Jan-19,145586,16.31,BRITISH GAS,BRI040
EFDC,YB110,SUPERVISION/MANAGEMENT SPECIAL,ELECTRICITY,1120,30-Jan-19,145586,5.34,BRITISH GAS,BRI040
EFDC,YB110,SUPERVISION/MANAGEMENT SPECIAL,ELECTRICITY,1120,30-Jan-19,145586,18.36,BRITISH GAS,BRI040
EFDC,YB110,SUPERVISION/MANAGEMENT SPECIAL,ELECTRICITY,1120,30-Jan-19,145586,48.03,BRITISH GAS,BRI040
EFDC,YB110,SUPERVISION/MANAGEMENT SPECIAL,ELECTRICITY,1120,30-Jan-19,145586,112.16,BRITISH GAS,BRI040
EFDC,YB110,SUPERVISION/MANAGEMENT SPECIAL,ELECTRICITY,1120,30-Jan-19,145586,15.97,BRITISH GAS,BRI040
EFDC,YB110,SUPERVISION/MANAGEMENT SPECIAL,ELECTRICITY,1120,30-Jan-19,145586,12.03,BRITISH GAS,BRI040
EFDC,YB110,SUPERVISION/MANAGEMENT SPECIAL,ELECTRICITY,1120,30-Jan-19,145586,16.21,BRITISH GAS,BRI040
EFDC,YB110,SUPERVISION/MANAGEMENT SPECIAL,ELECTRICITY,1120,30-Jan-19,145586,93.56,BRITISH GAS,BRI040
EFDC,YB110,SUPERVISION/MANAGEMENT SPECIAL,ELECTRICITY,1120,30-Jan-19,145586,88.63,BRITISH GAS,BRI040
EFDC,YB110,SUPERVISION/MANAGEMENT SPECIAL,ELECTRICITY,1120,30-Jan-19,145586,88.64,BRITISH GAS,BRI040
EFDC,YB110,SUPERVISION/MANAGEMENT SPECIAL,ELECTRICITY,1120,30-Jan-19,145586,66.12,BRITISH GAS,BRI040
EFDC,YB110,SUPERVISION/MANAGEMENT SPECIAL,ELECTRICITY,1120,30-Jan-19,145586,30.7,BRITISH GAS,BRI040
EFDC,YB110,SUPERVISION/MANAGEMENT SPECIAL,ELECTRICITY,1120,30-Jan-19,145586,14.35,BRITISH GAS,BRI040
EFDC,YB110,SUPERVISION/MANAGEMENT SPECIAL,ELECTRICITY,1120,30-Jan-19,145586,17.35,BRITISH GAS,BRI040
EFDC,YB110,SUPERVISION/MANAGEMENT SPECIAL,ELECTRICITY,1120,30-Jan-19,145586,17.26,BRITISH GAS,BRI040
EFDC,YB110,SUPERVISION/MANAGEMENT SPECIAL,ELECTRICITY,1120,30-Jan-19,145586,15.94,BRITISH GAS,BRI040
EFDC,YB110,SUPERVISION/MANAGEMENT SPECIAL,ELECTRICITY,1120,30-Jan-19,145586,20.57,BRITISH GAS,BRI040
EFDC,YB110,SUPERVISION/MANAGEMENT SPECIAL,ELECTRICITY,1120,30-Jan-19,145586,28.42,BRITISH GAS,BRI040
EFDC,YB110,SUPERVISION/MANAGEMENT SPECIAL,ELECTRICITY,1120,30-Jan-19,145586,33.36,BRITISH GAS,BRI040
EFDC,YB110,SUPERVISION/MANAGEMENT SPECIAL,ELECTRICITY,1120,30-Jan-19,145586,31.9,BRITISH GAS,BRI040
EFDC,YB110,SUPERVISION/MANAGEMENT SPECIAL,ELECTRICITY,1120,30-Jan-19,145586,6.23,BRITISH GAS,BRI040
EFDC,YB110,SUPERVISION/MANAGEMENT SPECIAL,ELECTRICITY,1120,30-Jan-19,145586,17.51,BRITISH GAS,BRI040
EFDC,YB110,SUPERVISION/MANAGEMENT SPECIAL,ELECTRICITY,1120,30-Jan-19,145586,6.23,BRITISH GAS,BRI040
EFDC,YB110,SUPERVISION/MANAGEMENT SPECIAL,ELECTRICITY,1120,30-Jan-19,145586,16.22,BRITISH GAS,BRI040
EFDC,YB110,SUPERVISION/MANAGEMENT SPECIAL,ELECTRICITY,1120,30-Jan-19,145586,6.23,BRITISH GAS,BRI040
EFDC,YB110,SUPERVISION/MANAGEMENT SPECIAL,ELECTRICITY,1120,30-Jan-19,145586,6.23,BRITISH GAS,BRI040
EFDC,YB110,SUPERVISION/MANAGEMENT SPECIAL,ELECTRICITY,1120,30-Jan-19,145586,38.2,BRITISH GAS,BRI040
EFDC,YB110,SUPERVISION/MANAGEMENT SPECIAL,ELECTRICITY,1120,30-Jan-19,145586,16.43,BRITISH GAS,BRI040
EFDC,YB110,SUPERVISION/MANAGEMENT SPECIAL,ELECTRICITY,1120,30-Jan-19,145586,45.86,BRITISH GAS,BRI040
EFDC,YB110,SUPERVISION/MANAGEMENT SPECIAL,ELECTRICITY,1120,30-Jan-19,145586,14.84,BRITISH GAS,BRI040
EFDC,YB110,SUPERVISION/MANAGEMENT SPECIAL,ELECTRICITY,1120,30-Jan-19,145586,16.11,BRITISH GAS,BRI040
EFDC,YB110,SUPERVISION/MANAGEMENT SPECIAL,ELECTRICITY,1120,30-Jan-19,145586,15.14,BRITISH GAS,BRI040
EFDC,YB110,SUPERVISION/MANAGEMENT SPECIAL,ELECTRICITY,1120,30-Jan-19,145586,23.74,BRITISH GAS,BRI040
EFDC,YB110,SUPERVISION/MANAGEMENT SPECIAL,ELECTRICITY,1120,30-Jan-19,145586,13.55,BRITISH GAS,BRI040
EFDC,YB110,SUPERVISION/MANAGEMENT SPECIAL,ELECTRICITY,1120,30-Jan-19,145586,9.41,BRITISH GAS,BRI040
EFDC,YB110,SUPERVISION/MANAGEMENT SPECIAL,ELECTRICITY,1120,30-Jan-19,145586,13.54,BRITISH GAS,BRI040
EFDC,YB110,SUPERVISION/MANAGEMENT SPECIAL,ELECTRICITY,1120,30-Jan-19,145586,27.93,BRITISH GAS,BRI040
EFDC,YB110,SUPERVISION/MANAGEMENT SPECIAL,ELECTRICITY,1120,30-Jan-19,145586,11.42,BRITISH GAS,BRI040
EFDC,YB110,SUPERVISION/MANAGEMENT SPECIAL,ELECTRICITY,1120,30-Jan-19,145586,17.23,BRITISH GAS,BRI040
EFDC,YB110,SUPERVISION/MANAGEMENT SPECIAL,ELECTRICITY,1120,30-Jan-19,145586,17.22,BRITISH GAS,BRI040
EFDC,YB110,SUPERVISION/MANAGEMENT SPECIAL,ELECTRICITY,1120,30-Jan-19,145586,14.39,BRITISH GAS,BRI040
EFDC,YB110,SUPERVISION/MANAGEMENT SPECIAL,ELECTRICITY,1120,30-Jan-19,145586,16.08,BRITISH GAS,BRI040
EFDC,YB110,SUPERVISION/MANAGEMENT SPECIAL,ELECTRICITY,1120,30-Jan-19,145586,17.23,BRITISH GAS,BRI040
EFDC,YB110,SUPERVISION/MANAGEMENT SPECIAL,ELECTRICITY,1120,30-Jan-19,145586,16.65,BRITISH GAS,BRI040
EFDC,YB110,SUPERVISION/MANAGEMENT SPECIAL,ELECTRICITY,1120,30-Jan-19,145586,12.92,BRITISH GAS,BRI040
EFDC,YB110,SUPERVISION/MANAGEMENT SPECIAL,ELECTRICITY,1120,30-Jan-19,145586,25.05,BRITISH GAS,BRI040
EFDC,YB110,SUPERVISION/MANAGEMENT SPECIAL,ELECTRICITY,1120,30-Jan-19,145586,1.55,BRITISH GAS,BRI040
EFDC,YB110,SUPERVISION/MANAGEMENT SPECIAL,ELECTRICITY,1120,30-Jan-19,145586,17.79,BRITISH GAS,BRI040
EFDC,YB110,SUPERVISION/MANAGEMENT SPECIAL,ELECTRICITY,1120,30-Jan-19,145586,21.87,BRITISH GAS,BRI040
EFDC,YB110,SUPERVISION/MANAGEMENT SPECIAL,ELECTRICITY,1120,30-Jan-19,145586,9.46,BRITISH GAS,BRI040
EFDC,YB110,SUPERVISION/MANAGEMENT SPECIAL,ELECTRICITY,1120,30-Jan-19,145586,28.94,BRITISH GAS,BRI040
EFDC,YB110,SUPERVISION/MANAGEMENT SPECIAL,ELECTRICITY,1120,30-Jan-19,145586,42.34,BRITISH GAS,BRI040
EFDC,YB110,SUPERVISION/MANAGEMENT SPECIAL,ELECTRICITY,1120,30-Jan-19,145586,34.17,BRITISH GAS,BRI040
EFDC,YB110,SUPERVISION/MANAGEMENT SPECIAL,ELECTRICITY,1120,30-Jan-19,145586,11.09,BRITISH GAS,BRI040
EFDC,YB110,SUPERVISION/MANAGEMENT SPECIAL,ELECTRICITY,1120,30-Jan-19,145586,20.4,BRITISH GAS,BRI040
EFDC,YB110,SUPERVISION/MANAGEMENT SPECIAL,ELECTRICITY,1120,30-Jan-19,145586,28.87,BRITISH GAS,BRI040
EFDC,YB110,SUPERVISION/MANAGEMENT SPECIAL,ELECTRICITY,1120,30-Jan-19,145586,11.42,BRITISH GAS,BRI040
EFDC,YB110,SUPERVISION/MANAGEMENT SPECIAL,ELECTRICITY,1120,30-Jan-19,145586,31.05,BRITISH GAS,BRI040
EFDC,YB110,SUPERVISION/MANAGEMENT SPECIAL,ELECTRICITY,1120,30-Jan-19,145586,125.08,BRITISH GAS,BRI040
EFDC,YB110,SUPERVISION/MANAGEMENT SPECIAL,ELECTRICITY,1120,30-Jan-19,145586,2.35,BRITISH GAS,BRI040
EFDC,YB110,SUPERVISION/MANAGEMENT SPECIAL,ELECTRICITY,1120,30-Jan-19,145586,5.9,BRITISH GAS,BRI040
EFDC,YB110,SUPERVISION/MANAGEMENT SPECIAL,ELECTRICITY,1120,30-Jan-19,145586,6.68,BRITISH GAS,BRI040
EFDC,YB110,SUPERVISION/MANAGEMENT SPECIAL,ELECTRICITY,1120,30-Jan-19,145586,10.25,BRITISH GAS,BRI040
EFDC,YB110,SUPERVISION/MANAGEMENT SPECIAL,ELECTRICITY,1120,30-Jan-19,145586,11.77,BRITISH GAS,BRI040
EFDC,YB110,SUPERVISION/MANAGEMENT SPECIAL,ELECTRICITY,1120,30-Jan-19,145586,70.55,BRITISH GAS,BRI040
EFDC,YB110,SUPERVISION/MANAGEMENT SPECIAL,ELECTRICITY,1120,30-Jan-19,145586,56.05,BRITISH GAS,BRI040
EFDC,YB110,SUPERVISION/MANAGEMENT SPECIAL,ELECTRICITY,1120,30-Jan-19,145586,221.18,BRITISH GAS,BRI040
EFDC,YB110,SUPERVISION/MANAGEMENT SPECIAL,ELECTRICITY,1120,30-Jan-19,145586,21.24,BRITISH GAS,BRI040
EFDC,YB110,SUPERVISION/MANAGEMENT SPECIAL,ELECTRICITY,1120,30-Jan-19,145586,11.7,BRITISH GAS,BRI040
EFDC,YB110,SUPERVISION/MANAGEMENT SPECIAL,ELECTRICITY,1120,30-Jan-19,145586,113.94,BRITISH GAS,BRI040
EFDC,YB110,SUPERVISION/MANAGEMENT SPECIAL,ELECTRICITY,1120,30-Jan-19,145586,12.46,BRITISH GAS,BRI040
EFDC,YB110,SUPERVISION/MANAGEMENT SPECIAL,ELECTRICITY,1120,30-Jan-19,145586,27.28,BRITISH GAS,BRI040
EFDC,YB110,SUPERVISION/MANAGEMENT SPECIAL,ELECTRICITY,1120,30-Jan-19,145586,26.09,BRITISH GAS,BRI040
EFDC,YB110,SUPERVISION/MANAGEMENT SPECIAL,ELECTRICITY,1120,30-Jan-19,145586,7.87,BRITISH GAS,BRI040
EFDC,YB110,SUPERVISION/MANAGEMENT SPECIAL,ELECTRICITY,1120,30-Jan-19,145586,33.25,BRITISH GAS,BRI040
EFDC,YB110,SUPERVISION/MANAGEMENT SPECIAL,ELECTRICITY,1120,30-Jan-19,145586,65.65,BRITISH GAS,BRI040
EFDC,YB110,SUPERVISION/MANAGEMENT SPECIAL,ELECTRICITY,1120,30-Jan-19,145586,6.9,BRITISH GAS,BRI040
EFDC,YB110,SUPERVISION/MANAGEMENT SPECIAL,ELECTRICITY,1120,30-Jan-19,145586,16.85,BRITISH GAS,BRI040
EFDC,YB110,SUPERVISION/MANAGEMENT SPECIAL,ELECTRICITY,1120,30-Jan-19,145586,14.27,BRITISH GAS,BRI040
EFDC,YB110,SUPERVISION/MANAGEMENT SPECIAL,ELECTRICITY,1120,30-Jan-19,145586,14.71,BRITISH GAS,BRI040
EFDC,YB110,SUPERVISION/MANAGEMENT SPECIAL,ELECTRICITY,1120,30-Jan-19,145586,14.73,BRITISH GAS,BRI040
EFDC,YB110,SUPERVISION/MANAGEMENT SPECIAL,ELECTRICITY,1120,30-Jan-19,145586,14.25,BRITISH GAS,BRI040
EFDC,YB110,SUPERVISION/MANAGEMENT SPECIAL,ELECTRICITY,1120,30-Jan-19,145586,20.51,BRITISH GAS,BRI040
EFDC,YB110,SUPERVISION/MANAGEMENT SPECIAL,ELECTRICITY,1120,30-Jan-19,145586,12.68,BRITISH GAS,BRI040
EFDC,YB110,SUPERVISION/MANAGEMENT SPECIAL,ELECTRICITY,1120,30-Jan-19,145586,86.48,BRITISH GAS,BRI040
EFDC,YB110,SUPERVISION/MANAGEMENT SPECIAL,ELECTRICITY,1120,30-Jan-19,145586,15.86,BRITISH GAS,BRI040
EFDC,YB110,SUPERVISION/MANAGEMENT SPECIAL,ELECTRICITY,1120,30-Jan-19,145586,13.16,BRITISH GAS,BRI040
EFDC,YB110,SUPERVISION/MANAGEMENT SPECIAL,ELECTRICITY,1120,30-Jan-19,145586,6.9,BRITISH GAS,BRI040
EFDC,YB110,SUPERVISION/MANAGEMENT SPECIAL,ELECTRICITY,1120,30-Jan-19,145586,17.16,BRITISH GAS,BRI040
EFDC,YB110,SUPERVISION/MANAGEMENT SPECIAL,ELECTRICITY,1120,30-Jan-19,145586,17.16,BRITISH GAS,BRI040
EFDC,YB110,SUPERVISION/MANAGEMENT SPECIAL,ELECTRICITY,1120,30-Jan-19,145586,26.54,BRITISH GAS,BRI040
EFDC,YB110,SUPERVISION/MANAGEMENT SPECIAL,ELECTRICITY,1120,30-Jan-19,145586,15.69,BRITISH GAS,BRI040
EFDC,YB110,SUPERVISION/MANAGEMENT SPECIAL,ELECTRICITY,1120,30-Jan-19,145586,29.07,BRITISH GAS,BRI040
EFDC,YB110,SUPERVISION/MANAGEMENT SPECIAL,ELECTRICITY,1120,30-Jan-19,145586,12.34,BRITISH GAS,BRI040
EFDC,YB110,SUPERVISION/MANAGEMENT SPECIAL,ELECTRICITY,1120,30-Jan-19,145586,19.25,BRITISH GAS,BRI040
EFDC,YB110,SUPERVISION/MANAGEMENT SPECIAL,ELECTRICITY,1120,30-Jan-19,145586,11.61,BRITISH GAS,BRI040
EFDC,YB110,SUPERVISION/MANAGEMENT SPECIAL,ELECTRICITY,1120,30-Jan-19,145586,15.37,BRITISH GAS,BRI040
EFDC,YB110,SUPERVISION/MANAGEMENT SPECIAL,ELECTRICITY,1120,30-Jan-19,145586,14.06,BRITISH GAS,BRI040
EFDC,YB110,SUPERVISION/MANAGEMENT SPECIAL,ELECTRICITY,1120,30-Jan-19,145586,22.85,BRITISH GAS,BRI040
EFDC,YB110,SUPERVISION/MANAGEMENT SPECIAL,ELECTRICITY,1120,30-Jan-19,145586,160.02,BRITISH GAS,BRI040
EFDC,YB110,SUPERVISION/MANAGEMENT SPECIAL,ELECTRICITY,1120,30-Jan-19,145586,20.31,BRITISH GAS,BRI040
EFDC,YB110,SUPERVISION/MANAGEMENT SPECIAL,ELECTRICITY,1120,30-Jan-19,145586,12.57,BRITISH GAS,BRI040
EFDC,YB110,SUPERVISION/MANAGEMENT SPECIAL,ELECTRICITY,1120,30-Jan-19,145586,62.12,BRITISH GAS,BRI040
EFDC,YB110,SUPERVISION/MANAGEMENT SPECIAL,ELECTRICITY,1120,30-Jan-19,145586,14.62,BRITISH GAS,BRI040
EFDC,YB110,SUPERVISION/MANAGEMENT SPECIAL,ELECTRICITY,1120,30-Jan-19,145586,16.85,BRITISH GAS,BRI040
EFDC,YB110,SUPERVISION/MANAGEMENT SPECIAL,ELECTRICITY,1120,30-Jan-19,145586,6.9,BRITISH GAS,BRI040
EFDC,YB110,SUPERVISION/MANAGEMENT SPECIAL,ELECTRICITY,1120,30-Jan-19,145586,11.55,BRITISH GAS,BRI040
EFDC,YB110,SUPERVISION/MANAGEMENT SPECIAL,ELECTRICITY,1120,30-Jan-19,145586,42.68,BRITISH GAS,BRI040
EFDC,YB110,SUPERVISION/MANAGEMENT SPECIAL,ELECTRICITY,1120,30-Jan-19,145586,14.03,BRITISH GAS,BRI040
EFDC,YB110,SUPERVISION/MANAGEMENT SPECIAL,ELECTRICITY,1120,30-Jan-19,145586,16.94,BRITISH GAS,BRI040
EFDC,YB110,SUPERVISION/MANAGEMENT SPECIAL,ELECTRICITY,1120,30-Jan-19,145586,13.08,BRITISH GAS,BRI040
EFDC,YB110,SUPERVISION/MANAGEMENT SPECIAL,ELECTRICITY,1120,30-Jan-19,145586,14.41,BRITISH GAS,BRI040
EFDC,YB110,SUPERVISION/MANAGEMENT SPECIAL,ELECTRICITY,1120,30-Jan-19,145586,19.56,BRITISH GAS,BRI040
EFDC,YB110,SUPERVISION/MANAGEMENT SPECIAL,ELECTRICITY,1120,30-Jan-19,145586,15.14,BRITISH GAS,BRI040
EFDC,YB110,SUPERVISION/MANAGEMENT SPECIAL,ELECTRICITY,1120,30-Jan-19,145586,13.53,BRITISH GAS,BRI040
EFDC,YB110,SUPERVISION/MANAGEMENT SPECIAL,ELECTRICITY,1120,30-Jan-19,145586,16.71,BRITISH GAS,BRI040
EFDC,YB110,SUPERVISION/MANAGEMENT SPECIAL,ELECTRICITY,1120,30-Jan-19,145586,13.02,BRITISH GAS,BRI040
EFDC,YB110,SUPERVISION/MANAGEMENT SPECIAL,ELECTRICITY,1120,30-Jan-19,145586,14.72,BRITISH GAS,BRI040
EFDC,YB110,SUPERVISION/MANAGEMENT SPECIAL,ELECTRICITY,1120,30-Jan-19,145586,12.72,BRITISH GAS,BRI040
EFDC,YB110,SUPERVISION/MANAGEMENT SPECIAL,ELECTRICITY,1120,30-Jan-19,145586,10.8,BRITISH GAS,BRI040
EFDC,YB110,SUPERVISION/MANAGEMENT SPECIAL,ELECTRICITY,1120,30-Jan-19,145586,14.19,BRITISH GAS,BRI040
EFDC,YB110,SUPERVISION/MANAGEMENT SPECIAL,ELECTRICITY,1120,30-Jan-19,145586,12.72,BRITISH GAS,BRI040
EFDC,YB110,SUPERVISION/MANAGEMENT SPECIAL,ELECTRICITY,1120,30-Jan-19,145586,7,BRITISH GAS,BRI040
EFDC,YB110,SUPERVISION/MANAGEMENT SPECIAL,ELECTRICITY,1120,30-Jan-19,145586,10.97,BRITISH GAS,BRI040
EFDC,YB110,SUPERVISION/MANAGEMENT SPECIAL,ELECTRICITY,1120,30-Jan-19,145586,11.08,BRITISH GAS,BRI040
EFDC,YB140,SUPERVISION/MANAGEMENT SPECIAL,ELECTRICITY,1120,30-Jan-19,145586,16.78,BRITISH GAS,BRI040
EFDC,YB140,SUPERVISION/MANAGEMENT SPECIAL,ELECTRICITY,1120,30-Jan-19,145586,18.94,BRITISH GAS,BRI040
EFDC,YB140,SUPERVISION/MANAGEMENT SPECIAL,ELECTRICITY,1120,30-Jan-19,145586,23.84,BRITISH GAS,BRI040
EFDC,YB140,SUPERVISION/MANAGEMENT SPECIAL,ELECTRICITY,1120,30-Jan-19,145586,24.92,BRITISH GAS,BRI040
EFDC,YB140,SUPERVISION/MANAGEMENT SPECIAL,ELECTRICITY,1120,30-Jan-19,145586,15.88,BRITISH GAS,BRI040
EFDC,YB140,SUPERVISION/MANAGEMENT SPECIAL,ELECTRICITY,1120,30-Jan-19,145586,18.7,BRITISH GAS,BRI040
EFDC,YB140,SUPERVISION/MANAGEMENT SPECIAL,ELECTRICITY,1120,30-Jan-19,145586,22.51,BRITISH GAS,BRI040
EFDC,YB140,SUPERVISION/MANAGEMENT SPECIAL,ELECTRICITY,1120,30-Jan-19,145586,17.36,BRITISH GAS,BRI040
EFDC,YB200,SUPERVISION/MANAGEMENT SPECIAL,ELECTRICITY,1120,30-Jan-19,145586,13.26,BRITISH GAS,BRI040
EFDC,YB300,SUPERVISION/MANAGEMENT SPECIAL,ELECTRICITY,1120,30-Jan-19,145586,44.5,BRITISH GAS,BRI040
EFDC,YB140,SUPERVISION/MANAGEMENT SPECIAL,ELECTRICITY,1120,30-Jan-19,145586,11.02,BRITISH GAS,BRI040
EFDC,YB140,SUPERVISION/MANAGEMENT SPECIAL,ELECTRICITY,1120,30-Jan-19,145586,26.95,BRITISH GAS,BRI040
EFDC,YB140,SUPERVISION/MANAGEMENT SPECIAL,ELECTRICITY,1120,30-Jan-19,145586,15.83,BRITISH GAS,BRI040
EFDC,YB140,SUPERVISION/MANAGEMENT SPECIAL,ELECTRICITY,1120,30-Jan-19,145586,27.05,BRITISH GAS,BRI040
EFDC,YB140,SUPERVISION/MANAGEMENT SPECIAL,ELECTRICITY,1120,30-Jan-19,145586,18.89,BRITISH GAS,BRI040
EFDC,YB140,SUPERVISION/MANAGEMENT SPECIAL,ELECTRICITY,1120,30-Jan-19,145586,24.04,BRITISH GAS,BRI040
EFDC,YB140,SUPERVISION/MANAGEMENT SPECIAL,ELECTRICITY,1120,30-Jan-19,145586,28.63,BRITISH GAS,BRI040
EFDC,YB110,SUPERVISION/MANAGEMENT SPECIAL,ELECTRICITY,1120,30-Jan-19,145586,7.89,BRITISH GAS,BRI040
EFDC,YB110,SUPERVISION/MANAGEMENT SPECIAL,ELECTRICITY,1120,30-Jan-19,145586,21,BRITISH GAS,BRI040
EFDC,YB110,SUPERVISION/MANAGEMENT SPECIAL,ELECTRICITY,1120,30-Jan-19,145586,15.49,BRITISH GAS,BRI040
EFDC,YB110,SUPERVISION/MANAGEMENT SPECIAL,ELECTRICITY,1120,30-Jan-19,145586,56.8,BRITISH GAS,BRI040
EFDC,YB110,SUPERVISION/MANAGEMENT SPECIAL,ELECTRICITY,1120,30-Jan-19,145586,9.96,BRITISH GAS,BRI040
EFDC,YB110,SUPERVISION/MANAGEMENT SPECIAL,ELECTRICITY,1120,30-Jan-19,145586,12.86,BRITISH GAS,BRI040
EFDC,YB110,SUPERVISION/MANAGEMENT SPECIAL,ELECTRICITY,1120,30-Jan-19,145586,16.34,BRITISH GAS,BRI040
EFDC,YB110,SUPERVISION/MANAGEMENT SPECIAL,ELECTRICITY,1120,30-Jan-19,145586,20.04,BRITISH GAS,BRI040
EFDC,YB110,SUPERVISION/MANAGEMENT SPECIAL,ELECTRICITY,1120,30-Jan-19,145586,10.3,BRITISH GAS,BRI040
EFDC,YB110,SUPERVISION/MANAGEMENT SPECIAL,ELECTRICITY,1120,30-Jan-19,145586,15.29,BRITISH GAS,BRI040
EFDC,YB110,SUPERVISION/MANAGEMENT SPECIAL,ELECTRICITY,1120,30-Jan-19,145586,34.63,BRITISH GAS,BRI040
EFDC,YB110,SUPERVISION/MANAGEMENT SPECIAL,ELECTRICITY,1120,30-Jan-19,145586,15.71,BRITISH GAS,BRI040
EFDC,YB110,SUPERVISION/MANAGEMENT SPECIAL,ELECTRICITY,1120,30-Jan-19,145586,25.16,BRITISH GAS,BRI040
EFDC,YB110,SUPERVISION/MANAGEMENT SPECIAL,ELECTRICITY,1120,30-Jan-19,145586,21.62,BRITISH GAS,BRI040
EFDC,YB110,SUPERVISION/MANAGEMENT SPECIAL,ELECTRICITY,1120,30-Jan-19,145586,14.06,BRITISH GAS,BRI040
EFDC,YB110,SUPERVISION/MANAGEMENT SPECIAL,ELECTRICITY,1120,30-Jan-19,145586,15.14,BRITISH GAS,BRI040
EFDC,YB110,SUPERVISION/MANAGEMENT SPECIAL,ELECTRICITY,1120,30-Jan-19,145586,14.67,BRITISH GAS,BRI040
EFDC,YB110,SUPERVISION/MANAGEMENT SPECIAL,ELECTRICITY,1120,30-Jan-19,145586,37.05,BRITISH GAS,BRI040
EFDC,YB110,SUPERVISION/MANAGEMENT SPECIAL,ELECTRICITY,1120,30-Jan-19,145586,14.03,BRITISH GAS,BRI040
EFDC,YB110,SUPERVISION/MANAGEMENT SPECIAL,ELECTRICITY,1120,30-Jan-19,145586,29.25,BRITISH GAS,BRI040
EFDC,YB110,SUPERVISION/MANAGEMENT SPECIAL,ELECTRICITY,1120,30-Jan-19,145586,10.59,BRITISH GAS,BRI040
EFDC,YB110,SUPERVISION/MANAGEMENT SPECIAL,ELECTRICITY,1120,30-Jan-19,145586,10.17,BRITISH GAS,BRI040
EFDC,YB110,SUPERVISION/MANAGEMENT SPECIAL,ELECTRICITY,1120,30-Jan-19,145586,13.82,BRITISH GAS,BRI040
EFDC,YB110,SUPERVISION/MANAGEMENT SPECIAL,ELECTRICITY,1120,30-Jan-19,145586,6.46,BRITISH GAS,BRI040
EFDC,YB110,SUPERVISION/MANAGEMENT SPECIAL,ELECTRICITY,1120,30-Jan-19,145586,8.61,BRITISH GAS,BRI040
EFDC,YB110,SUPERVISION/MANAGEMENT SPECIAL,ELECTRICITY,1120,30-Jan-19,145586,46.37,BRITISH GAS,BRI040
EFDC,YB110,SUPERVISION/MANAGEMENT SPECIAL,ELECTRICITY,1120,30-Jan-19,145586,18.25,BRITISH GAS,BRI040
EFDC,YB110,SUPERVISION/MANAGEMENT SPECIAL,ELECTRICITY,1120,30-Jan-19,145586,16.88,BRITISH GAS,BRI040
EFDC,YB110,SUPERVISION/MANAGEMENT SPECIAL,ELECTRICITY,1120,30-Jan-19,145586,15.97,BRITISH GAS,BRI040
EFDC,YB110,SUPERVISION/MANAGEMENT SPECIAL,ELECTRICITY,1120,30-Jan-19,145586,17.45,BRITISH GAS,BRI040
EFDC,YB110,SUPERVISION/MANAGEMENT SPECIAL,ELECTRICITY,1120,30-Jan-19,145586,11.21,BRITISH GAS,BRI040
EFDC,YB110,SUPERVISION/MANAGEMENT SPECIAL,ELECTRICITY,1120,30-Jan-19,145586,15.52,BRITISH GAS,BRI040
EFDC,YB110,SUPERVISION/MANAGEMENT SPECIAL,ELECTRICITY,1120,30-Jan-19,145586,11.64,BRITISH GAS,BRI040
EFDC,YB110,SUPERVISION/MANAGEMENT SPECIAL,ELECTRICITY,1120,30-Jan-19,145586,11.87,BRITISH GAS,BRI040
EFDC,YB110,SUPERVISION/MANAGEMENT SPECIAL,ELECTRICITY,1120,30-Jan-19,145586,14.2,BRITISH GAS,BRI040
EFDC,YB110,SUPERVISION/MANAGEMENT SPECIAL,ELECTRICITY,1120,30-Jan-19,145586,14.67,BRITISH GAS,BRI040
EFDC,YB110,SUPERVISION/MANAGEMENT SPECIAL,ELECTRICITY,1120,30-Jan-19,145586,10.49,BRITISH GAS,BRI040
EFDC,YB110,SUPERVISION/MANAGEMENT SPECIAL,ELECTRICITY,1120,30-Jan-19,145586,16.11,BRITISH GAS,BRI040
EFDC,YB110,SUPERVISION/MANAGEMENT SPECIAL,ELECTRICITY,1120,30-Jan-19,145586,103.7,BRITISH GAS,BRI040
EFDC,YB110,SUPERVISION/MANAGEMENT SPECIAL,ELECTRICITY,1120,30-Jan-19,145586,97.86,BRITISH GAS,BRI040
EFDC,YB110,SUPERVISION/MANAGEMENT SPECIAL,ELECTRICITY,1120,30-Jan-19,145586,29.88,BRITISH GAS,BRI040
EFDC,YB110,SUPERVISION/MANAGEMENT SPECIAL,ELECTRICITY,1120,30-Jan-19,145586,12.21,BRITISH GAS,BRI040
EFDC,YB110,SUPERVISION/MANAGEMENT SPECIAL,ELECTRICITY,1120,30-Jan-19,145586,13.49,BRITISH GAS,BRI040
EFDC,YB110,SUPERVISION/MANAGEMENT SPECIAL,ELECTRICITY,1120,30-Jan-19,145586,69.61,BRITISH GAS,BRI040
EFDC,YB110,SUPERVISION/MANAGEMENT SPECIAL,ELECTRICITY,1120,30-Jan-19,145586,15.33,BRITISH GAS,BRI040
EFDC,YB110,SUPERVISION/MANAGEMENT SPECIAL,ELECTRICITY,1120,30-Jan-19,145586,16.96,BRITISH GAS,BRI040
EFDC,YB110,SUPERVISION/MANAGEMENT SPECIAL,ELECTRICITY,1120,30-Jan-19,145586,14.04,BRITISH GAS,BRI040
EFDC,YB110,SUPERVISION/MANAGEMENT SPECIAL,ELECTRICITY,1120,30-Jan-19,145586,13.39,BRITISH GAS,BRI040
EFDC,YB110,SUPERVISION/MANAGEMENT SPECIAL,ELECTRICITY,1120,30-Jan-19,145586,19.72,BRITISH GAS,BRI040
EFDC,YB110,SUPERVISION/MANAGEMENT SPECIAL,ELECTRICITY,1120,30-Jan-19,145586,15.89,BRITISH GAS,BRI040
EFDC,YB110,SUPERVISION/MANAGEMENT SPECIAL,ELECTRICITY,1120,30-Jan-19,145586,17.24,BRITISH GAS,BRI040
EFDC,YB110,SUPERVISION/MANAGEMENT SPECIAL,ELECTRICITY,1120,30-Jan-19,145586,11.86,BRITISH GAS,BRI040
EFDC,YB110,SUPERVISION/MANAGEMENT SPECIAL,ELECTRICITY,1120,30-Jan-19,145586,15.73,BRITISH GAS,BRI040
EFDC,YB110,SUPERVISION/MANAGEMENT SPECIAL,ELECTRICITY,1120,30-Jan-19,145586,20.95,BRITISH GAS,BRI040
EFDC,YB110,SUPERVISION/MANAGEMENT SPECIAL,ELECTRICITY,1120,30-Jan-19,145586,16.48,BRITISH GAS,BRI040
EFDC,YB110,SUPERVISION/MANAGEMENT SPECIAL,ELECTRICITY,1120,30-Jan-19,145586,19.44,BRITISH GAS,BRI040
EFDC,YB110,SUPERVISION/MANAGEMENT SPECIAL,ELECTRICITY,1120,30-Jan-19,145586,18.71,BRITISH GAS,BRI040
EFDC,YB110,SUPERVISION/MANAGEMENT SPECIAL,ELECTRICITY,1120,30-Jan-19,145586,29.8,BRITISH GAS,BRI040
EFDC,YB110,SUPERVISION/MANAGEMENT SPECIAL,ELECTRICITY,1120,30-Jan-19,145586,18.71,BRITISH GAS,BRI040
EFDC,YB110,SUPERVISION/MANAGEMENT SPECIAL,ELECTRICITY,1120,30-Jan-19,145586,14.68,BRITISH GAS,BRI040
EFDC,YB110,SUPERVISION/MANAGEMENT SPECIAL,ELECTRICITY,1120,30-Jan-19,145586,20.02,BRITISH GAS,BRI040
EFDC,YB110,SUPERVISION/MANAGEMENT SPECIAL,ELECTRICITY,1120,30-Jan-19,145586,17.29,BRITISH GAS,BRI040
EFDC,YB110,SUPERVISION/MANAGEMENT SPECIAL,ELECTRICITY,1120,30-Jan-19,145586,22.06,BRITISH GAS,BRI040
EFDC,YB110,SUPERVISION/MANAGEMENT SPECIAL,ELECTRICITY,1120,30-Jan-19,145586,25.27,BRITISH GAS,BRI040
EFDC,YB110,SUPERVISION/MANAGEMENT SPECIAL,ELECTRICITY,1120,30-Jan-19,145586,20.66,BRITISH GAS,BRI040
EFDC,YB110,SUPERVISION/MANAGEMENT SPECIAL,ELECTRICITY,1120,30-Jan-19,145586,21.85,BRITISH GAS,BRI040
EFDC,YB110,SUPERVISION/MANAGEMENT SPECIAL,ELECTRICITY,1120,30-Jan-19,145586,10.55,BRITISH GAS,BRI040
EFDC,YB110,SUPERVISION/MANAGEMENT SPECIAL,ELECTRICITY,1120,30-Jan-19,145586,13.82,BRITISH GAS,BRI040
EFDC,YB110,SUPERVISION/MANAGEMENT SPECIAL,ELECTRICITY,1120,30-Jan-19,145586,11.76,BRITISH GAS,BRI040
EFDC,YB110,SUPERVISION/MANAGEMENT SPECIAL,ELECTRICITY,1120,30-Jan-19,145586,11.36,BRITISH GAS,BRI040
EFDC,YB110,SUPERVISION/MANAGEMENT SPECIAL,ELECTRICITY,1120,30-Jan-19,145586,14.95,BRITISH GAS,BRI040
EFDC,YB110,SUPERVISION/MANAGEMENT SPECIAL,ELECTRICITY,1120,30-Jan-19,145586,12.03,BRITISH GAS,BRI040
EFDC,YB110,SUPERVISION/MANAGEMENT SPECIAL,ELECTRICITY,1120,30-Jan-19,145586,15.52,BRITISH GAS,BRI040
EFDC,YB110,SUPERVISION/MANAGEMENT SPECIAL,ELECTRICITY,1120,30-Jan-19,145586,16.32,BRITISH GAS,BRI040
EFDC,YB110,SUPERVISION/MANAGEMENT SPECIAL,ELECTRICITY,1120,30-Jan-19,145586,18.03,BRITISH GAS,BRI040
EFDC,YB110,SUPERVISION/MANAGEMENT SPECIAL,ELECTRICITY,1120,30-Jan-19,145586,13.94,BRITISH GAS,BRI040
EFDC,YB110,SUPERVISION/MANAGEMENT SPECIAL,ELECTRICITY,1120,30-Jan-19,145586,13.49,BRITISH GAS,BRI040
EFDC,YB110,SUPERVISION/MANAGEMENT SPECIAL,ELECTRICITY,1120,30-Jan-19,145586,11.56,BRITISH GAS,BRI040
EFDC,YB110,SUPERVISION/MANAGEMENT SPECIAL,ELECTRICITY,1120,30-Jan-19,145586,25.56,BRITISH GAS,BRI040
EFDC,YB110,SUPERVISION/MANAGEMENT SPECIAL,ELECTRICITY,1120,30-Jan-19,145586,56.92,BRITISH GAS,BRI040
EFDC,YB110,SUPERVISION/MANAGEMENT SPECIAL,ELECTRICITY,1120,30-Jan-19,145586,13.38,BRITISH GAS,BRI040
EFDC,YB110,SUPERVISION/MANAGEMENT SPECIAL,ELECTRICITY,1120,30-Jan-19,145586,53.87,BRITISH GAS,BRI040
EFDC,YB110,SUPERVISION/MANAGEMENT SPECIAL,ELECTRICITY,1120,30-Jan-19,145586,2.86,BRITISH GAS,BRI040
EFDC,YB110,SUPERVISION/MANAGEMENT SPECIAL,ELECTRICITY,1120,30-Jan-19,145586,17.11,BRITISH GAS,BRI040
EFDC,YB110,SUPERVISION/MANAGEMENT SPECIAL,ELECTRICITY,1120,30-Jan-19,145586,13.51,BRITISH GAS,BRI040
EFDC,YB110,SUPERVISION/MANAGEMENT SPECIAL,ELECTRICITY,1120,30-Jan-19,145586,60,BRITISH GAS,BRI040
EFDC,YB110,SUPERVISION/MANAGEMENT SPECIAL,ELECTRICITY,1120,30-Jan-19,145586,12.82,BRITISH GAS,BRI040
EFDC,YB110,SUPERVISION/MANAGEMENT SPECIAL,ELECTRICITY,1120,30-Jan-19,145586,14.74,BRITISH GAS,BRI040
EFDC,YB110,SUPERVISION/MANAGEMENT SPECIAL,ELECTRICITY,1120,30-Jan-19,145586,20.33,BRITISH GAS,BRI040
EFDC,YB110,SUPERVISION/MANAGEMENT SPECIAL,ELECTRICITY,1120,30-Jan-19,145586,3.82,BRITISH GAS,BRI040
EFDC,YB110,SUPERVISION/MANAGEMENT SPECIAL,ELECTRICITY,1120,30-Jan-19,145586,17.12,BRITISH GAS,BRI040
EFDC,YB110,SUPERVISION/MANAGEMENT SPECIAL,ELECTRICITY,1120,30-Jan-19,145586,4.07,BRITISH GAS,BRI040
EFDC,YB110,SUPERVISION/MANAGEMENT SPECIAL,ELECTRICITY,1120,30-Jan-19,145586,3.05,BRITISH GAS,BRI040
EFDC,YB110,SUPERVISION/MANAGEMENT SPECIAL,ELECTRICITY,1120,30-Jan-19,145586,14.85,BRITISH GAS,BRI040
EFDC,YB110,SUPERVISION/MANAGEMENT SPECIAL,ELECTRICITY,1120,30-Jan-19,145586,11.13,BRITISH GAS,BRI040
EFDC,YB110,SUPERVISION/MANAGEMENT SPECIAL,ELECTRICITY,1120,30-Jan-19,145586,25.41,BRITISH GAS,BRI040
EFDC,YB110,SUPERVISION/MANAGEMENT SPECIAL,ELECTRICITY,1120,30-Jan-19,145586,7.12,BRITISH GAS,BRI040
EFDC,YB110,SUPERVISION/MANAGEMENT SPECIAL,ELECTRICITY,1120,30-Jan-19,145586,14.05,BRITISH GAS,BRI040
EFDC,YB110,SUPERVISION/MANAGEMENT SPECIAL,ELECTRICITY,1120,30-Jan-19,145586,19.94,BRITISH GAS,BRI040
EFDC,YB110,SUPERVISION/MANAGEMENT SPECIAL,ELECTRICITY,1120,30-Jan-19,145586,15.29,BRITISH GAS,BRI040
EFDC,YB110,SUPERVISION/MANAGEMENT SPECIAL,ELECTRICITY,1120,30-Jan-19,145586,32.99,BRITISH GAS,BRI040
EFDC,YB110,SUPERVISION/MANAGEMENT SPECIAL,ELECTRICITY,1120,30-Jan-19,145586,15.52,BRITISH GAS,BRI040
EFDC,YB110,SUPERVISION/MANAGEMENT SPECIAL,ELECTRICITY,1120,30-Jan-19,145586,17.45,BRITISH GAS,BRI040
EFDC,YB110,SUPERVISION/MANAGEMENT SPECIAL,ELECTRICITY,1120,30-Jan-19,145586,17.33,BRITISH GAS,BRI040
EFDC,YB110,SUPERVISION/MANAGEMENT SPECIAL,ELECTRICITY,1120,30-Jan-19,145586,14.29,BRITISH GAS,BRI040
EFDC,YB110,SUPERVISION/MANAGEMENT SPECIAL,ELECTRICITY,1120,30-Jan-19,145586,20.06,BRITISH GAS,BRI040
EFDC,YB110,SUPERVISION/MANAGEMENT SPECIAL,ELECTRICITY,1120,30-Jan-19,145586,15.19,BRITISH GAS,BRI040
EFDC,YB110,SUPERVISION/MANAGEMENT SPECIAL,ELECTRICITY,1120,30-Jan-19,145586,25.05,BRITISH GAS,BRI040
EFDC,YB110,SUPERVISION/MANAGEMENT SPECIAL,ELECTRICITY,1120,30-Jan-19,145586,16.65,BRITISH GAS,BRI040
EFDC,YB110,SUPERVISION/MANAGEMENT SPECIAL,ELECTRICITY,1120,30-Jan-19,145586,16.1,BRITISH GAS,BRI040
EFDC,YB110,SUPERVISION/MANAGEMENT SPECIAL,ELECTRICITY,1120,30-Jan-19,145586,16.67,BRITISH GAS,BRI040
EFDC,YB110,SUPERVISION/MANAGEMENT SPECIAL,ELECTRICITY,1120,30-Jan-19,145586,12.91,BRITISH GAS,BRI040
EFDC,YB110,SUPERVISION/MANAGEMENT SPECIAL,ELECTRICITY,1120,30-Jan-19,145586,18.74,BRITISH GAS,BRI040
EFDC,YB110,SUPERVISION/MANAGEMENT SPECIAL,ELECTRICITY,1120,30-Jan-19,145586,16.2,BRITISH GAS,BRI040
EFDC,YB110,SUPERVISION/MANAGEMENT SPECIAL,ELECTRICITY,1120,30-Jan-19,145586,7.12,BRITISH GAS,BRI040
EFDC,YB110,SUPERVISION/MANAGEMENT SPECIAL,ELECTRICITY,1120,30-Jan-19,145586,11.92,BRITISH GAS,BRI040
EFDC,YB110,SUPERVISION/MANAGEMENT SPECIAL,ELECTRICITY,1120,30-Jan-19,145586,36.63,BRITISH GAS,BRI040
EFDC,YB110,SUPERVISION/MANAGEMENT SPECIAL,ELECTRICITY,1120,30-Jan-19,145586,6.9,BRITISH GAS,BRI040
EFDC,YB110,SUPERVISION/MANAGEMENT SPECIAL,ELECTRICITY,1120,30-Jan-19,145586,6.9,BRITISH GAS,BRI040
EFDC,YB110,SUPERVISION/MANAGEMENT SPECIAL,ELECTRICITY,1120,30-Jan-19,145586,40.97,BRITISH GAS,BRI040
EFDC,YB110,SUPERVISION/MANAGEMENT SPECIAL,ELECTRICITY,1120,30-Jan-19,145586,40.02,BRITISH GAS,BRI040
EFDC,YB110,SUPERVISION/MANAGEMENT SPECIAL,ELECTRICITY,1120,30-Jan-19,145586,56.72,BRITISH GAS,BRI040
EFDC,YB110,SUPERVISION/MANAGEMENT SPECIAL,ELECTRICITY,1120,30-Jan-19,145586,14.74,BRITISH GAS,BRI040
EFDC,YB110,SUPERVISION/MANAGEMENT SPECIAL,ELECTRICITY,1120,30-Jan-19,145586,14.5,BRITISH GAS,BRI040
EFDC,YB110,SUPERVISION/MANAGEMENT SPECIAL,ELECTRICITY,1120,30-Jan-19,145586,45.69,BRITISH GAS,BRI040
EFDC,YB110,SUPERVISION/MANAGEMENT SPECIAL,ELECTRICITY,1120,30-Jan-19,145586,101.38,BRITISH GAS,BRI040
EFDC,YB110,SUPERVISION/MANAGEMENT SPECIAL,ELECTRICITY,1120,30-Jan-19,145586,15.18,BRITISH GAS,BRI040
EFDC,YB110,SUPERVISION/MANAGEMENT SPECIAL,ELECTRICITY,1120,30-Jan-19,145586,65,BRITISH GAS,BRI040
EFDC,YB110,SUPERVISION/MANAGEMENT SPECIAL,ELECTRICITY,1120,30-Jan-19,145586,35.92,BRITISH GAS,BRI040
EFDC,YB110,SUPERVISION/MANAGEMENT SPECIAL,ELECTRICITY,1120,30-Jan-19,145586,25.63,BRITISH GAS,BRI040
EFDC,YB110,SUPERVISION/MANAGEMENT SPECIAL,ELECTRICITY,1120,30-Jan-19,145586,14.62,BRITISH GAS,BRI040
EFDC,YB110,SUPERVISION/MANAGEMENT SPECIAL,ELECTRICITY,1120,30-Jan-19,145586,-9.11,BRITISH GAS,BRI040
EFDC,YB110,SUPERVISION/MANAGEMENT SPECIAL,ELECTRICITY,1120,30-Jan-19,145586,7.12,BRITISH GAS,BRI040
EFDC,YB110,SUPERVISION/MANAGEMENT SPECIAL,ELECTRICITY,1120,30-Jan-19,145586,148.97,BRITISH GAS,BRI040
EFDC,YB110,SUPERVISION/MANAGEMENT SPECIAL,ELECTRICITY,1120,30-Jan-19,145586,-72.78,BRITISH GAS,BRI040
EFDC,YB110,SUPERVISION/MANAGEMENT SPECIAL,ELECTRICITY,1120,30-Jan-19,145586,-9.95,BRITISH GAS,BRI040
EFDC,YB110,SUPERVISION/MANAGEMENT SPECIAL,ELECTRICITY,1120,30-Jan-19,145586,-6.93,BRITISH GAS,BRI040
EFDC,YB110,SUPERVISION/MANAGEMENT SPECIAL,ELECTRICITY,1120,30-Jan-19,145586,-157.45,BRITISH GAS,BRI040
EFDC,YB110,SUPERVISION/MANAGEMENT SPECIAL,ELECTRICITY,1120,30-Jan-19,145586,6.9,BRITISH GAS,BRI040
EFDC,YB110,SUPERVISION/MANAGEMENT SPECIAL,ELECTRICITY,1120,30-Jan-19,145586,-9.03,BRITISH GAS,BRI040
EFDC,YB110,SUPERVISION/MANAGEMENT SPECIAL,ELECTRICITY,1120,30-Jan-19,145586,14.39,BRITISH GAS,BRI040
EFDC,YB110,SUPERVISION/MANAGEMENT SPECIAL,ELECTRICITY,1120,30-Jan-19,145586,-25.57,BRITISH GAS,BRI040
EFDC,YB110,SUPERVISION/MANAGEMENT SPECIAL,ELECTRICITY,1120,30-Jan-19,145586,17.4,BRITISH GAS,BRI040
EFDC,YB110,SUPERVISION/MANAGEMENT SPECIAL,ELECTRICITY,1120,30-Jan-19,145586,11.68,BRITISH GAS,BRI040
EFDC,YB110,SUPERVISION/MANAGEMENT SPECIAL,ELECTRICITY,1120,30-Jan-19,145586,16.33,BRITISH GAS,BRI040
EFDC,YB110,SUPERVISION/MANAGEMENT SPECIAL,ELECTRICITY,1120,30-Jan-19,145586,21.38,BRITISH GAS,BRI040
EFDC,YB110,SUPERVISION/MANAGEMENT SPECIAL,ELECTRICITY,1120,30-Jan-19,145586,12.7,BRITISH GAS,BRI040
EFDC,YB110,SUPERVISION/MANAGEMENT SPECIAL,ELECTRICITY,1120,30-Jan-19,145586,-8.89,BRITISH GAS,BRI040
EFDC,YB110,SUPERVISION/MANAGEMENT SPECIAL,ELECTRICITY,1120,30-Jan-19,145586,16.36,BRITISH GAS,BRI040
EFDC,YB110,SUPERVISION/MANAGEMENT SPECIAL,ELECTRICITY,1120,30-Jan-19,145586,16.92,BRITISH GAS,BRI040
EFDC,YB110,SUPERVISION/MANAGEMENT SPECIAL,ELECTRICITY,1120,30-Jan-19,145586,16.15,BRITISH GAS,BRI040
EFDC,YB110,SUPERVISION/MANAGEMENT SPECIAL,ELECTRICITY,1120,30-Jan-19,145586,17.9,BRITISH GAS,BRI040
EFDC,YB110,SUPERVISION/MANAGEMENT SPECIAL,ELECTRICITY,1120,30-Jan-19,145586,17.79,BRITISH GAS,BRI040
EFDC,YB110,SUPERVISION/MANAGEMENT SPECIAL,ELECTRICITY,1120,30-Jan-19,145586,16.15,BRITISH GAS,BRI040
EFDC,YB110,SUPERVISION/MANAGEMENT SPECIAL,ELECTRICITY,1120,30-Jan-19,145586,104.48,BRITISH GAS,BRI040
EFDC,YB110,SUPERVISION/MANAGEMENT SPECIAL,ELECTRICITY,1120,30-Jan-19,145586,13.46,BRITISH GAS,BRI040
EFDC,YB110,SUPERVISION/MANAGEMENT SPECIAL,ELECTRICITY,1120,30-Jan-19,145586,18.64,BRITISH GAS,BRI040
EFDC,YB110,SUPERVISION/MANAGEMENT SPECIAL,ELECTRICITY,1120,30-Jan-19,145586,17.14,BRITISH GAS,BRI040
EFDC,YB110,SUPERVISION/MANAGEMENT SPECIAL,ELECTRICITY,1120,30-Jan-19,145586,17.53,BRITISH GAS,BRI040
EFDC,YB110,SUPERVISION/MANAGEMENT SPECIAL,ELECTRICITY,1120,30-Jan-19,145586,18.44,BRITISH GAS,BRI040
EFDC,YB110,SUPERVISION/MANAGEMENT SPECIAL,ELECTRICITY,1120,30-Jan-19,145586,18.11,BRITISH GAS,BRI040
EFDC,YB110,SUPERVISION/MANAGEMENT SPECIAL,ELECTRICITY,1120,30-Jan-19,145586,22.26,BRITISH GAS,BRI040
EFDC,YB110,SUPERVISION/MANAGEMENT SPECIAL,ELECTRICITY,1120,30-Jan-19,145586,21.95,BRITISH GAS,BRI040
EFDC,YB110,SUPERVISION/MANAGEMENT SPECIAL,ELECTRICITY,1120,30-Jan-19,145586,19.17,BRITISH GAS,BRI040
EFDC,YB110,SUPERVISION/MANAGEMENT SPECIAL,ELECTRICITY,1120,30-Jan-19,145586,13.54,BRITISH GAS,BRI040
EFDC,YB110,SUPERVISION/MANAGEMENT SPECIAL,ELECTRICITY,1120,30-Jan-19,145586,13.45,BRITISH GAS,BRI040
EFDC,YB110,SUPERVISION/MANAGEMENT SPECIAL,ELECTRICITY,1120,30-Jan-19,145586,13.45,BRITISH GAS,BRI040
EFDC,YB110,SUPERVISION/MANAGEMENT SPECIAL,ELECTRICITY,1120,30-Jan-19,145586,20.85,BRITISH GAS,BRI040
EFDC,YB110,SUPERVISION/MANAGEMENT SPECIAL,ELECTRICITY,1120,30-Jan-19,145586,15.94,BRITISH GAS,BRI040
EFDC,YB110,SUPERVISION/MANAGEMENT SPECIAL,ELECTRICITY,1120,30-Jan-19,145586,13.62,BRITISH GAS,BRI040
EFDC,YB110,SUPERVISION/MANAGEMENT SPECIAL,ELECTRICITY,1120,30-Jan-19,145586,10.45,BRITISH GAS,BRI040
EFDC,YB110,SUPERVISION/MANAGEMENT SPECIAL,ELECTRICITY,1120,30-Jan-19,145586,14.73,BRITISH GAS,BRI040
EFDC,YB110,SUPERVISION/MANAGEMENT SPECIAL,ELECTRICITY,1120,30-Jan-19,145586,56.08,BRITISH GAS,BRI040
EFDC,YB110,SUPERVISION/MANAGEMENT SPECIAL,ELECTRICITY,1120,30-Jan-19,145586,16.89,BRITISH GAS,BRI040
EFDC,YB110,SUPERVISION/MANAGEMENT SPECIAL,ELECTRICITY,1120,30-Jan-19,145586,15.29,BRITISH GAS,BRI040
EFDC,YB110,SUPERVISION/MANAGEMENT SPECIAL,ELECTRICITY,1120,30-Jan-19,145586,16.65,BRITISH GAS,BRI040
EFDC,YB110,SUPERVISION/MANAGEMENT SPECIAL,ELECTRICITY,1120,30-Jan-19,145586,12.57,BRITISH GAS,BRI040
EFDC,YB110,SUPERVISION/MANAGEMENT SPECIAL,ELECTRICITY,1120,30-Jan-19,145586,10.9,BRITISH GAS,BRI040
EFDC,YB110,SUPERVISION/MANAGEMENT SPECIAL,ELECTRICITY,1120,30-Jan-19,145586,13.02,BRITISH GAS,BRI040
EFDC,YB110,SUPERVISION/MANAGEMENT SPECIAL,ELECTRICITY,1120,30-Jan-19,145586,14.49,BRITISH GAS,BRI040
EFDC,YB110,SUPERVISION/MANAGEMENT SPECIAL,ELECTRICITY,1120,30-Jan-19,145586,17.72,BRITISH GAS,BRI040
EFDC,YB110,SUPERVISION/MANAGEMENT SPECIAL,ELECTRICITY,1120,30-Jan-19,145586,15.7,BRITISH GAS,BRI040
EFDC,YB110,SUPERVISION/MANAGEMENT SPECIAL,ELECTRICITY,1120,30-Jan-19,145586,13.62,BRITISH GAS,BRI040
EFDC,YB110,SUPERVISION/MANAGEMENT SPECIAL,ELECTRICITY,1120,30-Jan-19,145586,22.14,BRITISH GAS,BRI040
EFDC,YB110,SUPERVISION/MANAGEMENT SPECIAL,ELECTRICITY,1120,30-Jan-19,145586,13.37,BRITISH GAS,BRI040
EFDC,YB110,SUPERVISION/MANAGEMENT SPECIAL,ELECTRICITY,1120,30-Jan-19,145586,13.08,BRITISH GAS,BRI040
EFDC,YB110,SUPERVISION/MANAGEMENT SPECIAL,ELECTRICITY,1120,30-Jan-19,145586,13.9,BRITISH GAS,BRI040
EFDC,YB110,SUPERVISION/MANAGEMENT SPECIAL,ELECTRICITY,1120,30-Jan-19,145586,20.56,BRITISH GAS,BRI040
EFDC,YB110,SUPERVISION/MANAGEMENT SPECIAL,ELECTRICITY,1120,30-Jan-19,145586,15.01,BRITISH GAS,BRI040
EFDC,YB110,SUPERVISION/MANAGEMENT SPECIAL,ELECTRICITY,1120,30-Jan-19,145586,17.72,BRITISH GAS,BRI040
EFDC,YB110,SUPERVISION/MANAGEMENT SPECIAL,ELECTRICITY,1120,30-Jan-19,145586,12.58,BRITISH GAS,BRI040
EFDC,YB110,SUPERVISION/MANAGEMENT SPECIAL,ELECTRICITY,1120,30-Jan-19,145586,15.71,BRITISH GAS,BRI040
EFDC,YB110,SUPERVISION/MANAGEMENT SPECIAL,ELECTRICITY,1120,30-Jan-19,145586,14.67,BRITISH GAS,BRI040
EFDC,YB110,SUPERVISION/MANAGEMENT SPECIAL,ELECTRICITY,1120,30-Jan-19,145586,36.96,BRITISH GAS,BRI040
EFDC,YB110,SUPERVISION/MANAGEMENT SPECIAL,ELECTRICITY,1120,30-Jan-19,145586,32.22,BRITISH GAS,BRI040
EFDC,YB110,SUPERVISION/MANAGEMENT SPECIAL,ELECTRICITY,1120,30-Jan-19,145586,79.23,BRITISH GAS,BRI040
EFDC,YB110,SUPERVISION/MANAGEMENT SPECIAL,ELECTRICITY,1120,30-Jan-19,145586,13.29,BRITISH GAS,BRI040
EFDC,YB110,SUPERVISION/MANAGEMENT SPECIAL,ELECTRICITY,1120,30-Jan-19,145586,14.7,BRITISH GAS,BRI040
EFDC,YB110,SUPERVISION/MANAGEMENT SPECIAL,ELECTRICITY,1120,30-Jan-19,145586,35.01,BRITISH GAS,BRI040
EFDC,YB110,SUPERVISION/MANAGEMENT SPECIAL,ELECTRICITY,1120,30-Jan-19,145586,7.12,BRITISH GAS,BRI040
EFDC,YB110,SUPERVISION/MANAGEMENT SPECIAL,ELECTRICITY,1120,30-Jan-19,145586,11.75,BRITISH GAS,BRI040
EFDC,YB110,SUPERVISION/MANAGEMENT SPECIAL,ELECTRICITY,1120,30-Jan-19,145586,12.83,BRITISH GAS,BRI040
EFDC,YB110,SUPERVISION/MANAGEMENT SPECIAL,ELECTRICITY,1120,30-Jan-19,145586,36.05,BRITISH GAS,BRI040
EFDC,YB110,SUPERVISION/MANAGEMENT SPECIAL,ELECTRICITY,1120,30-Jan-19,145586,13.23,BRITISH GAS,BRI040
EFDC,YB110,SUPERVISION/MANAGEMENT SPECIAL,ELECTRICITY,1120,30-Jan-19,145586,13.18,BRITISH GAS,BRI040
EFDC,YB110,SUPERVISION/MANAGEMENT SPECIAL,ELECTRICITY,1120,30-Jan-19,145586,12.42,BRITISH GAS,BRI040
EFDC,YB110,SUPERVISION/MANAGEMENT SPECIAL,ELECTRICITY,1120,30-Jan-19,145586,14.76,BRITISH GAS,BRI040
EFDC,YB110,SUPERVISION/MANAGEMENT SPECIAL,ELECTRICITY,1120,30-Jan-19,145586,11.63,BRITISH GAS,BRI040
EFDC,YB110,SUPERVISION/MANAGEMENT SPECIAL,ELECTRICITY,1120,30-Jan-19,145586,14.33,BRITISH GAS,BRI040
EFDC,YB110,SUPERVISION/MANAGEMENT SPECIAL,ELECTRICITY,1120,30-Jan-19,145586,11.66,BRITISH GAS,BRI040
EFDC,YB110,SUPERVISION/MANAGEMENT SPECIAL,ELECTRICITY,1120,30-Jan-19,145586,13.67,BRITISH GAS,BRI040
EFDC,YB110,SUPERVISION/MANAGEMENT SPECIAL,ELECTRICITY,1120,30-Jan-19,145586,25.47,BRITISH GAS,BRI040
EFDC,YB110,SUPERVISION/MANAGEMENT SPECIAL,ELECTRICITY,1120,30-Jan-19,145586,19.5,BRITISH GAS,BRI040
EFDC,YB110,SUPERVISION/MANAGEMENT SPECIAL,ELECTRICITY,1120,30-Jan-19,145586,6.3,BRITISH GAS,BRI040
EFDC,YB110,SUPERVISION/MANAGEMENT SPECIAL,ELECTRICITY,1120,30-Jan-19,145586,43.02,BRITISH GAS,BRI040
EFDC,YB110,SUPERVISION/MANAGEMENT SPECIAL,ELECTRICITY,1120,30-Jan-19,145586,23.23,BRITISH GAS,BRI040
EFDC,YB110,SUPERVISION/MANAGEMENT SPECIAL,ELECTRICITY,1120,30-Jan-19,145586,23.63,BRITISH GAS,BRI040
EFDC,YB110,SUPERVISION/MANAGEMENT SPECIAL,ELECTRICITY,1120,30-Jan-19,145586,27.95,BRITISH GAS,BRI040
EFDC,YB110,SUPERVISION/MANAGEMENT SPECIAL,ELECTRICITY,1120,30-Jan-19,145586,36.14,BRITISH GAS,BRI040
EFDC,YB110,SUPERVISION/MANAGEMENT SPECIAL,ELECTRICITY,1120,30-Jan-19,145586,20.56,BRITISH GAS,BRI040
EFDC,YB110,SUPERVISION/MANAGEMENT SPECIAL,ELECTRICITY,1120,30-Jan-19,145586,26.6,BRITISH GAS,BRI040
EFDC,YB110,SUPERVISION/MANAGEMENT SPECIAL,ELECTRICITY,1120,30-Jan-19,145586,14.9,BRITISH GAS,BRI040
EFDC,YB110,SUPERVISION/MANAGEMENT SPECIAL,ELECTRICITY,1120,30-Jan-19,145586,15.97,BRITISH GAS,BRI040
EFDC,YB110,SUPERVISION/MANAGEMENT SPECIAL,ELECTRICITY,1120,30-Jan-19,145586,7.87,BRITISH GAS,BRI040
EFDC,YB110,SUPERVISION/MANAGEMENT SPECIAL,ELECTRICITY,1120,30-Jan-19,145586,22.2,BRITISH GAS,BRI040
EFDC,YB110,SUPERVISION/MANAGEMENT SPECIAL,ELECTRICITY,1120,30-Jan-19,145586,11.57,BRITISH GAS,BRI040
EFDC,YB110,SUPERVISION/MANAGEMENT SPECIAL,ELECTRICITY,1120,30-Jan-19,145586,11.11,BRITISH GAS,BRI040
EFDC,YB110,SUPERVISION/MANAGEMENT SPECIAL,ELECTRICITY,1120,30-Jan-19,145586,6.23,BRITISH GAS,BRI040
EFDC,YB110,SUPERVISION/MANAGEMENT SPECIAL,ELECTRICITY,1120,30-Jan-19,145586,33.1,BRITISH GAS,BRI040
EFDC,YB110,SUPERVISION/MANAGEMENT SPECIAL,ELECTRICITY,1120,30-Jan-19,145586,32.67,BRITISH GAS,BRI040
EFDC,YB110,SUPERVISION/MANAGEMENT SPECIAL,ELECTRICITY,1120,30-Jan-19,145586,21.7,BRITISH GAS,BRI040
EFDC,YB110,SUPERVISION/MANAGEMENT SPECIAL,ELECTRICITY,1120,30-Jan-19,145586,29.97,BRITISH GAS,BRI040
EFDC,YB110,SUPERVISION/MANAGEMENT SPECIAL,ELECTRICITY,1120,30-Jan-19,145586,31.63,BRITISH GAS,BRI040
EFDC,YB110,SUPERVISION/MANAGEMENT SPECIAL,ELECTRICITY,1120,30-Jan-19,145586,20.56,BRITISH GAS,BRI040
EFDC,YB110,SUPERVISION/MANAGEMENT SPECIAL,ELECTRICITY,1120,30-Jan-19,145586,25.08,BRITISH GAS,BRI040
EFDC,YB110,SUPERVISION/MANAGEMENT SPECIAL,ELECTRICITY,1120,30-Jan-19,145586,15.4,BRITISH GAS,BRI040
EFDC,YB110,SUPERVISION/MANAGEMENT SPECIAL,ELECTRICITY,1120,30-Jan-19,145586,23.59,BRITISH GAS,BRI040
EFDC,YB110,SUPERVISION/MANAGEMENT SPECIAL,ELECTRICITY,1120,30-Jan-19,145586,21.55,BRITISH GAS,BRI040
EFDC,YB110,SUPERVISION/MANAGEMENT SPECIAL,ELECTRICITY,1120,30-Jan-19,145586,15.64,BRITISH GAS,BRI040
EFDC,YB110,SUPERVISION/MANAGEMENT SPECIAL,ELECTRICITY,1120,30-Jan-19,145586,13.09,BRITISH GAS,BRI040
EFDC,YB110,SUPERVISION/MANAGEMENT SPECIAL,ELECTRICITY,1120,30-Jan-19,145586,14.02,BRITISH GAS,BRI040
EFDC,YB110,SUPERVISION/MANAGEMENT SPECIAL,ELECTRICITY,1120,30-Jan-19,145586,14.55,BRITISH GAS,BRI040
EFDC,YB110,SUPERVISION/MANAGEMENT SPECIAL,ELECTRICITY,1120,30-Jan-19,145586,12.9,BRITISH GAS,BRI040
EFDC,YB110,SUPERVISION/MANAGEMENT SPECIAL,ELECTRICITY,1120,30-Jan-19,145586,15.45,BRITISH GAS,BRI040
EFDC,YB110,SUPERVISION/MANAGEMENT SPECIAL,ELECTRICITY,1120,30-Jan-19,145586,5.34,BRITISH GAS,BRI040
EFDC,YB110,SUPERVISION/MANAGEMENT SPECIAL,ELECTRICITY,1120,30-Jan-19,145586,24.26,BRITISH GAS,BRI040
EFDC,YB500,SUPERVISION/MANAGEMENT SPECIAL,ELECTRICITY,1120,30-Jan-19,145586,17.24,BRITISH GAS,BRI040
EFDC,YB500,SUPERVISION/MANAGEMENT SPECIAL,ELECTRICITY,1120,30-Jan-19,145586,15.52,BRITISH GAS,BRI040
EFDC,YB500,SUPERVISION/MANAGEMENT SPECIAL,ELECTRICITY,1120,30-Jan-19,145586,65.53,BRITISH GAS,BRI040
EFDC,YB520,SUPERVISION/MANAGEMENT SPECIAL,ELECTRICITY,1120,30-Jan-19,145586,135.08,BRITISH GAS,BRI040
EFDC,YB520,SUPERVISION/MANAGEMENT SPECIAL,ELECTRICITY,1120,30-Jan-19,145586,199.5,BRITISH GAS,BRI040
EFDC,YB500,SUPERVISION/MANAGEMENT SPECIAL,ELECTRICITY,1120,30-Jan-19,145586,48.98,BRITISH GAS,BRI040
EFDC,YB500,SUPERVISION/MANAGEMENT SPECIAL,ELECTRICITY,1120,30-Jan-19,145586,16.84,BRITISH GAS,BRI040
EFDC,YB500,SUPERVISION/MANAGEMENT SPECIAL,ELECTRICITY,1120,30-Jan-19,145586,386.24,BRITISH GAS,BRI040
EFDC,YB500,SUPERVISION/MANAGEMENT SPECIAL,ELECTRICITY,1120,30-Jan-19,145586,10.17,BRITISH GAS,BRI040
EFDC,YB500,SUPERVISION/MANAGEMENT SPECIAL,ELECTRICITY,1120,30-Jan-19,145586,6.01,BRITISH GAS,BRI040
EFDC,YB500,SUPERVISION/MANAGEMENT SPECIAL,ELECTRICITY,1120,30-Jan-19,145586,299.31,BRITISH GAS,BRI040
EFDC,YB500,SUPERVISION/MANAGEMENT SPECIAL,ELECTRICITY,1120,30-Jan-19,145586,49.16,BRITISH GAS,BRI040
EFDC,YB500,SUPERVISION/MANAGEMENT SPECIAL,ELECTRICITY,1120,30-Jan-19,145586,6.75,BRITISH GAS,BRI040
EFDC,YB500,SUPERVISION/MANAGEMENT SPECIAL,ELECTRICITY,1120,30-Jan-19,145586,15.9,BRITISH GAS,BRI040
EFDC,YB500,SUPERVISION/MANAGEMENT SPECIAL,ELECTRICITY,1120,30-Jan-19,145586,329.72,BRITISH GAS,BRI040
EFDC,YB500,SUPERVISION/MANAGEMENT SPECIAL,ELECTRICITY,1120,30-Jan-19,145586,494.58,BRITISH GAS,BRI040
EFDC,YB500,SUPERVISION/MANAGEMENT SPECIAL,ELECTRICITY,1120,30-Jan-19,145586,35,BRITISH GAS,BRI040
EFDC,YB500,SUPERVISION/MANAGEMENT SPECIAL,ELECTRICITY,1120,30-Jan-19,145586,597.76,BRITISH GAS,BRI040
EFDC,YB500,SUPERVISION/MANAGEMENT SPECIAL,ELECTRICITY,1120,30-Jan-19,145586,17.79,BRITISH GAS,BRI040
EFDC,YB500,SUPERVISION/MANAGEMENT SPECIAL,ELECTRICITY,1120,30-Jan-19,145586,53.46,BRITISH GAS,BRI040
EFDC,YB500,SUPERVISION/MANAGEMENT SPECIAL,ELECTRICITY,1120,30-Jan-19,145586,214.06,BRITISH GAS,BRI040
EFDC,YB500,SUPERVISION/MANAGEMENT SPECIAL,ELECTRICITY,1120,30-Jan-19,145586,365.14,BRITISH GAS,BRI040
EFDC,YB500,SUPERVISION/MANAGEMENT SPECIAL,ELECTRICITY,1120,30-Jan-19,145586,6.1,BRITISH GAS,BRI040
EFDC,YB500,SUPERVISION/MANAGEMENT SPECIAL,ELECTRICITY,1120,30-Jan-19,145586,15.91,BRITISH GAS,BRI040
EFDC,YB500,SUPERVISION/MANAGEMENT SPECIAL,ELECTRICITY,1120,30-Jan-19,145586,6.85,BRITISH GAS,BRI040
EFDC,YB500,SUPERVISION/MANAGEMENT SPECIAL,ELECTRICITY,1120,30-Jan-19,145586,11.7,BRITISH GAS,BRI040
EFDC,YB500,SUPERVISION/MANAGEMENT SPECIAL,ELECTRICITY,1120,30-Jan-19,145586,57.33,BRITISH GAS,BRI040
EFDC,YB500,SUPERVISION/MANAGEMENT SPECIAL,ELECTRICITY,1120,30-Jan-19,145586,8.89,BRITISH GAS,BRI040
EFDC,YB500,SUPERVISION/MANAGEMENT SPECIAL,ELECTRICITY,1120,30-Jan-19,145586,6.9,BRITISH GAS,BRI040
EFDC,EH160,OTHER ACTIVITIES,ELECTRICITY,1120,30-Jan-19,145586,35.9,BRITISH GAS,BRI040
EFDC,EH160,OTHER ACTIVITIES,ELECTRICITY,1120,30-Jan-19,145586,41.95,BRITISH GAS,BRI040
EFDC,EH160,OTHER ACTIVITIES,ELECTRICITY,1120,30-Jan-19,145586,7.24,BRITISH GAS,BRI040
EFDC,EH160,OTHER ACTIVITIES,ELECTRICITY,1120,30-Jan-19,145586,42.26,BRITISH GAS,BRI040
EFDC,FD100,LAND DRAINAGE/SEWERAGE,ELECTRICITY,1120,30-Jan-19,145586,6.1,BRITISH GAS,BRI040
EFDC,RS301,NORTH WEALD CENTRE,ELECTRICITY,1120,30-Jan-19,145586,13.45,BRITISH GAS,BRI040
EFDC,RS302,NORTH WEALD CENTRE,ELECTRICITY,1120,30-Jan-19,145586,6.75,BRITISH GAS,BRI040
EFDC,TI190,LAND & PROPERTY,ELECTRICITY,1120,30-Jan-19,145586,65.67,BRITISH GAS,BRI040
EFDC,35300,CONTRACT & TECH SUPPORT SERVIC,ELECTRICITY,1120,30-Jan-19,145586,14.07,BRITISH GAS,BRI040
EFDC,CH110,"MUSEUM, HERITAGE & CULTURE",ELECTRICITY,1120,30-Jan-19,145586,355.56,BRITISH GAS,BRI040
EFDC,EH160,OTHER ACTIVITIES,ELECTRICITY,1120,30-Jan-19,145586,62.76,BRITISH GAS,BRI040
EFDC,EH112,LAND DRAINAGE/SEWERAGE,ELECTRICITY,1120,30-Jan-19,145586,179.02,BRITISH GAS,BRI040
EFDC,YB620,SUPERVISION/MANAGEMENT SPECIAL,ELECTRICITY,1120,30-Jan-19,145586,387.97,BRITISH GAS,BRI040
EFDC,27110,ACCOMMODATION,ELECTRICITY,1120,30-Jan-19,145586,80.28,BRITISH GAS,BRI040
EFDC,27110,ACCOMMODATION,ELECTRICITY,1120,30-Jan-19,145586,58.39,BRITISH GAS,BRI040
EFDC,27110,ACCOMMODATION,ELECTRICITY,1120,30-Jan-19,145586,121.68,BRITISH GAS,BRI040
EFDC,23130,ACCOMMODATION,ELECTRICITY,1120,30-Jan-19,145586,138.13,BRITISH GAS,BRI040
EFDC,UO130,LAND & PROPERTY,ELECTRICITY,1120,30-Jan-19,145586,3.32,BRITISH GAS,BRI040
EFDC,UO130,LAND & PROPERTY,ELECTRICITY,1120,30-Jan-19,145586,23.47,BRITISH GAS,BRI040
EFDC,UO130,LAND & PROPERTY,ELECTRICITY,1120,30-Jan-19,145586,22.11,BRITISH GAS,BRI040
EFDC,UO130,LAND & PROPERTY,ELECTRICITY,1120,30-Jan-19,145586,25.51,BRITISH GAS,BRI040
EFDC,UO130,LAND & PROPERTY,ELECTRICITY,1120,30-Jan-19,145586,16.86,BRITISH GAS,BRI040
EFDC,23140,ACCOMMODATION,ELECTRICITY,1120,30-Jan-19,145586,751.93,BRITISH GAS,BRI040
EFDC,23140,ACCOMMODATION,ELECTRICITY,1120,30-Jan-19,145586,410.74,BRITISH GAS,BRI040
EFDC,27050,ACCOMMODATION,ELECTRICITY,1120,30-Jan-19,145586,90.61,BRITISH GAS,BRI040
EFDC,32200,OTHER SUPPORT SERVICES,STOCK ISSUES,3070,30-Jan-19,145759,109,FULTON PAPER,FUL001
EFDC,32200,OTHER SUPPORT SERVICES,STOCK ISSUES,3070,30-Jan-19,145759,88.14,FULTON PAPER,FUL001
EFDC,32200,OTHER SUPPORT SERVICES,STOCK ISSUES,3070,30-Jan-19,145759,271.2,FULTON PAPER,FUL001
EFDC,32200,OTHER SUPPORT SERVICES,STOCK ISSUES,3070,30-Jan-19,145759,57.96,FULTON PAPER,FUL001
EFDC,33010,OTHER ACTIVITIES,SUBSCRIPTIONS,3730,30-Jan-19,144552,1450,EXPERIAN LTD,EXP002
EFDC,YB400,SUPERVISION/MANAGEMENT SPECIAL,TREE  MAINTENANCE,1070,30-Jan-19,144650,820.36,GRISTWOOD & TOMS LTD,GRI001
EFDC,CAPRS,RESOURCES CAPITAL,WORKS,B040,30-Jan-19,144568,9867.44,MITIE SECURITY LTD,MIT004
EFDC,LT120,LOCAL TAXATION,PROFESSIONAL FEES,3420,30-Jan-19,145735,1390,ACS LTD,ACS001
EFDC,DC120,PLANNING REGULATORY SERVICES,PUBLICITY,3360,30-Jan-19,145433,535.5,NEWSQUEST MEDIA GROUP,NEW002
EFDC,33080,OTHER ACTIVITIES,MOBILE PHONE LINE COSTS,3580,30-Jan-19,145622,4933.43,O2 (UK) LTD,OTW002
EFDC,37100,PLANNING SUPPORT SERVICES,AGENCY STAFF,0120,30-Jan-19,145784,525.44,REED SPECIALIST RECRUITMENT LTD,REE002
EFDC,35300,CONTRACT & TECH SUPPORT SERVIC,PROFESSIONAL FEES,3420,30-Jan-19,144895,522.83,TAMAR ORGANICS LTD,TAM004
EFDC,26200,OTHER SUPPORT SERVICES,BUILDING MAINTENANCE,1010,30-Jan-19,145018,1340,TANKER AND DRAIN SOLUTIONS LTD,TAN004
EFDC,26200,OTHER SUPPORT SERVICES,BUILDING MAINTENANCE,1010,30-Jan-19,145406,637.5,TANKER AND DRAIN SOLUTIONS LTD,TAN004
EFDC,36500,HRA SUPPORT SERVICES,RECRUITMENT EXPENSES,0320,30-Jan-19,145046,680.53,TMP WORLDWIDE LTD,TMP001
EFDC,78001,HRA SUPPORT SERVICES,MATERIALS,3080,30-Jan-19,144376,49.45,TRAVIS PERKINS TRADING COMPANY LTD,TRA001
EFDC,78001,HRA SUPPORT SERVICES,MATERIALS,3080,30-Jan-19,144376,10364.99,TRAVIS PERKINS TRADING COMPANY LTD,TRA001
EFDC,32060,OTHER SUPPORT SERVICES,RECRUITMENT EXPENSES,0320,30-Jan-19,145794,793,VENN GROUP LTD,VEN004
EFDC,EH112,LAND DRAINAGE/SEWERAGE,OTHER MAINTENANCE,1050,30-Jan-19,144896,1617.68,VEOLIA ES (UK) LTD,VER004
EFDC,32030,OTHER SUPPORT SERVICES,TRAINING EXPENSES,0310,30-Jan-19,143029,1497,ZURICH MANAGEMENT SERVICES LTD,ZUR004
EFDC,GD100,VOLUNTARY SECTOR SUPPORT,GRANTS TO VOLUNTARY ORGS,3710,30-Jan-19,145660,2125.04,VOLUNTARY ACTION EPPING FOREST,VOL004
EFDC,RM100,RESPONSIVE & VOID REPAIRS,BUILDING MAINTENANCE,1010,30-Jan-19,144406,725.38,GRACELANDS COMPLETE MAINTENANCE SERVICES LTD,GRA007
EFDC,RM100,RESPONSIVE & VOID REPAIRS,BUILDING MAINTENANCE,1010,30-Jan-19,144407,514.28,GRACELANDS COMPLETE MAINTENANCE SERVICES LTD,GRA007
EFDC,RM100,RESPONSIVE & VOID REPAIRS,BUILDING MAINTENANCE,1010,30-Jan-19,144479,1353.18,GRACELANDS COMPLETE MAINTENANCE SERVICES LTD,GRA007
EFDC,RM100,RESPONSIVE & VOID REPAIRS,BUILDING MAINTENANCE,1010,30-Jan-19,144775,1105.63,GRACELANDS COMPLETE MAINTENANCE SERVICES LTD,GRA007
EFDC,FD100,LAND DRAINAGE/SEWERAGE,HIGHWAYS CONTRACTORS,4310,30-Jan-19,144421,648,HUGH PEARL (LAND DRAINAGE) LTD,HUG001
EFDC,FD100,LAND DRAINAGE/SEWERAGE,HIGHWAYS CONTRACTORS,4310,30-Jan-19,144419,509.35,HUGH PEARL (LAND DRAINAGE) LTD,HUG001
EFDC,FD100,LAND DRAINAGE/SEWERAGE,HIGHWAYS CONTRACTORS,4310,30-Jan-19,144796,754.02,HUGH PEARL (LAND DRAINAGE) LTD,HUG001
EFDC,FD100,LAND DRAINAGE/SEWERAGE,CLEANSING CONTRACTORS,4320,30-Jan-19,144830,1243.92,HUGH PEARL (LAND DRAINAGE) LTD,HUG001
EFDC,33055,OTHER ACTIVITIES,AGENCY STAFF,0120,30-Jan-19,145773,952.75,MORGAN HUNT UK LTD,MOR001
EFDC,36650,HRA SUPPORT SERVICES,AGENCY STAFF,0120,30-Jan-19,145772,955.92,MORGAN HUNT UK LTD,MOR001
EFDC,36500,HRA SUPPORT SERVICES,AGENCY STAFF,0120,30-Jan-19,145771,879.49,MORGAN HUNT UK LTD,MOR001
EFDC,33075,OTHER ACTIVITIES,AGENCY STAFF,0120,30-Jan-19,145770,843.97,MORGAN HUNT UK LTD,MOR001
EFDC,OS110,PARKS & GROUNDS,GROUNDS MAINTENANCE,1040,30-Jan-19,144513,512.5,MATTHEW'S PLANTS,MAT001
EFDC,78001,HRA SUPPORT SERVICES,MATERIALS,3080,30-Jan-19,144540,870,CRANBROOK ELECTRICS,CRA001
EFDC,78001,HRA SUPPORT SERVICES,MATERIALS,3080,30-Jan-19,144540,438,CRANBROOK ELECTRICS,CRA001
EFDC,78001,HRA SUPPORT SERVICES,MATERIALS,3080,30-Jan-19,143974,449.5,CRANBROOK ELECTRICS,CRA001
EFDC,78001,HRA SUPPORT SERVICES,MATERIALS,3080,30-Jan-19,143974,29.94,CRANBROOK ELECTRICS,CRA001
EFDC,78001,HRA SUPPORT SERVICES,MATERIALS,3080,30-Jan-19,143974,389.9,CRANBROOK ELECTRICS,CRA001
EFDC,78001,HRA SUPPORT SERVICES,MATERIALS,3080,30-Jan-19,143974,123.33,CRANBROOK ELECTRICS,CRA001
EFDC,78001,HRA SUPPORT SERVICES,MATERIALS,3080,30-Jan-19,143974,17.58,CRANBROOK ELECTRICS,CRA001
EFDC,78001,HRA SUPPORT SERVICES,MATERIALS,3080,30-Jan-19,143974,39,CRANBROOK ELECTRICS,CRA001
EFDC,78001,HRA SUPPORT SERVICES,MATERIALS,3080,30-Jan-19,143974,17.4,CRANBROOK ELECTRICS,CRA001
EFDC,78001,HRA SUPPORT SERVICES,MATERIALS,3080,30-Jan-19,143974,69.99,CRANBROOK ELECTRICS,CRA001
EFDC,EI131,LOCAL PLAN IMPLEMENTATION,GRANTS GENERAL,3720,30-Jan-19,144294,7971.29,ESSEX WILDLIFE TRUST LTD,ESS025
EFDC,CAPCM,COMMUNITIES CAPITAL,WORKS,A040,30-Jan-19,145805,15580.97,TOWER ASPHALT LTD,TOW001
EFDC,33065,OTHER ACTIVITIES,PROFESSIONAL FEES,3420,30-Jan-19,143258,18533,BDO LLP,BDO001
EFDC,35900,CONTRACT & TECH SUPPORT SERVIC,TRAINING EXPENSES,0310,30-Jan-19,144818,535,WRITTLE COLLEGE,WRI004
EFDC,CAPCM,COMMUNITIES CAPITAL,WORKS,E040,30-Jan-19,145657,50026.8,TSG BUILDING SERVICES PLC,TSG001
EFDC,SC100,WASTE MANAGEMENT,CLEANSING CONTRACTORS,4320,30-Jan-19,144142,1280,JUST GRAB SERVICES LTD,JUS002
EFDC,SC100,WASTE MANAGEMENT,CLEANSING CONTRACTORS,4320,30-Jan-19,144518,1782.8,JUST GRAB SERVICES LTD,JUS002
EFDC,CAPCM,COMMUNITIES CAPITAL,VOIDS WORKS,A045,30-Jan-19,144298,2898,WOODS BUILDING SERVICES LTD,WOO001
EFDC,PS100,CAR PARKING,OTHER MAINTENANCE,1050,30-Jan-19,144303,1474.2,METRIC GROUP LTD,MET005
EFDC,PS100,CAR PARKING,OTHER MAINTENANCE,1050,30-Jan-19,144304,1875,METRIC GROUP LTD,MET005
EFDC,CAPRS,RESOURCES CAPITAL,EQUIPMENT ACQUISITION,C330,30-Jan-19,145011,2752.11,SEC-1 LIMITED,SEC002
EFDC,CAPCM,COMMUNITIES CAPITAL,MANAGEMENT CONSULTANT,E130,30-Jan-19,145626,2508.75,PELLINGS LLP,PEL002
EFDC,CAPCM,COMMUNITIES CAPITAL,MANAGEMENT CONSULTANT,E130,30-Jan-19,145630,456.86,PELLINGS LLP,PEL002
EFDC,CAPCM,COMMUNITIES CAPITAL,MANAGEMENT CONSULTANT,E130,30-Jan-19,145623,5017.87,PELLINGS LLP,PEL002
EFDC,CAPCM,COMMUNITIES CAPITAL,MANAGEMENT CONSULTANT,E130,30-Jan-19,145630,416.67,PELLINGS LLP,PEL002
EFDC,CAPCM,COMMUNITIES CAPITAL,MANAGEMENT CONSULTANT,E130,30-Jan-19,145629,635,PELLINGS LLP,PEL002
EFDC,CAPCM,COMMUNITIES CAPITAL,MANAGEMENT CONSULTANT,E130,30-Jan-19,145628,937.5,PELLINGS LLP,PEL002
EFDC,CAPCM,COMMUNITIES CAPITAL,MANAGEMENT CONSULTANT,E130,30-Jan-19,145627,1569.82,PELLINGS LLP,PEL002
EFDC,CAPCM,COMMUNITIES CAPITAL,MANAGEMENT CONSULTANT,E130,30-Jan-19,145627,1721.21,PELLINGS LLP,PEL002
EFDC,CAPCM,COMMUNITIES CAPITAL,MANAGEMENT CONSULTANT,E130,30-Jan-19,145625,1667.05,PELLINGS LLP,PEL002
EFDC,36650,HRA SUPPORT SERVICES,AGENCY STAFF,0120,30-Jan-19,144337,2500,THE OYSTER PARTNERSHIP LTD,OYS001
EFDC,CH110,"MUSEUM, HERITAGE & CULTURE",RENTS / HIRE OF HALL,1210,30-Jan-19,145208,1100,GRANGEWOOD INVESTMENTS LTD,GRA006
EFDC,FD100,LAND DRAINAGE/SEWERAGE,CLEANSING CONTRACTORS,4320,30-Jan-19,144403,2870,HYDRO-LOGIC SERVICES INTERNATIONAL LLP,HYD001
EFDC,CAPCM,COMMUNITIES CAPITAL,ARCHITECTS FEES,E160,30-Jan-19,145652,2000,ECD ARCHITECTS LTD,ECD001
EFDC,CAPCM,COMMUNITIES CAPITAL,ARCHITECTS FEES,E160,30-Jan-19,145651,2000,ECD ARCHITECTS LTD,ECD001
EFDC,32220,OTHER SUPPORT SERVICES,AGENCY STAFF,0120,30-Jan-19,145214,3573.38,CAPSTONE PROPERTY RECRUITMENT LTD,CAP001
EFDC,CAPCM,COMMUNITIES CAPITAL,WORKS,E040,30-Jan-19,145653,108153.87,MULALLEY & CO LTD,MUL003
EFDC,TO100,LAND & PROPERTY,VEHICLE PARTS / REPAIRS,2210,30-Jan-19,142535,1275,EURO CAR PARTS LTD,EUR005
EFDC,23130,ACCOMMODATION,CLEANING,1630,30-Jan-19,145631,202.19,ATLAS CONTRACTORS LTD,ATL001
EFDC,23130,ACCOMMODATION,CLEANING,1630,30-Jan-19,145632,12,ATLAS CONTRACTORS LTD,ATL001
EFDC,27050,ACCOMMODATION,CLEANING,1630,30-Jan-19,145631,7173.98,ATLAS CONTRACTORS LTD,ATL001
EFDC,27050,ACCOMMODATION,CLEANING,1630,30-Jan-19,145632,450,ATLAS CONTRACTORS LTD,ATL001
EFDC,23140,ACCOMMODATION,CLEANING,1630,30-Jan-19,145632,22,ATLAS CONTRACTORS LTD,ATL001
EFDC,27060,ACCOMMODATION,CLEANING,1630,30-Jan-19,145632,88,ATLAS CONTRACTORS LTD,ATL001
EFDC,27060,ACCOMMODATION,CLEANING,1630,30-Jan-19,145631,454.64,ATLAS CONTRACTORS LTD,ATL001
EFDC,23140,ACCOMMODATION,CLEANING,1630,30-Jan-19,145631,401.29,ATLAS CONTRACTORS LTD,ATL001
EFDC,27050,ACCOMMODATION,CLEANING,1630,30-Jan-19,145632,793.6,ATLAS CONTRACTORS LTD,ATL001
EFDC,23110,ACCOMMODATION,CLEANING,1630,30-Jan-19,145631,667.87,ATLAS CONTRACTORS LTD,ATL001
EFDC,RM200,RESPONSIVE & VOID REPAIRS,BUILDING MAINTENANCE,1010,30-Jan-19,144819,3087,WICKES BUILDING SUPPLIES LTD,WIC004
EFDC,CAPNB,NEIGHBOURHOODS CAPITAL,WORKS,B040,30-Jan-19,145655,126014.48,PLACES FOR PEOPLE LEISURE MANAGEMENT LTD,PLA005
EFDC,37600,PLANNING SUPPORT SERVICES,AGENCY STAFF,0120,30-Jan-19,144335,1312.5,VIVID RESOURCING LTD,VIV002
EFDC,PS100,CAR PARKING,BANKING AND CASH COLLECTION,3440,30-Jan-19,144891,1030.6,CHIPSIDE LIMITED,CHI030
EFDC,CAPCM,COMMUNITIES CAPITAL,WORKS,E040,30-Jan-19,145656,62693.63,STORM BUILDING LTD,STO007
EFDC,CAPCM,COMMUNITIES CAPITAL,VOIDS SURVEYS,A125,30-Jan-19,144203,900,GBNS PARTNERSHIP LTD,GBN003
EFDC,YA100,SUPERVISION/MANAGEMENT GENERAL,PUBLICITY,3360,30-Jan-19,145348,9382.29,THE HOUSING OMBUDSMAN,HOU010
EFDC,25301,INSURANCE JOBS,PROFESSIONAL FEES,3420,30-Jan-19,144499,1500,INGLETON  WOOD,ING001
EFDC,32120,OTHER SUPPORT SERVICES,RECRUITMENT EXPENSES,0320,30-Jan-19,145774,8990,NAVIGATE NDC LIMITED,NAV001
EFDC,26200,OTHER SUPPORT SERVICES,BUILDING MAINTENANCE,1010,30-Jan-19,144574,819.06,NCC MECHANICAL LIMITED,NNC001
EFDC,33080,OTHER ACTIVITIES,TRAINING EXPENSES,0310,30-Jan-19,145767,1200,IDEAGEN GAEL LIMITED,IDE003
EFDC,34160,HOUSING PROP SUPPORT SERVICES,CONSULTANTS FEES,3490,30-Jan-19,145366,2250,CL COMMUNICATIONS,CLC001
EFDC,WC200,WASTE MANAGEMENT,CLEANSING CONTRACTORS,4320,30-Jan-19,144436,4618,LOCAL GREEN POINTS LLP,GRE020
EFDC,RM400,PLANNED & CYCLICAL MAINTENANCE,BUILDING MAINTENANCE,1010,30-Jan-19,144967,1247,FIRST ENVIRONMENT LIMITED,FIR008
EFDC,CAPCM,COMMUNITIES CAPITAL,MANAGEMENT CONSULTANT,E130,30-Jan-19,145614,1994.34,AIREY MILLER LIMITED,AIR027
EFDC,CAPCM,COMMUNITIES CAPITAL,MANAGEMENT CONSULTANT,E130,30-Jan-19,145614,1994.34,AIREY MILLER LIMITED,AIR027
EFDC,CAPCM,COMMUNITIES CAPITAL,MANAGEMENT CONSULTANT,E130,30-Jan-19,145615,2087.09,AIREY MILLER LIMITED,AIR027
EFDC,CAPCM,COMMUNITIES CAPITAL,MANAGEMENT CONSULTANT,E130,30-Jan-19,145615,2087.09,AIREY MILLER LIMITED,AIR027
EFDC,CAPCM,COMMUNITIES CAPITAL,MANAGEMENT CONSULTANT,E130,30-Jan-19,145616,1822.42,AIREY MILLER LIMITED,AIR027
EFDC,CAPCM,COMMUNITIES CAPITAL,MANAGEMENT CONSULTANT,E130,30-Jan-19,145616,1822.44,AIREY MILLER LIMITED,AIR027
EFDC,CAPCM,COMMUNITIES CAPITAL,CLERK OF WORKS,E180,30-Jan-19,145621,2100,KEITH PEATTIE ASSOCIATES,KEI001
EFDC,PP111,LOCAL PLAN IMPLEMENTATION,CONSULTANTS FEES,3490,30-Jan-19,144457,2400,PEYTO LAW,PEY001
EFDC,26200,OTHER SUPPORT SERVICES,BUILDING MAINTENANCE,1010,30-Jan-19,145782,12826.09,RAINBOW OFFICE DESIGN LIMITED,RAI004
EFDC,DC120,PLANNING REGULATORY SERVICES,CONSULTANTS FEES,3490,30-Jan-19,144809,661.25,GREEN EARTH MANAGEMENT COMPANY LTD,GRE026
EFDC,RM200,RESPONSIVE & VOID REPAIRS,BUILDING MAINTENANCE,1010,30-Jan-19,144334,3785,JPS GROUP SERVICES LIMITED,JPS002
EFDC,BAL01,EFDC BALANCE SHEET,HOME ASST GRANT CHARGE ON PROP,Z055,05-Feb-19,31840,5059,HAINAULT HOME IMPROVEMENTS LTD,HAI002
EFDC,BAL01,EFDC BALANCE SHEET,HOME ASST GRANT CHARGE ON PROP,Z055,05-Feb-19,31836,2422.5,K.J.BATCHELOR,BAT001
EFDC,GD100,VOLUNTARY SECTOR SUPPORT,GRANTS TO VOLUNTARY ORGS,3710,05-Feb-19,31847,540,LOUGHTON VOLUNTARY CARE ASSOCIATION,559P
EFDC,BAL01,EFDC BALANCE SHEET,HOUSING RENT REFUNDS,Z613,05-Feb-19,31844,970.81,MR A HODGSON,4909P
EFDC,GD100,VOLUNTARY SECTOR SUPPORT,GRANTS TO VOLUNTARY ORGS,3710,05-Feb-19,31845,2500,HASTINGWOOD VILLAGE HALL,6481P
EFDC,GD100,VOLUNTARY SECTOR SUPPORT,GRANTS TO VOLUNTARY ORGS,3710,05-Feb-19,31691,5000,ONGAR UNITED REFORMED CHURCH,8581P
EFDC,BAL01,EFDC BALANCE SHEET,DEPOSITS - PAID,Z223,05-Feb-19,31846,600,KOSK LOUNGE LTD,8196P
EFDC,GD100,VOLUNTARY SECTOR SUPPORT,GRANTS TO VOLUNTARY ORGS,3710,05-Feb-19,31851,5000,YOUTH EMPLOYMENT STRATEGY PARTNERSHIP,7801P
EFDC,GD100,VOLUNTARY SECTOR SUPPORT,GRANTS TO VOLUNTARY ORGS,3710,05-Feb-19,31822,600,ALFIE JAMES,8408P
EFDC,GD100,VOLUNTARY SECTOR SUPPORT,GRANTS TO VOLUNTARY ORGS,3710,05-Feb-19,31837,2000,CUNNINGHAM CAN DO,8612P
EFDC,GD100,VOLUNTARY SECTOR SUPPORT,GRANTS TO VOLUNTARY ORGS,3710,05-Feb-19,31848,1630.56,LEONARD CHESHIRE DISABILITY,8617P
EFDC,32115,OTHER SUPPORT SERVICES,CONSULTANTS FEES,3490,06-Feb-19,145270,1318,CMS TRAINING LTD,CMS001
EFDC,33080,OTHER ACTIVITIES,FIXED NETWORK LINE COSTS,3520,06-Feb-19,146065,1397.52,BRITISH TELECOMMUNICATIONS PLC,BRI002
EFDC,33080,OTHER ACTIVITIES,FIXED NETWORK LINE COSTS,3520,06-Feb-19,146062,2081.52,BRITISH TELECOMMUNICATIONS PLC,BRI002
EFDC,33080,OTHER ACTIVITIES,FIXED NETWORK LINE COSTS,3520,06-Feb-19,146064,14807.64,BRITISH TELECOMMUNICATIONS PLC,BRI002
EFDC,YB110,SUPERVISION/MANAGEMENT SPECIAL,ELECTRICITY,1120,06-Feb-19,145981,49.75,BRITISH GAS,BRI040
EFDC,YB110,SUPERVISION/MANAGEMENT SPECIAL,ELECTRICITY,1120,06-Feb-19,145981,3.34,BRITISH GAS,BRI040
EFDC,YB110,SUPERVISION/MANAGEMENT SPECIAL,ELECTRICITY,1120,06-Feb-19,145981,6.52,BRITISH GAS,BRI040
EFDC,YB110,SUPERVISION/MANAGEMENT SPECIAL,ELECTRICITY,1120,06-Feb-19,145981,13.94,BRITISH GAS,BRI040
EFDC,YB110,SUPERVISION/MANAGEMENT SPECIAL,ELECTRICITY,1120,06-Feb-19,145981,11.14,BRITISH GAS,BRI040
EFDC,YB110,SUPERVISION/MANAGEMENT SPECIAL,ELECTRICITY,1120,06-Feb-19,145981,3.12,BRITISH GAS,BRI040
EFDC,YB110,SUPERVISION/MANAGEMENT SPECIAL,ELECTRICITY,1120,06-Feb-19,145981,7.35,BRITISH GAS,BRI040
EFDC,YB110,SUPERVISION/MANAGEMENT SPECIAL,ELECTRICITY,1120,06-Feb-19,145981,8.34,BRITISH GAS,BRI040
EFDC,YB110,SUPERVISION/MANAGEMENT SPECIAL,ELECTRICITY,1120,06-Feb-19,145981,36,BRITISH GAS,BRI040
EFDC,YB110,SUPERVISION/MANAGEMENT SPECIAL,ELECTRICITY,1120,06-Feb-19,145981,30.95,BRITISH GAS,BRI040
EFDC,YB110,SUPERVISION/MANAGEMENT SPECIAL,ELECTRICITY,1120,06-Feb-19,145981,6.52,BRITISH GAS,BRI040
EFDC,YB110,SUPERVISION/MANAGEMENT SPECIAL,ELECTRICITY,1120,06-Feb-19,145981,13.38,BRITISH GAS,BRI040
EFDC,YB110,SUPERVISION/MANAGEMENT SPECIAL,ELECTRICITY,1120,06-Feb-19,145981,7.57,BRITISH GAS,BRI040
EFDC,YB110,SUPERVISION/MANAGEMENT SPECIAL,ELECTRICITY,1120,06-Feb-19,145981,7.35,BRITISH GAS,BRI040
EFDC,YB110,SUPERVISION/MANAGEMENT SPECIAL,ELECTRICITY,1120,06-Feb-19,145981,11.68,BRITISH GAS,BRI040
EFDC,YB110,SUPERVISION/MANAGEMENT SPECIAL,ELECTRICITY,1120,06-Feb-19,145981,46.08,BRITISH GAS,BRI040
EFDC,YB110,SUPERVISION/MANAGEMENT SPECIAL,ELECTRICITY,1120,06-Feb-19,145981,3.34,BRITISH GAS,BRI040
EFDC,YB110,SUPERVISION/MANAGEMENT SPECIAL,ELECTRICITY,1120,06-Feb-19,145981,16.32,BRITISH GAS,BRI040
EFDC,YB110,SUPERVISION/MANAGEMENT SPECIAL,ELECTRICITY,1120,06-Feb-19,145981,16.27,BRITISH GAS,BRI040
EFDC,YB110,SUPERVISION/MANAGEMENT SPECIAL,ELECTRICITY,1120,06-Feb-19,145981,21.57,BRITISH GAS,BRI040
EFDC,YB110,SUPERVISION/MANAGEMENT SPECIAL,ELECTRICITY,1120,06-Feb-19,145981,15.02,BRITISH GAS,BRI040
EFDC,YB110,SUPERVISION/MANAGEMENT SPECIAL,ELECTRICITY,1120,06-Feb-19,145981,36.59,BRITISH GAS,BRI040
EFDC,YB110,SUPERVISION/MANAGEMENT SPECIAL,ELECTRICITY,1120,06-Feb-19,145981,63,BRITISH GAS,BRI040
EFDC,YB110,SUPERVISION/MANAGEMENT SPECIAL,ELECTRICITY,1120,06-Feb-19,145981,21.78,BRITISH GAS,BRI040
EFDC,YB110,SUPERVISION/MANAGEMENT SPECIAL,ELECTRICITY,1120,06-Feb-19,145981,28.87,BRITISH GAS,BRI040
EFDC,YB110,SUPERVISION/MANAGEMENT SPECIAL,ELECTRICITY,1120,06-Feb-19,145981,7.49,BRITISH GAS,BRI040
EFDC,YB110,SUPERVISION/MANAGEMENT SPECIAL,ELECTRICITY,1120,06-Feb-19,145981,38.22,BRITISH GAS,BRI040
EFDC,YB110,SUPERVISION/MANAGEMENT SPECIAL,ELECTRICITY,1120,06-Feb-19,145981,8.31,BRITISH GAS,BRI040
EFDC,YB110,SUPERVISION/MANAGEMENT SPECIAL,ELECTRICITY,1120,06-Feb-19,145981,3.12,BRITISH GAS,BRI040
EFDC,YB110,SUPERVISION/MANAGEMENT SPECIAL,ELECTRICITY,1120,06-Feb-19,145981,29.55,BRITISH GAS,BRI040
EFDC,YB110,SUPERVISION/MANAGEMENT SPECIAL,ELECTRICITY,1120,06-Feb-19,145981,21.88,BRITISH GAS,BRI040
EFDC,YB110,SUPERVISION/MANAGEMENT SPECIAL,ELECTRICITY,1120,06-Feb-19,145981,66.81,BRITISH GAS,BRI040
EFDC,YB110,SUPERVISION/MANAGEMENT SPECIAL,ELECTRICITY,1120,06-Feb-19,145981,15.27,BRITISH GAS,BRI040
EFDC,YB110,SUPERVISION/MANAGEMENT SPECIAL,ELECTRICITY,1120,06-Feb-19,145981,20.86,BRITISH GAS,BRI040
EFDC,YB110,SUPERVISION/MANAGEMENT SPECIAL,ELECTRICITY,1120,06-Feb-19,145981,17.09,BRITISH GAS,BRI040
EFDC,YB110,SUPERVISION/MANAGEMENT SPECIAL,ELECTRICITY,1120,06-Feb-19,145981,3.12,BRITISH GAS,BRI040
EFDC,YB110,SUPERVISION/MANAGEMENT SPECIAL,ELECTRICITY,1120,06-Feb-19,145981,11.85,BRITISH GAS,BRI040
EFDC,YB110,SUPERVISION/MANAGEMENT SPECIAL,ELECTRICITY,1120,06-Feb-19,145981,7.12,BRITISH GAS,BRI040
EFDC,YB110,SUPERVISION/MANAGEMENT SPECIAL,ELECTRICITY,1120,06-Feb-19,145981,18.81,BRITISH GAS,BRI040
EFDC,YB110,SUPERVISION/MANAGEMENT SPECIAL,ELECTRICITY,1120,06-Feb-19,145981,13.27,BRITISH GAS,BRI040
EFDC,YB110,SUPERVISION/MANAGEMENT SPECIAL,ELECTRICITY,1120,06-Feb-19,145981,7.63,BRITISH GAS,BRI040
EFDC,YB110,SUPERVISION/MANAGEMENT SPECIAL,ELECTRICITY,1120,06-Feb-19,145981,19.42,BRITISH GAS,BRI040
EFDC,YB110,SUPERVISION/MANAGEMENT SPECIAL,ELECTRICITY,1120,06-Feb-19,145981,64.16,BRITISH GAS,BRI040
EFDC,YB110,SUPERVISION/MANAGEMENT SPECIAL,ELECTRICITY,1120,06-Feb-19,145981,35.48,BRITISH GAS,BRI040
EFDC,YB110,SUPERVISION/MANAGEMENT SPECIAL,ELECTRICITY,1120,06-Feb-19,145981,67.51,BRITISH GAS,BRI040
EFDC,YB110,SUPERVISION/MANAGEMENT SPECIAL,ELECTRICITY,1120,06-Feb-19,145981,40.88,BRITISH GAS,BRI040
EFDC,YB110,SUPERVISION/MANAGEMENT SPECIAL,ELECTRICITY,1120,06-Feb-19,145981,14.06,BRITISH GAS,BRI040
EFDC,YB110,SUPERVISION/MANAGEMENT SPECIAL,ELECTRICITY,1120,06-Feb-19,145981,14.15,BRITISH GAS,BRI040
EFDC,YB110,SUPERVISION/MANAGEMENT SPECIAL,ELECTRICITY,1120,06-Feb-19,145981,11.45,BRITISH GAS,BRI040
EFDC,YB110,SUPERVISION/MANAGEMENT SPECIAL,ELECTRICITY,1120,06-Feb-19,145981,109.55,BRITISH GAS,BRI040
EFDC,YB110,SUPERVISION/MANAGEMENT SPECIAL,ELECTRICITY,1120,06-Feb-19,145981,11.84,BRITISH GAS,BRI040
EFDC,YB110,SUPERVISION/MANAGEMENT SPECIAL,ELECTRICITY,1120,06-Feb-19,145981,7.12,BRITISH GAS,BRI040
EFDC,YB110,SUPERVISION/MANAGEMENT SPECIAL,ELECTRICITY,1120,06-Feb-19,145981,11.98,BRITISH GAS,BRI040
EFDC,YB110,SUPERVISION/MANAGEMENT SPECIAL,ELECTRICITY,1120,06-Feb-19,145981,9.67,BRITISH GAS,BRI040
EFDC,YB110,SUPERVISION/MANAGEMENT SPECIAL,ELECTRICITY,1120,06-Feb-19,145981,14.92,BRITISH GAS,BRI040
EFDC,YB110,SUPERVISION/MANAGEMENT SPECIAL,ELECTRICITY,1120,06-Feb-19,145981,14.96,BRITISH GAS,BRI040
EFDC,YB110,SUPERVISION/MANAGEMENT SPECIAL,ELECTRICITY,1120,06-Feb-19,145981,19.65,BRITISH GAS,BRI040
EFDC,YB110,SUPERVISION/MANAGEMENT SPECIAL,ELECTRICITY,1120,06-Feb-19,145981,51.46,BRITISH GAS,BRI040
EFDC,YB110,SUPERVISION/MANAGEMENT SPECIAL,ELECTRICITY,1120,06-Feb-19,145981,13.92,BRITISH GAS,BRI040
EFDC,YB110,SUPERVISION/MANAGEMENT SPECIAL,ELECTRICITY,1120,06-Feb-19,145981,16.65,BRITISH GAS,BRI040
EFDC,YB110,SUPERVISION/MANAGEMENT SPECIAL,ELECTRICITY,1120,06-Feb-19,145981,13.79,BRITISH GAS,BRI040
EFDC,YB110,SUPERVISION/MANAGEMENT SPECIAL,ELECTRICITY,1120,06-Feb-19,145981,14.28,BRITISH GAS,BRI040
EFDC,YB110,SUPERVISION/MANAGEMENT SPECIAL,ELECTRICITY,1120,06-Feb-19,145981,11.44,BRITISH GAS,BRI040
EFDC,YB110,SUPERVISION/MANAGEMENT SPECIAL,ELECTRICITY,1120,06-Feb-19,145981,19.23,BRITISH GAS,BRI040
EFDC,YB110,SUPERVISION/MANAGEMENT SPECIAL,ELECTRICITY,1120,06-Feb-19,145981,12.46,BRITISH GAS,BRI040
EFDC,YB110,SUPERVISION/MANAGEMENT SPECIAL,ELECTRICITY,1120,06-Feb-19,145981,16.55,BRITISH GAS,BRI040
EFDC,YB110,SUPERVISION/MANAGEMENT SPECIAL,ELECTRICITY,1120,06-Feb-19,145981,12.58,BRITISH GAS,BRI040
EFDC,YB110,SUPERVISION/MANAGEMENT SPECIAL,ELECTRICITY,1120,06-Feb-19,145981,15.19,BRITISH GAS,BRI040
EFDC,YB110,SUPERVISION/MANAGEMENT SPECIAL,ELECTRICITY,1120,06-Feb-19,145981,10.53,BRITISH GAS,BRI040
EFDC,YB110,SUPERVISION/MANAGEMENT SPECIAL,ELECTRICITY,1120,06-Feb-19,145981,54.98,BRITISH GAS,BRI040
EFDC,YB110,SUPERVISION/MANAGEMENT SPECIAL,ELECTRICITY,1120,06-Feb-19,145981,31.33,BRITISH GAS,BRI040
EFDC,YB110,SUPERVISION/MANAGEMENT SPECIAL,ELECTRICITY,1120,06-Feb-19,145981,17.57,BRITISH GAS,BRI040
EFDC,YB110,SUPERVISION/MANAGEMENT SPECIAL,ELECTRICITY,1120,06-Feb-19,145981,11.29,BRITISH GAS,BRI040
EFDC,YB110,SUPERVISION/MANAGEMENT SPECIAL,ELECTRICITY,1120,06-Feb-19,145981,20.77,BRITISH GAS,BRI040
EFDC,YB110,SUPERVISION/MANAGEMENT SPECIAL,ELECTRICITY,1120,06-Feb-19,145981,14.47,BRITISH GAS,BRI040
EFDC,YB110,SUPERVISION/MANAGEMENT SPECIAL,ELECTRICITY,1120,06-Feb-19,145981,12.13,BRITISH GAS,BRI040
EFDC,YB110,SUPERVISION/MANAGEMENT SPECIAL,ELECTRICITY,1120,06-Feb-19,145981,14.76,BRITISH GAS,BRI040
EFDC,YB110,SUPERVISION/MANAGEMENT SPECIAL,ELECTRICITY,1120,06-Feb-19,145981,11.84,BRITISH GAS,BRI040
EFDC,YB110,SUPERVISION/MANAGEMENT SPECIAL,ELECTRICITY,1120,06-Feb-19,145981,14.63,BRITISH GAS,BRI040
EFDC,YB110,SUPERVISION/MANAGEMENT SPECIAL,ELECTRICITY,1120,06-Feb-19,145981,14.58,BRITISH GAS,BRI040
EFDC,YB110,SUPERVISION/MANAGEMENT SPECIAL,ELECTRICITY,1120,06-Feb-19,145981,13.61,BRITISH GAS,BRI040
EFDC,YB110,SUPERVISION/MANAGEMENT SPECIAL,ELECTRICITY,1120,06-Feb-19,145981,11.75,BRITISH GAS,BRI040
EFDC,YB110,SUPERVISION/MANAGEMENT SPECIAL,ELECTRICITY,1120,06-Feb-19,145981,8.7,BRITISH GAS,BRI040
EFDC,YB110,SUPERVISION/MANAGEMENT SPECIAL,ELECTRICITY,1120,06-Feb-19,145981,12.66,BRITISH GAS,BRI040
EFDC,YB110,SUPERVISION/MANAGEMENT SPECIAL,ELECTRICITY,1120,06-Feb-19,145981,12.36,BRITISH GAS,BRI040
EFDC,YB110,SUPERVISION/MANAGEMENT SPECIAL,ELECTRICITY,1120,06-Feb-19,145981,20.53,BRITISH GAS,BRI040
EFDC,YB110,SUPERVISION/MANAGEMENT SPECIAL,ELECTRICITY,1120,06-Feb-19,145981,13.4,BRITISH GAS,BRI040
EFDC,YB110,SUPERVISION/MANAGEMENT SPECIAL,ELECTRICITY,1120,06-Feb-19,145981,11.22,BRITISH GAS,BRI040
EFDC,YB110,SUPERVISION/MANAGEMENT SPECIAL,ELECTRICITY,1120,06-Feb-19,145981,12.81,BRITISH GAS,BRI040
EFDC,YB110,SUPERVISION/MANAGEMENT SPECIAL,ELECTRICITY,1120,06-Feb-19,145981,18.52,BRITISH GAS,BRI040
EFDC,YB110,SUPERVISION/MANAGEMENT SPECIAL,ELECTRICITY,1120,06-Feb-19,145981,12.97,BRITISH GAS,BRI040
EFDC,YB110,SUPERVISION/MANAGEMENT SPECIAL,ELECTRICITY,1120,06-Feb-19,145981,18.05,BRITISH GAS,BRI040
EFDC,YB110,SUPERVISION/MANAGEMENT SPECIAL,ELECTRICITY,1120,06-Feb-19,145981,13.4,BRITISH GAS,BRI040
EFDC,YB110,SUPERVISION/MANAGEMENT SPECIAL,ELECTRICITY,1120,06-Feb-19,145981,15.01,BRITISH GAS,BRI040
EFDC,YB110,SUPERVISION/MANAGEMENT SPECIAL,ELECTRICITY,1120,06-Feb-19,145981,14.35,BRITISH GAS,BRI040
EFDC,YB110,SUPERVISION/MANAGEMENT SPECIAL,ELECTRICITY,1120,06-Feb-19,145981,8.63,BRITISH GAS,BRI040
EFDC,YB110,SUPERVISION/MANAGEMENT SPECIAL,ELECTRICITY,1120,06-Feb-19,145981,5.17,BRITISH GAS,BRI040
EFDC,YB110,SUPERVISION/MANAGEMENT SPECIAL,ELECTRICITY,1120,06-Feb-19,145981,13.25,BRITISH GAS,BRI040
EFDC,YB110,SUPERVISION/MANAGEMENT SPECIAL,ELECTRICITY,1120,06-Feb-19,145981,14.19,BRITISH GAS,BRI040
EFDC,YB110,SUPERVISION/MANAGEMENT SPECIAL,ELECTRICITY,1120,06-Feb-19,145981,39.29,BRITISH GAS,BRI040
EFDC,YB110,SUPERVISION/MANAGEMENT SPECIAL,ELECTRICITY,1120,06-Feb-19,145981,12.81,BRITISH GAS,BRI040
EFDC,YB110,SUPERVISION/MANAGEMENT SPECIAL,ELECTRICITY,1120,06-Feb-19,145981,34.79,BRITISH GAS,BRI040
EFDC,YB110,SUPERVISION/MANAGEMENT SPECIAL,ELECTRICITY,1120,06-Feb-19,145981,21.77,BRITISH GAS,BRI040
EFDC,YB110,SUPERVISION/MANAGEMENT SPECIAL,ELECTRICITY,1120,06-Feb-19,145981,24.26,BRITISH GAS,BRI040
EFDC,YB110,SUPERVISION/MANAGEMENT SPECIAL,ELECTRICITY,1120,06-Feb-19,145981,16.21,BRITISH GAS,BRI040
EFDC,YB110,SUPERVISION/MANAGEMENT SPECIAL,ELECTRICITY,1120,06-Feb-19,145981,25.19,BRITISH GAS,BRI040
EFDC,YB110,SUPERVISION/MANAGEMENT SPECIAL,ELECTRICITY,1120,06-Feb-19,145981,20.57,BRITISH GAS,BRI040
EFDC,YB110,SUPERVISION/MANAGEMENT SPECIAL,ELECTRICITY,1120,06-Feb-19,145981,33.35,BRITISH GAS,BRI040
EFDC,YB110,SUPERVISION/MANAGEMENT SPECIAL,ELECTRICITY,1120,06-Feb-19,145981,29.95,BRITISH GAS,BRI040
EFDC,YB110,SUPERVISION/MANAGEMENT SPECIAL,ELECTRICITY,1120,06-Feb-19,145981,12.8,BRITISH GAS,BRI040
EFDC,YB110,SUPERVISION/MANAGEMENT SPECIAL,ELECTRICITY,1120,06-Feb-19,145981,27.06,BRITISH GAS,BRI040
EFDC,YB110,SUPERVISION/MANAGEMENT SPECIAL,ELECTRICITY,1120,06-Feb-19,145981,17.66,BRITISH GAS,BRI040
EFDC,YB110,SUPERVISION/MANAGEMENT SPECIAL,ELECTRICITY,1120,06-Feb-19,145981,33.11,BRITISH GAS,BRI040
EFDC,YB110,SUPERVISION/MANAGEMENT SPECIAL,ELECTRICITY,1120,06-Feb-19,145981,19.37,BRITISH GAS,BRI040
EFDC,YB110,SUPERVISION/MANAGEMENT SPECIAL,ELECTRICITY,1120,06-Feb-19,145981,14.75,BRITISH GAS,BRI040
EFDC,YB110,SUPERVISION/MANAGEMENT SPECIAL,ELECTRICITY,1120,06-Feb-19,145981,14.12,BRITISH GAS,BRI040
EFDC,YB110,SUPERVISION/MANAGEMENT SPECIAL,ELECTRICITY,1120,06-Feb-19,145981,12.82,BRITISH GAS,BRI040
EFDC,YB110,SUPERVISION/MANAGEMENT SPECIAL,ELECTRICITY,1120,06-Feb-19,145981,16.43,BRITISH GAS,BRI040
EFDC,YB110,SUPERVISION/MANAGEMENT SPECIAL,ELECTRICITY,1120,06-Feb-19,145981,14.96,BRITISH GAS,BRI040
EFDC,YB110,SUPERVISION/MANAGEMENT SPECIAL,ELECTRICITY,1120,06-Feb-19,145981,13.25,BRITISH GAS,BRI040
EFDC,YB110,SUPERVISION/MANAGEMENT SPECIAL,ELECTRICITY,1120,06-Feb-19,145981,13.85,BRITISH GAS,BRI040
EFDC,YB110,SUPERVISION/MANAGEMENT SPECIAL,ELECTRICITY,1120,06-Feb-19,145981,13.16,BRITISH GAS,BRI040
EFDC,YB110,SUPERVISION/MANAGEMENT SPECIAL,ELECTRICITY,1120,06-Feb-19,145981,13.25,BRITISH GAS,BRI040
EFDC,YB110,SUPERVISION/MANAGEMENT SPECIAL,ELECTRICITY,1120,06-Feb-19,145981,23.77,BRITISH GAS,BRI040
EFDC,YB110,SUPERVISION/MANAGEMENT SPECIAL,ELECTRICITY,1120,06-Feb-19,145981,14.42,BRITISH GAS,BRI040
EFDC,YB110,SUPERVISION/MANAGEMENT SPECIAL,ELECTRICITY,1120,06-Feb-19,145981,20.93,BRITISH GAS,BRI040
EFDC,YB110,SUPERVISION/MANAGEMENT SPECIAL,ELECTRICITY,1120,06-Feb-19,145981,11.68,BRITISH GAS,BRI040
EFDC,YB110,SUPERVISION/MANAGEMENT SPECIAL,ELECTRICITY,1120,06-Feb-19,145981,24.89,BRITISH GAS,BRI040
EFDC,YB110,SUPERVISION/MANAGEMENT SPECIAL,ELECTRICITY,1120,06-Feb-19,145981,29.6,BRITISH GAS,BRI040
EFDC,YB110,SUPERVISION/MANAGEMENT SPECIAL,ELECTRICITY,1120,06-Feb-19,145981,16.93,BRITISH GAS,BRI040
EFDC,YB110,SUPERVISION/MANAGEMENT SPECIAL,ELECTRICITY,1120,06-Feb-19,145981,48.23,BRITISH GAS,BRI040
EFDC,YB110,SUPERVISION/MANAGEMENT SPECIAL,ELECTRICITY,1120,06-Feb-19,145981,52.5,BRITISH GAS,BRI040
EFDC,YB110,SUPERVISION/MANAGEMENT SPECIAL,ELECTRICITY,1120,06-Feb-19,145981,26.44,BRITISH GAS,BRI040
EFDC,YB110,SUPERVISION/MANAGEMENT SPECIAL,ELECTRICITY,1120,06-Feb-19,145981,25.85,BRITISH GAS,BRI040
EFDC,YB110,SUPERVISION/MANAGEMENT SPECIAL,ELECTRICITY,1120,06-Feb-19,145981,15.46,BRITISH GAS,BRI040
EFDC,YB110,SUPERVISION/MANAGEMENT SPECIAL,ELECTRICITY,1120,06-Feb-19,145981,32.43,BRITISH GAS,BRI040
EFDC,YB110,SUPERVISION/MANAGEMENT SPECIAL,ELECTRICITY,1120,06-Feb-19,145981,21.73,BRITISH GAS,BRI040
EFDC,YB110,SUPERVISION/MANAGEMENT SPECIAL,ELECTRICITY,1120,06-Feb-19,145981,12.17,BRITISH GAS,BRI040
EFDC,YB110,SUPERVISION/MANAGEMENT SPECIAL,ELECTRICITY,1120,06-Feb-19,145981,13.99,BRITISH GAS,BRI040
EFDC,YB110,SUPERVISION/MANAGEMENT SPECIAL,ELECTRICITY,1120,06-Feb-19,145981,16.39,BRITISH GAS,BRI040
EFDC,YB110,SUPERVISION/MANAGEMENT SPECIAL,ELECTRICITY,1120,06-Feb-19,145981,16.25,BRITISH GAS,BRI040
EFDC,YB110,SUPERVISION/MANAGEMENT SPECIAL,ELECTRICITY,1120,06-Feb-19,145981,8.83,BRITISH GAS,BRI040
EFDC,YB110,SUPERVISION/MANAGEMENT SPECIAL,ELECTRICITY,1120,06-Feb-19,145981,54.65,BRITISH GAS,BRI040
EFDC,YB110,SUPERVISION/MANAGEMENT SPECIAL,ELECTRICITY,1120,06-Feb-19,145981,9.85,BRITISH GAS,BRI040
EFDC,YB110,SUPERVISION/MANAGEMENT SPECIAL,ELECTRICITY,1120,06-Feb-19,145981,18.27,BRITISH GAS,BRI040
EFDC,YB110,SUPERVISION/MANAGEMENT SPECIAL,ELECTRICITY,1120,06-Feb-19,145981,18.36,BRITISH GAS,BRI040
EFDC,YB110,SUPERVISION/MANAGEMENT SPECIAL,ELECTRICITY,1120,06-Feb-19,145981,15.07,BRITISH GAS,BRI040
EFDC,YB110,SUPERVISION/MANAGEMENT SPECIAL,ELECTRICITY,1120,06-Feb-19,145981,15.41,BRITISH GAS,BRI040
EFDC,YB110,SUPERVISION/MANAGEMENT SPECIAL,ELECTRICITY,1120,06-Feb-19,145981,10.99,BRITISH GAS,BRI040
EFDC,YB110,SUPERVISION/MANAGEMENT SPECIAL,ELECTRICITY,1120,06-Feb-19,145981,16.99,BRITISH GAS,BRI040
EFDC,YB110,SUPERVISION/MANAGEMENT SPECIAL,ELECTRICITY,1120,06-Feb-19,145981,15.52,BRITISH GAS,BRI040
EFDC,YB110,SUPERVISION/MANAGEMENT SPECIAL,ELECTRICITY,1120,06-Feb-19,145981,16.43,BRITISH GAS,BRI040
EFDC,YB110,SUPERVISION/MANAGEMENT SPECIAL,ELECTRICITY,1120,06-Feb-19,145981,17.41,BRITISH GAS,BRI040
EFDC,YB110,SUPERVISION/MANAGEMENT SPECIAL,ELECTRICITY,1120,06-Feb-19,145981,25.11,BRITISH GAS,BRI040
EFDC,YB110,SUPERVISION/MANAGEMENT SPECIAL,ELECTRICITY,1120,06-Feb-19,145981,42.02,BRITISH GAS,BRI040
EFDC,YB110,SUPERVISION/MANAGEMENT SPECIAL,ELECTRICITY,1120,06-Feb-19,145981,14.29,BRITISH GAS,BRI040
EFDC,YB110,SUPERVISION/MANAGEMENT SPECIAL,ELECTRICITY,1120,06-Feb-19,145981,12.81,BRITISH GAS,BRI040
EFDC,YB110,SUPERVISION/MANAGEMENT SPECIAL,ELECTRICITY,1120,06-Feb-19,145981,15.76,BRITISH GAS,BRI040
EFDC,YB110,SUPERVISION/MANAGEMENT SPECIAL,ELECTRICITY,1120,06-Feb-19,145981,28.95,BRITISH GAS,BRI040
EFDC,YB110,SUPERVISION/MANAGEMENT SPECIAL,ELECTRICITY,1120,06-Feb-19,145981,72.18,BRITISH GAS,BRI040
EFDC,YB110,SUPERVISION/MANAGEMENT SPECIAL,ELECTRICITY,1120,06-Feb-19,145981,96.1,BRITISH GAS,BRI040
EFDC,YB110,SUPERVISION/MANAGEMENT SPECIAL,ELECTRICITY,1120,06-Feb-19,145981,19.64,BRITISH GAS,BRI040
EFDC,YB110,SUPERVISION/MANAGEMENT SPECIAL,ELECTRICITY,1120,06-Feb-19,145981,12.78,BRITISH GAS,BRI040
EFDC,YB110,SUPERVISION/MANAGEMENT SPECIAL,ELECTRICITY,1120,06-Feb-19,145981,18.17,BRITISH GAS,BRI040
EFDC,YB110,SUPERVISION/MANAGEMENT SPECIAL,ELECTRICITY,1120,06-Feb-19,145981,29.35,BRITISH GAS,BRI040
EFDC,YB110,SUPERVISION/MANAGEMENT SPECIAL,ELECTRICITY,1120,06-Feb-19,145981,11.42,BRITISH GAS,BRI040
EFDC,YB110,SUPERVISION/MANAGEMENT SPECIAL,ELECTRICITY,1120,06-Feb-19,145981,11.88,BRITISH GAS,BRI040
EFDC,YB110,SUPERVISION/MANAGEMENT SPECIAL,ELECTRICITY,1120,06-Feb-19,145981,12.39,BRITISH GAS,BRI040
EFDC,YB110,SUPERVISION/MANAGEMENT SPECIAL,ELECTRICITY,1120,06-Feb-19,145981,31.11,BRITISH GAS,BRI040
EFDC,YB110,SUPERVISION/MANAGEMENT SPECIAL,ELECTRICITY,1120,06-Feb-19,145981,27.14,BRITISH GAS,BRI040
EFDC,YB110,SUPERVISION/MANAGEMENT SPECIAL,ELECTRICITY,1120,06-Feb-19,145981,21.04,BRITISH GAS,BRI040
EFDC,YB110,SUPERVISION/MANAGEMENT SPECIAL,ELECTRICITY,1120,06-Feb-19,145981,24.53,BRITISH GAS,BRI040
EFDC,YB110,SUPERVISION/MANAGEMENT SPECIAL,ELECTRICITY,1120,06-Feb-19,145981,21.01,BRITISH GAS,BRI040
EFDC,YB110,SUPERVISION/MANAGEMENT SPECIAL,ELECTRICITY,1120,06-Feb-19,145981,18.72,BRITISH GAS,BRI040
EFDC,YB110,SUPERVISION/MANAGEMENT SPECIAL,ELECTRICITY,1120,06-Feb-19,145981,13.05,BRITISH GAS,BRI040
EFDC,YB110,SUPERVISION/MANAGEMENT SPECIAL,ELECTRICITY,1120,06-Feb-19,145981,19.08,BRITISH GAS,BRI040
EFDC,YB110,SUPERVISION/MANAGEMENT SPECIAL,ELECTRICITY,1120,06-Feb-19,145981,19.45,BRITISH GAS,BRI040
EFDC,YB110,SUPERVISION/MANAGEMENT SPECIAL,ELECTRICITY,1120,06-Feb-19,145981,20.09,BRITISH GAS,BRI040
EFDC,YB110,SUPERVISION/MANAGEMENT SPECIAL,ELECTRICITY,1120,06-Feb-19,145981,25.77,BRITISH GAS,BRI040
EFDC,YB110,SUPERVISION/MANAGEMENT SPECIAL,ELECTRICITY,1120,06-Feb-19,145981,17.25,BRITISH GAS,BRI040
EFDC,YB110,SUPERVISION/MANAGEMENT SPECIAL,ELECTRICITY,1120,06-Feb-19,145981,17.92,BRITISH GAS,BRI040
EFDC,YB110,SUPERVISION/MANAGEMENT SPECIAL,ELECTRICITY,1120,06-Feb-19,145981,12.46,BRITISH GAS,BRI040
EFDC,YB110,SUPERVISION/MANAGEMENT SPECIAL,ELECTRICITY,1120,06-Feb-19,145981,18.58,BRITISH GAS,BRI040
EFDC,YB110,SUPERVISION/MANAGEMENT SPECIAL,ELECTRICITY,1120,06-Feb-19,145981,15.19,BRITISH GAS,BRI040
EFDC,YB110,SUPERVISION/MANAGEMENT SPECIAL,ELECTRICITY,1120,06-Feb-19,145981,17.11,BRITISH GAS,BRI040
EFDC,YB110,SUPERVISION/MANAGEMENT SPECIAL,ELECTRICITY,1120,06-Feb-19,145981,16.55,BRITISH GAS,BRI040
EFDC,YB110,SUPERVISION/MANAGEMENT SPECIAL,ELECTRICITY,1120,06-Feb-19,145981,22.79,BRITISH GAS,BRI040
EFDC,YB110,SUPERVISION/MANAGEMENT SPECIAL,ELECTRICITY,1120,06-Feb-19,145981,22.56,BRITISH GAS,BRI040
EFDC,YB110,SUPERVISION/MANAGEMENT SPECIAL,ELECTRICITY,1120,06-Feb-19,145981,24.25,BRITISH GAS,BRI040
EFDC,YB110,SUPERVISION/MANAGEMENT SPECIAL,ELECTRICITY,1120,06-Feb-19,145981,15.96,BRITISH GAS,BRI040
EFDC,YB110,SUPERVISION/MANAGEMENT SPECIAL,ELECTRICITY,1120,06-Feb-19,145981,17.9,BRITISH GAS,BRI040
EFDC,YB110,SUPERVISION/MANAGEMENT SPECIAL,ELECTRICITY,1120,06-Feb-19,145981,28.68,BRITISH GAS,BRI040
EFDC,YB110,SUPERVISION/MANAGEMENT SPECIAL,ELECTRICITY,1120,06-Feb-19,145981,12.8,BRITISH GAS,BRI040
EFDC,YB110,SUPERVISION/MANAGEMENT SPECIAL,ELECTRICITY,1120,06-Feb-19,145981,7.08,BRITISH GAS,BRI040
EFDC,YB110,SUPERVISION/MANAGEMENT SPECIAL,ELECTRICITY,1120,06-Feb-19,145981,16.88,BRITISH GAS,BRI040
EFDC,YB110,SUPERVISION/MANAGEMENT SPECIAL,ELECTRICITY,1120,06-Feb-19,145981,15.97,BRITISH GAS,BRI040
EFDC,YB110,SUPERVISION/MANAGEMENT SPECIAL,ELECTRICITY,1120,06-Feb-19,145981,16.77,BRITISH GAS,BRI040
EFDC,YB110,SUPERVISION/MANAGEMENT SPECIAL,ELECTRICITY,1120,06-Feb-19,145981,21.16,BRITISH GAS,BRI040
EFDC,YB110,SUPERVISION/MANAGEMENT SPECIAL,ELECTRICITY,1120,06-Feb-19,145981,16.66,BRITISH GAS,BRI040
EFDC,YB110,SUPERVISION/MANAGEMENT SPECIAL,ELECTRICITY,1120,06-Feb-19,145981,14.28,BRITISH GAS,BRI040
EFDC,YB110,SUPERVISION/MANAGEMENT SPECIAL,ELECTRICITY,1120,06-Feb-19,145981,12.12,BRITISH GAS,BRI040
EFDC,YB110,SUPERVISION/MANAGEMENT SPECIAL,ELECTRICITY,1120,06-Feb-19,145981,15.64,BRITISH GAS,BRI040
EFDC,YB110,SUPERVISION/MANAGEMENT SPECIAL,ELECTRICITY,1120,06-Feb-19,145981,14.28,BRITISH GAS,BRI040
EFDC,YB110,SUPERVISION/MANAGEMENT SPECIAL,ELECTRICITY,1120,06-Feb-19,145981,6.68,BRITISH GAS,BRI040
EFDC,YB110,SUPERVISION/MANAGEMENT SPECIAL,ELECTRICITY,1120,06-Feb-19,145981,-13.38,BRITISH GAS,BRI040
EFDC,YB110,SUPERVISION/MANAGEMENT SPECIAL,ELECTRICITY,1120,06-Feb-19,145981,19.48,BRITISH GAS,BRI040
EFDC,YB110,SUPERVISION/MANAGEMENT SPECIAL,ELECTRICITY,1120,06-Feb-19,145981,13.48,BRITISH GAS,BRI040
EFDC,YB110,SUPERVISION/MANAGEMENT SPECIAL,ELECTRICITY,1120,06-Feb-19,145981,17.34,BRITISH GAS,BRI040
EFDC,YB110,SUPERVISION/MANAGEMENT SPECIAL,ELECTRICITY,1120,06-Feb-19,145981,6.19,BRITISH GAS,BRI040
EFDC,YB110,SUPERVISION/MANAGEMENT SPECIAL,ELECTRICITY,1120,06-Feb-19,145981,15.53,BRITISH GAS,BRI040
EFDC,YB110,SUPERVISION/MANAGEMENT SPECIAL,ELECTRICITY,1120,06-Feb-19,145981,11.78,BRITISH GAS,BRI040
EFDC,YB110,SUPERVISION/MANAGEMENT SPECIAL,ELECTRICITY,1120,06-Feb-19,145981,33.37,BRITISH GAS,BRI040
EFDC,YB110,SUPERVISION/MANAGEMENT SPECIAL,ELECTRICITY,1120,06-Feb-19,145981,55.11,BRITISH GAS,BRI040
EFDC,YB110,SUPERVISION/MANAGEMENT SPECIAL,ELECTRICITY,1120,06-Feb-19,145981,17.84,BRITISH GAS,BRI040
EFDC,YB110,SUPERVISION/MANAGEMENT SPECIAL,ELECTRICITY,1120,06-Feb-19,145981,19.21,BRITISH GAS,BRI040
EFDC,YB110,SUPERVISION/MANAGEMENT SPECIAL,ELECTRICITY,1120,06-Feb-19,145981,49.28,BRITISH GAS,BRI040
EFDC,YB110,SUPERVISION/MANAGEMENT SPECIAL,ELECTRICITY,1120,06-Feb-19,145981,18.34,BRITISH GAS,BRI040
EFDC,YB110,SUPERVISION/MANAGEMENT SPECIAL,ELECTRICITY,1120,06-Feb-19,145981,20.05,BRITISH GAS,BRI040
EFDC,YB110,SUPERVISION/MANAGEMENT SPECIAL,ELECTRICITY,1120,06-Feb-19,145981,15.32,BRITISH GAS,BRI040
EFDC,YB110,SUPERVISION/MANAGEMENT SPECIAL,ELECTRICITY,1120,06-Feb-19,145981,28.02,BRITISH GAS,BRI040
EFDC,YB110,SUPERVISION/MANAGEMENT SPECIAL,ELECTRICITY,1120,06-Feb-19,145981,17.23,BRITISH GAS,BRI040
EFDC,YB110,SUPERVISION/MANAGEMENT SPECIAL,ELECTRICITY,1120,06-Feb-19,145981,15.91,BRITISH GAS,BRI040
EFDC,YB110,SUPERVISION/MANAGEMENT SPECIAL,ELECTRICITY,1120,06-Feb-19,145981,20.54,BRITISH GAS,BRI040
EFDC,YB110,SUPERVISION/MANAGEMENT SPECIAL,ELECTRICITY,1120,06-Feb-19,145981,9.97,BRITISH GAS,BRI040
EFDC,YB110,SUPERVISION/MANAGEMENT SPECIAL,ELECTRICITY,1120,06-Feb-19,145981,14.85,BRITISH GAS,BRI040
EFDC,YB110,SUPERVISION/MANAGEMENT SPECIAL,ELECTRICITY,1120,06-Feb-19,145981,74.15,BRITISH GAS,BRI040
EFDC,YB110,SUPERVISION/MANAGEMENT SPECIAL,ELECTRICITY,1120,06-Feb-19,145981,15.41,BRITISH GAS,BRI040
EFDC,YB110,SUPERVISION/MANAGEMENT SPECIAL,ELECTRICITY,1120,06-Feb-19,145981,16.49,BRITISH GAS,BRI040
EFDC,YB110,SUPERVISION/MANAGEMENT SPECIAL,ELECTRICITY,1120,06-Feb-19,145981,20.44,BRITISH GAS,BRI040
EFDC,YB110,SUPERVISION/MANAGEMENT SPECIAL,ELECTRICITY,1120,06-Feb-19,145981,2.89,BRITISH GAS,BRI040
EFDC,YB110,SUPERVISION/MANAGEMENT SPECIAL,ELECTRICITY,1120,06-Feb-19,145981,6.23,BRITISH GAS,BRI040
EFDC,YB110,SUPERVISION/MANAGEMENT SPECIAL,ELECTRICITY,1120,06-Feb-19,145981,6.9,BRITISH GAS,BRI040
EFDC,YB110,SUPERVISION/MANAGEMENT SPECIAL,ELECTRICITY,1120,06-Feb-19,145981,14.5,BRITISH GAS,BRI040
EFDC,YB110,SUPERVISION/MANAGEMENT SPECIAL,ELECTRICITY,1120,06-Feb-19,145981,2.89,BRITISH GAS,BRI040
EFDC,YB110,SUPERVISION/MANAGEMENT SPECIAL,ELECTRICITY,1120,06-Feb-19,145981,6.9,BRITISH GAS,BRI040
EFDC,YB110,SUPERVISION/MANAGEMENT SPECIAL,ELECTRICITY,1120,06-Feb-19,145981,18.89,BRITISH GAS,BRI040
EFDC,YB110,SUPERVISION/MANAGEMENT SPECIAL,ELECTRICITY,1120,06-Feb-19,145981,16.57,BRITISH GAS,BRI040
EFDC,YB110,SUPERVISION/MANAGEMENT SPECIAL,ELECTRICITY,1120,06-Feb-19,145981,13.94,BRITISH GAS,BRI040
EFDC,YB110,SUPERVISION/MANAGEMENT SPECIAL,ELECTRICITY,1120,06-Feb-19,145981,3.94,BRITISH GAS,BRI040
EFDC,YB110,SUPERVISION/MANAGEMENT SPECIAL,ELECTRICITY,1120,06-Feb-19,145981,2.96,BRITISH GAS,BRI040
EFDC,YB110,SUPERVISION/MANAGEMENT SPECIAL,ELECTRICITY,1120,06-Feb-19,145981,1.65,BRITISH GAS,BRI040
EFDC,YB110,SUPERVISION/MANAGEMENT SPECIAL,ELECTRICITY,1120,06-Feb-19,145981,1.24,BRITISH GAS,BRI040
EFDC,YB110,SUPERVISION/MANAGEMENT SPECIAL,ELECTRICITY,1120,06-Feb-19,145981,12.82,BRITISH GAS,BRI040
EFDC,YB110,SUPERVISION/MANAGEMENT SPECIAL,ELECTRICITY,1120,06-Feb-19,145981,9.61,BRITISH GAS,BRI040
EFDC,YB110,SUPERVISION/MANAGEMENT SPECIAL,ELECTRICITY,1120,06-Feb-19,145981,16.98,BRITISH GAS,BRI040
EFDC,YB110,SUPERVISION/MANAGEMENT SPECIAL,ELECTRICITY,1120,06-Feb-19,145981,16.57,BRITISH GAS,BRI040
EFDC,YB110,SUPERVISION/MANAGEMENT SPECIAL,ELECTRICITY,1120,06-Feb-19,145981,17.35,BRITISH GAS,BRI040
EFDC,YB110,SUPERVISION/MANAGEMENT SPECIAL,ELECTRICITY,1120,06-Feb-19,145981,25.38,BRITISH GAS,BRI040
EFDC,YB110,SUPERVISION/MANAGEMENT SPECIAL,ELECTRICITY,1120,06-Feb-19,145981,15.66,BRITISH GAS,BRI040
EFDC,YB110,SUPERVISION/MANAGEMENT SPECIAL,ELECTRICITY,1120,06-Feb-19,145981,16.08,BRITISH GAS,BRI040
EFDC,YB110,SUPERVISION/MANAGEMENT SPECIAL,ELECTRICITY,1120,06-Feb-19,145981,16.89,BRITISH GAS,BRI040
EFDC,YB110,SUPERVISION/MANAGEMENT SPECIAL,ELECTRICITY,1120,06-Feb-19,145981,16.03,BRITISH GAS,BRI040
EFDC,YB110,SUPERVISION/MANAGEMENT SPECIAL,ELECTRICITY,1120,06-Feb-19,145981,17.2,BRITISH GAS,BRI040
EFDC,YB110,SUPERVISION/MANAGEMENT SPECIAL,ELECTRICITY,1120,06-Feb-19,145981,14.39,BRITISH GAS,BRI040
EFDC,YB110,SUPERVISION/MANAGEMENT SPECIAL,ELECTRICITY,1120,06-Feb-19,145981,10.66,BRITISH GAS,BRI040
EFDC,YB110,SUPERVISION/MANAGEMENT SPECIAL,ELECTRICITY,1120,06-Feb-19,145981,12.34,BRITISH GAS,BRI040
EFDC,YB110,SUPERVISION/MANAGEMENT SPECIAL,ELECTRICITY,1120,06-Feb-19,145981,19.38,BRITISH GAS,BRI040
EFDC,YB110,SUPERVISION/MANAGEMENT SPECIAL,ELECTRICITY,1120,06-Feb-19,145981,22.95,BRITISH GAS,BRI040
EFDC,YB110,SUPERVISION/MANAGEMENT SPECIAL,ELECTRICITY,1120,06-Feb-19,145981,14.84,BRITISH GAS,BRI040
EFDC,YB110,SUPERVISION/MANAGEMENT SPECIAL,ELECTRICITY,1120,06-Feb-19,145981,16.09,BRITISH GAS,BRI040
EFDC,YB110,SUPERVISION/MANAGEMENT SPECIAL,ELECTRICITY,1120,06-Feb-19,145981,15.23,BRITISH GAS,BRI040
EFDC,YB110,SUPERVISION/MANAGEMENT SPECIAL,ELECTRICITY,1120,06-Feb-19,145981,15.24,BRITISH GAS,BRI040
EFDC,YB110,SUPERVISION/MANAGEMENT SPECIAL,ELECTRICITY,1120,06-Feb-19,145981,25.28,BRITISH GAS,BRI040
EFDC,YB110,SUPERVISION/MANAGEMENT SPECIAL,ELECTRICITY,1120,06-Feb-19,145981,17.75,BRITISH GAS,BRI040
EFDC,YB110,SUPERVISION/MANAGEMENT SPECIAL,ELECTRICITY,1120,06-Feb-19,145981,14.5,BRITISH GAS,BRI040
EFDC,YB110,SUPERVISION/MANAGEMENT SPECIAL,ELECTRICITY,1120,06-Feb-19,145981,14.61,BRITISH GAS,BRI040
EFDC,YB110,SUPERVISION/MANAGEMENT SPECIAL,ELECTRICITY,1120,06-Feb-19,145981,14.05,BRITISH GAS,BRI040
EFDC,YB110,SUPERVISION/MANAGEMENT SPECIAL,ELECTRICITY,1120,06-Feb-19,145981,12.92,BRITISH GAS,BRI040
EFDC,YB110,SUPERVISION/MANAGEMENT SPECIAL,ELECTRICITY,1120,06-Feb-19,145981,12.12,BRITISH GAS,BRI040
EFDC,YB110,SUPERVISION/MANAGEMENT SPECIAL,ELECTRICITY,1120,06-Feb-19,145981,7.07,BRITISH GAS,BRI040
EFDC,YB110,SUPERVISION/MANAGEMENT SPECIAL,ELECTRICITY,1120,06-Feb-19,145981,15.52,BRITISH GAS,BRI040
EFDC,YB110,SUPERVISION/MANAGEMENT SPECIAL,ELECTRICITY,1120,06-Feb-19,145981,16.02,BRITISH GAS,BRI040
EFDC,YB110,SUPERVISION/MANAGEMENT SPECIAL,ELECTRICITY,1120,06-Feb-19,145981,9.25,BRITISH GAS,BRI040
EFDC,YB110,SUPERVISION/MANAGEMENT SPECIAL,ELECTRICITY,1120,06-Feb-19,145981,12.59,BRITISH GAS,BRI040
EFDC,YB110,SUPERVISION/MANAGEMENT SPECIAL,ELECTRICITY,1120,06-Feb-19,145981,11.3,BRITISH GAS,BRI040
EFDC,YB110,SUPERVISION/MANAGEMENT SPECIAL,ELECTRICITY,1120,06-Feb-19,145981,20.97,BRITISH GAS,BRI040
EFDC,YB110,SUPERVISION/MANAGEMENT SPECIAL,ELECTRICITY,1120,06-Feb-19,145981,138.22,BRITISH GAS,BRI040
EFDC,YB110,SUPERVISION/MANAGEMENT SPECIAL,ELECTRICITY,1120,06-Feb-19,145981,16.1,BRITISH GAS,BRI040
EFDC,YB110,SUPERVISION/MANAGEMENT SPECIAL,ELECTRICITY,1120,06-Feb-19,145981,107.16,BRITISH GAS,BRI040
EFDC,YB110,SUPERVISION/MANAGEMENT SPECIAL,ELECTRICITY,1120,06-Feb-19,145981,20.62,BRITISH GAS,BRI040
EFDC,YB110,SUPERVISION/MANAGEMENT SPECIAL,ELECTRICITY,1120,06-Feb-19,145981,11.93,BRITISH GAS,BRI040
EFDC,YB110,SUPERVISION/MANAGEMENT SPECIAL,ELECTRICITY,1120,06-Feb-19,145981,98.99,BRITISH GAS,BRI040
EFDC,YB110,SUPERVISION/MANAGEMENT SPECIAL,ELECTRICITY,1120,06-Feb-19,145981,10.96,BRITISH GAS,BRI040
EFDC,YB110,SUPERVISION/MANAGEMENT SPECIAL,ELECTRICITY,1120,06-Feb-19,145981,15.19,BRITISH GAS,BRI040
EFDC,YB110,SUPERVISION/MANAGEMENT SPECIAL,ELECTRICITY,1120,06-Feb-19,145981,16.32,BRITISH GAS,BRI040
EFDC,YB110,SUPERVISION/MANAGEMENT SPECIAL,ELECTRICITY,1120,06-Feb-19,145981,14.28,BRITISH GAS,BRI040
EFDC,YB110,SUPERVISION/MANAGEMENT SPECIAL,ELECTRICITY,1120,06-Feb-19,145981,29.06,BRITISH GAS,BRI040
EFDC,YB110,SUPERVISION/MANAGEMENT SPECIAL,ELECTRICITY,1120,06-Feb-19,145981,42.19,BRITISH GAS,BRI040
EFDC,YB110,SUPERVISION/MANAGEMENT SPECIAL,ELECTRICITY,1120,06-Feb-19,145981,12.85,BRITISH GAS,BRI040
EFDC,YB110,SUPERVISION/MANAGEMENT SPECIAL,ELECTRICITY,1120,06-Feb-19,145981,103.19,BRITISH GAS,BRI040
EFDC,YB110,SUPERVISION/MANAGEMENT SPECIAL,ELECTRICITY,1120,06-Feb-19,145981,14.43,BRITISH GAS,BRI040
EFDC,YB140,SUPERVISION/MANAGEMENT SPECIAL,ELECTRICITY,1120,06-Feb-19,145981,26.67,BRITISH GAS,BRI040
EFDC,YB140,SUPERVISION/MANAGEMENT SPECIAL,ELECTRICITY,1120,06-Feb-19,145981,20.96,BRITISH GAS,BRI040
EFDC,YB140,SUPERVISION/MANAGEMENT SPECIAL,ELECTRICITY,1120,06-Feb-19,145981,20.75,BRITISH GAS,BRI040
EFDC,YB140,SUPERVISION/MANAGEMENT SPECIAL,ELECTRICITY,1120,06-Feb-19,145981,13.67,BRITISH GAS,BRI040
EFDC,YB140,SUPERVISION/MANAGEMENT SPECIAL,ELECTRICITY,1120,06-Feb-19,145981,14.47,BRITISH GAS,BRI040
EFDC,YB200,SUPERVISION/MANAGEMENT SPECIAL,ELECTRICITY,1120,06-Feb-19,145981,15.4,BRITISH GAS,BRI040
EFDC,YB300,SUPERVISION/MANAGEMENT SPECIAL,ELECTRICITY,1120,06-Feb-19,145981,57.4,BRITISH GAS,BRI040
EFDC,YB140,SUPERVISION/MANAGEMENT SPECIAL,ELECTRICITY,1120,06-Feb-19,145981,21.86,BRITISH GAS,BRI040
EFDC,YB140,SUPERVISION/MANAGEMENT SPECIAL,ELECTRICITY,1120,06-Feb-19,145981,24.88,BRITISH GAS,BRI040
EFDC,YB140,SUPERVISION/MANAGEMENT SPECIAL,ELECTRICITY,1120,06-Feb-19,145981,27.45,BRITISH GAS,BRI040
EFDC,YB140,SUPERVISION/MANAGEMENT SPECIAL,ELECTRICITY,1120,06-Feb-19,145981,19.95,BRITISH GAS,BRI040
EFDC,YB140,SUPERVISION/MANAGEMENT SPECIAL,ELECTRICITY,1120,06-Feb-19,145981,19.55,BRITISH GAS,BRI040
EFDC,YB140,SUPERVISION/MANAGEMENT SPECIAL,ELECTRICITY,1120,06-Feb-19,145981,28.41,BRITISH GAS,BRI040
EFDC,YB140,SUPERVISION/MANAGEMENT SPECIAL,ELECTRICITY,1120,06-Feb-19,145981,22.31,BRITISH GAS,BRI040
EFDC,YB140,SUPERVISION/MANAGEMENT SPECIAL,ELECTRICITY,1120,06-Feb-19,145981,24.1,BRITISH GAS,BRI040
EFDC,YB140,SUPERVISION/MANAGEMENT SPECIAL,ELECTRICITY,1120,06-Feb-19,145981,16.2,BRITISH GAS,BRI040
EFDC,YB140,SUPERVISION/MANAGEMENT SPECIAL,ELECTRICITY,1120,06-Feb-19,145981,21.95,BRITISH GAS,BRI040
EFDC,YB110,SUPERVISION/MANAGEMENT SPECIAL,ELECTRICITY,1120,06-Feb-19,145981,14.96,BRITISH GAS,BRI040
EFDC,YB110,SUPERVISION/MANAGEMENT SPECIAL,ELECTRICITY,1120,06-Feb-19,145981,208.73,BRITISH GAS,BRI040
EFDC,YB110,SUPERVISION/MANAGEMENT SPECIAL,ELECTRICITY,1120,06-Feb-19,145981,58.19,BRITISH GAS,BRI040
EFDC,YB110,SUPERVISION/MANAGEMENT SPECIAL,ELECTRICITY,1120,06-Feb-19,145981,11.32,BRITISH GAS,BRI040
EFDC,YB110,SUPERVISION/MANAGEMENT SPECIAL,ELECTRICITY,1120,06-Feb-19,145981,37.96,BRITISH GAS,BRI040
EFDC,YB110,SUPERVISION/MANAGEMENT SPECIAL,ELECTRICITY,1120,06-Feb-19,145981,3.05,BRITISH GAS,BRI040
EFDC,YB110,SUPERVISION/MANAGEMENT SPECIAL,ELECTRICITY,1120,06-Feb-19,145981,12.34,BRITISH GAS,BRI040
EFDC,YB110,SUPERVISION/MANAGEMENT SPECIAL,ELECTRICITY,1120,06-Feb-19,145981,20.47,BRITISH GAS,BRI040
EFDC,YB110,SUPERVISION/MANAGEMENT SPECIAL,ELECTRICITY,1120,06-Feb-19,145981,109.2,BRITISH GAS,BRI040
EFDC,YB110,SUPERVISION/MANAGEMENT SPECIAL,ELECTRICITY,1120,06-Feb-19,145981,17.9,BRITISH GAS,BRI040
EFDC,YB110,SUPERVISION/MANAGEMENT SPECIAL,ELECTRICITY,1120,06-Feb-19,145981,15.64,BRITISH GAS,BRI040
EFDC,YB110,SUPERVISION/MANAGEMENT SPECIAL,ELECTRICITY,1120,06-Feb-19,145981,26.07,BRITISH GAS,BRI040
EFDC,YB110,SUPERVISION/MANAGEMENT SPECIAL,ELECTRICITY,1120,06-Feb-19,145981,20.04,BRITISH GAS,BRI040
EFDC,YB110,SUPERVISION/MANAGEMENT SPECIAL,ELECTRICITY,1120,06-Feb-19,145981,115.31,BRITISH GAS,BRI040
EFDC,YB110,SUPERVISION/MANAGEMENT SPECIAL,ELECTRICITY,1120,06-Feb-19,145981,109.21,BRITISH GAS,BRI040
EFDC,YB110,SUPERVISION/MANAGEMENT SPECIAL,ELECTRICITY,1120,06-Feb-19,145981,6.23,BRITISH GAS,BRI040
EFDC,YB110,SUPERVISION/MANAGEMENT SPECIAL,ELECTRICITY,1120,06-Feb-19,145981,23.62,BRITISH GAS,BRI040
EFDC,YB110,SUPERVISION/MANAGEMENT SPECIAL,ELECTRICITY,1120,06-Feb-19,145981,29.57,BRITISH GAS,BRI040
EFDC,YB110,SUPERVISION/MANAGEMENT SPECIAL,ELECTRICITY,1120,06-Feb-19,145981,10.36,BRITISH GAS,BRI040
EFDC,YB110,SUPERVISION/MANAGEMENT SPECIAL,ELECTRICITY,1120,06-Feb-19,145981,27.17,BRITISH GAS,BRI040
EFDC,YB110,SUPERVISION/MANAGEMENT SPECIAL,ELECTRICITY,1120,06-Feb-19,145981,23.44,BRITISH GAS,BRI040
EFDC,YB110,SUPERVISION/MANAGEMENT SPECIAL,ELECTRICITY,1120,06-Feb-19,145981,6.97,BRITISH GAS,BRI040
EFDC,YB110,SUPERVISION/MANAGEMENT SPECIAL,ELECTRICITY,1120,06-Feb-19,145981,29.11,BRITISH GAS,BRI040
EFDC,YB110,SUPERVISION/MANAGEMENT SPECIAL,ELECTRICITY,1120,06-Feb-19,145981,16.44,BRITISH GAS,BRI040
EFDC,YB110,SUPERVISION/MANAGEMENT SPECIAL,ELECTRICITY,1120,06-Feb-19,145981,28.85,BRITISH GAS,BRI040
EFDC,YB110,SUPERVISION/MANAGEMENT SPECIAL,ELECTRICITY,1120,06-Feb-19,145981,17.5,BRITISH GAS,BRI040
EFDC,YB110,SUPERVISION/MANAGEMENT SPECIAL,ELECTRICITY,1120,06-Feb-19,145981,38.5,BRITISH GAS,BRI040
EFDC,YB110,SUPERVISION/MANAGEMENT SPECIAL,ELECTRICITY,1120,06-Feb-19,145981,34.82,BRITISH GAS,BRI040
EFDC,YB110,SUPERVISION/MANAGEMENT SPECIAL,ELECTRICITY,1120,06-Feb-19,145981,26.35,BRITISH GAS,BRI040
EFDC,YB110,SUPERVISION/MANAGEMENT SPECIAL,ELECTRICITY,1120,06-Feb-19,145981,6.3,BRITISH GAS,BRI040
EFDC,YB110,SUPERVISION/MANAGEMENT SPECIAL,ELECTRICITY,1120,06-Feb-19,145981,18.34,BRITISH GAS,BRI040
EFDC,YB110,SUPERVISION/MANAGEMENT SPECIAL,ELECTRICITY,1120,06-Feb-19,145981,6.68,BRITISH GAS,BRI040
EFDC,YB110,SUPERVISION/MANAGEMENT SPECIAL,ELECTRICITY,1120,06-Feb-19,145981,29.89,BRITISH GAS,BRI040
EFDC,YB110,SUPERVISION/MANAGEMENT SPECIAL,ELECTRICITY,1120,06-Feb-19,145981,21.11,BRITISH GAS,BRI040
EFDC,YB110,SUPERVISION/MANAGEMENT SPECIAL,ELECTRICITY,1120,06-Feb-19,145981,16,BRITISH GAS,BRI040
EFDC,YB110,SUPERVISION/MANAGEMENT SPECIAL,ELECTRICITY,1120,06-Feb-19,145981,12.81,BRITISH GAS,BRI040
EFDC,YB110,SUPERVISION/MANAGEMENT SPECIAL,ELECTRICITY,1120,06-Feb-19,145981,13.86,BRITISH GAS,BRI040
EFDC,YB110,SUPERVISION/MANAGEMENT SPECIAL,ELECTRICITY,1120,06-Feb-19,145981,15.33,BRITISH GAS,BRI040
EFDC,YB110,SUPERVISION/MANAGEMENT SPECIAL,ELECTRICITY,1120,06-Feb-19,145981,17,BRITISH GAS,BRI040
EFDC,YB110,SUPERVISION/MANAGEMENT SPECIAL,ELECTRICITY,1120,06-Feb-19,145981,24.96,BRITISH GAS,BRI040
EFDC,YB110,SUPERVISION/MANAGEMENT SPECIAL,ELECTRICITY,1120,06-Feb-19,145981,94.55,BRITISH GAS,BRI040
EFDC,YB110,SUPERVISION/MANAGEMENT SPECIAL,ELECTRICITY,1120,06-Feb-19,145981,14.17,BRITISH GAS,BRI040
EFDC,YB110,SUPERVISION/MANAGEMENT SPECIAL,ELECTRICITY,1120,06-Feb-19,145981,16.2,BRITISH GAS,BRI040
EFDC,YB110,SUPERVISION/MANAGEMENT SPECIAL,ELECTRICITY,1120,06-Feb-19,145981,11.9,BRITISH GAS,BRI040
EFDC,YB110,SUPERVISION/MANAGEMENT SPECIAL,ELECTRICITY,1120,06-Feb-19,145981,11.77,BRITISH GAS,BRI040
EFDC,YB110,SUPERVISION/MANAGEMENT SPECIAL,ELECTRICITY,1120,06-Feb-19,145981,69.6,BRITISH GAS,BRI040
EFDC,YB110,SUPERVISION/MANAGEMENT SPECIAL,ELECTRICITY,1120,06-Feb-19,145981,56.66,BRITISH GAS,BRI040
EFDC,YB110,SUPERVISION/MANAGEMENT SPECIAL,ELECTRICITY,1120,06-Feb-19,145981,237.35,BRITISH GAS,BRI040
EFDC,YB110,SUPERVISION/MANAGEMENT SPECIAL,ELECTRICITY,1120,06-Feb-19,145981,19.21,BRITISH GAS,BRI040
EFDC,YB110,SUPERVISION/MANAGEMENT SPECIAL,ELECTRICITY,1120,06-Feb-19,145981,46.34,BRITISH GAS,BRI040
EFDC,YB110,SUPERVISION/MANAGEMENT SPECIAL,ELECTRICITY,1120,06-Feb-19,145981,15.63,BRITISH GAS,BRI040
EFDC,YB110,SUPERVISION/MANAGEMENT SPECIAL,ELECTRICITY,1120,06-Feb-19,145981,22.06,BRITISH GAS,BRI040
EFDC,YB110,SUPERVISION/MANAGEMENT SPECIAL,ELECTRICITY,1120,06-Feb-19,145981,12.01,BRITISH GAS,BRI040
EFDC,YB110,SUPERVISION/MANAGEMENT SPECIAL,ELECTRICITY,1120,06-Feb-19,145981,7.02,BRITISH GAS,BRI040
EFDC,YB110,SUPERVISION/MANAGEMENT SPECIAL,ELECTRICITY,1120,06-Feb-19,145981,12.46,BRITISH GAS,BRI040
EFDC,YB110,SUPERVISION/MANAGEMENT SPECIAL,ELECTRICITY,1120,06-Feb-19,145981,7.12,BRITISH GAS,BRI040
EFDC,YB110,SUPERVISION/MANAGEMENT SPECIAL,ELECTRICITY,1120,06-Feb-19,145981,8.09,BRITISH GAS,BRI040
EFDC,YB110,SUPERVISION/MANAGEMENT SPECIAL,ELECTRICITY,1120,06-Feb-19,145981,17.92,BRITISH GAS,BRI040
EFDC,YB110,SUPERVISION/MANAGEMENT SPECIAL,ELECTRICITY,1120,06-Feb-19,145981,18.86,BRITISH GAS,BRI040
EFDC,YB110,SUPERVISION/MANAGEMENT SPECIAL,ELECTRICITY,1120,06-Feb-19,145981,19.04,BRITISH GAS,BRI040
EFDC,YB110,SUPERVISION/MANAGEMENT SPECIAL,ELECTRICITY,1120,06-Feb-19,145981,139.92,BRITISH GAS,BRI040
EFDC,YB110,SUPERVISION/MANAGEMENT SPECIAL,ELECTRICITY,1120,06-Feb-19,145981,20.61,BRITISH GAS,BRI040
EFDC,YB110,SUPERVISION/MANAGEMENT SPECIAL,ELECTRICITY,1120,06-Feb-19,145981,12.95,BRITISH GAS,BRI040
EFDC,YB110,SUPERVISION/MANAGEMENT SPECIAL,ELECTRICITY,1120,06-Feb-19,145981,77.17,BRITISH GAS,BRI040
EFDC,YB110,SUPERVISION/MANAGEMENT SPECIAL,ELECTRICITY,1120,06-Feb-19,145981,14.15,BRITISH GAS,BRI040
EFDC,YB110,SUPERVISION/MANAGEMENT SPECIAL,ELECTRICITY,1120,06-Feb-19,145981,13.91,BRITISH GAS,BRI040
EFDC,YB110,SUPERVISION/MANAGEMENT SPECIAL,ELECTRICITY,1120,06-Feb-19,145981,17.56,BRITISH GAS,BRI040
EFDC,YB110,SUPERVISION/MANAGEMENT SPECIAL,ELECTRICITY,1120,06-Feb-19,145981,12.38,BRITISH GAS,BRI040
EFDC,YB110,SUPERVISION/MANAGEMENT SPECIAL,ELECTRICITY,1120,06-Feb-19,145981,14.3,BRITISH GAS,BRI040
EFDC,YB110,SUPERVISION/MANAGEMENT SPECIAL,ELECTRICITY,1120,06-Feb-19,145981,13.45,BRITISH GAS,BRI040
EFDC,YB110,SUPERVISION/MANAGEMENT SPECIAL,ELECTRICITY,1120,06-Feb-19,145981,14.93,BRITISH GAS,BRI040
EFDC,YB110,SUPERVISION/MANAGEMENT SPECIAL,ELECTRICITY,1120,06-Feb-19,145981,14.76,BRITISH GAS,BRI040
EFDC,YB110,SUPERVISION/MANAGEMENT SPECIAL,ELECTRICITY,1120,06-Feb-19,145981,76.5,BRITISH GAS,BRI040
EFDC,YB110,SUPERVISION/MANAGEMENT SPECIAL,ELECTRICITY,1120,06-Feb-19,145981,16.28,BRITISH GAS,BRI040
EFDC,YB110,SUPERVISION/MANAGEMENT SPECIAL,ELECTRICITY,1120,06-Feb-19,145981,22.29,BRITISH GAS,BRI040
EFDC,YB110,SUPERVISION/MANAGEMENT SPECIAL,ELECTRICITY,1120,06-Feb-19,145981,13.59,BRITISH GAS,BRI040
EFDC,YB110,SUPERVISION/MANAGEMENT SPECIAL,ELECTRICITY,1120,06-Feb-19,145981,14.24,BRITISH GAS,BRI040
EFDC,YB110,SUPERVISION/MANAGEMENT SPECIAL,ELECTRICITY,1120,06-Feb-19,145981,14.63,BRITISH GAS,BRI040
EFDC,YB110,SUPERVISION/MANAGEMENT SPECIAL,ELECTRICITY,1120,06-Feb-19,145981,15.4,BRITISH GAS,BRI040
EFDC,YB110,SUPERVISION/MANAGEMENT SPECIAL,ELECTRICITY,1120,06-Feb-19,145981,15.37,BRITISH GAS,BRI040
EFDC,YB110,SUPERVISION/MANAGEMENT SPECIAL,ELECTRICITY,1120,06-Feb-19,145981,21.18,BRITISH GAS,BRI040
EFDC,YB110,SUPERVISION/MANAGEMENT SPECIAL,ELECTRICITY,1120,06-Feb-19,145981,13.45,BRITISH GAS,BRI040
EFDC,YB110,SUPERVISION/MANAGEMENT SPECIAL,ELECTRICITY,1120,06-Feb-19,145981,13.8,BRITISH GAS,BRI040
EFDC,YB500,SUPERVISION/MANAGEMENT SPECIAL,ELECTRICITY,1120,06-Feb-19,145981,470.91,BRITISH GAS,BRI040
EFDC,YB500,SUPERVISION/MANAGEMENT SPECIAL,ELECTRICITY,1120,06-Feb-19,145981,16.4,BRITISH GAS,BRI040
EFDC,YB500,SUPERVISION/MANAGEMENT SPECIAL,ELECTRICITY,1120,06-Feb-19,145981,10.47,BRITISH GAS,BRI040
EFDC,YB500,SUPERVISION/MANAGEMENT SPECIAL,ELECTRICITY,1120,06-Feb-19,145981,4.45,BRITISH GAS,BRI040
EFDC,YB500,SUPERVISION/MANAGEMENT SPECIAL,ELECTRICITY,1120,06-Feb-19,145981,17.62,BRITISH GAS,BRI040
EFDC,YB500,SUPERVISION/MANAGEMENT SPECIAL,ELECTRICITY,1120,06-Feb-19,145981,42.83,BRITISH GAS,BRI040
EFDC,YB500,SUPERVISION/MANAGEMENT SPECIAL,ELECTRICITY,1120,06-Feb-19,145981,63.57,BRITISH GAS,BRI040
EFDC,YB500,SUPERVISION/MANAGEMENT SPECIAL,ELECTRICITY,1120,06-Feb-19,145981,45.19,BRITISH GAS,BRI040
EFDC,YB500,SUPERVISION/MANAGEMENT SPECIAL,ELECTRICITY,1120,06-Feb-19,145981,4.5,BRITISH GAS,BRI040
EFDC,YB500,SUPERVISION/MANAGEMENT SPECIAL,ELECTRICITY,1120,06-Feb-19,145981,326.27,BRITISH GAS,BRI040
EFDC,YB500,SUPERVISION/MANAGEMENT SPECIAL,ELECTRICITY,1120,06-Feb-19,145981,17.61,BRITISH GAS,BRI040
EFDC,YB500,SUPERVISION/MANAGEMENT SPECIAL,ELECTRICITY,1120,06-Feb-19,145981,6.9,BRITISH GAS,BRI040
EFDC,YB500,SUPERVISION/MANAGEMENT SPECIAL,ELECTRICITY,1120,06-Feb-19,145981,608.27,BRITISH GAS,BRI040
EFDC,YB500,SUPERVISION/MANAGEMENT SPECIAL,ELECTRICITY,1120,06-Feb-19,145981,359.21,BRITISH GAS,BRI040
EFDC,YB500,SUPERVISION/MANAGEMENT SPECIAL,ELECTRICITY,1120,06-Feb-19,145981,53.02,BRITISH GAS,BRI040
EFDC,YB500,SUPERVISION/MANAGEMENT SPECIAL,ELECTRICITY,1120,06-Feb-19,145981,296.53,BRITISH GAS,BRI040
EFDC,YB500,SUPERVISION/MANAGEMENT SPECIAL,ELECTRICITY,1120,06-Feb-19,145981,220.06,BRITISH GAS,BRI040
EFDC,YB500,SUPERVISION/MANAGEMENT SPECIAL,ELECTRICITY,1120,06-Feb-19,145981,363.75,BRITISH GAS,BRI040
EFDC,YB500,SUPERVISION/MANAGEMENT SPECIAL,ELECTRICITY,1120,06-Feb-19,145981,6.51,BRITISH GAS,BRI040
EFDC,YB500,SUPERVISION/MANAGEMENT SPECIAL,ELECTRICITY,1120,06-Feb-19,145981,4.49,BRITISH GAS,BRI040
EFDC,YB500,SUPERVISION/MANAGEMENT SPECIAL,ELECTRICITY,1120,06-Feb-19,145981,16.06,BRITISH GAS,BRI040
EFDC,YB500,SUPERVISION/MANAGEMENT SPECIAL,ELECTRICITY,1120,06-Feb-19,145981,18.35,BRITISH GAS,BRI040
EFDC,YB500,SUPERVISION/MANAGEMENT SPECIAL,ELECTRICITY,1120,06-Feb-19,145981,15.07,BRITISH GAS,BRI040
EFDC,YB500,SUPERVISION/MANAGEMENT SPECIAL,ELECTRICITY,1120,06-Feb-19,145981,7.07,BRITISH GAS,BRI040
EFDC,YB500,SUPERVISION/MANAGEMENT SPECIAL,ELECTRICITY,1120,06-Feb-19,145981,12.18,BRITISH GAS,BRI040
EFDC,YB500,SUPERVISION/MANAGEMENT SPECIAL,ELECTRICITY,1120,06-Feb-19,145981,58.42,BRITISH GAS,BRI040
EFDC,YB500,SUPERVISION/MANAGEMENT SPECIAL,ELECTRICITY,1120,06-Feb-19,145981,9.11,BRITISH GAS,BRI040
EFDC,YB520,SUPERVISION/MANAGEMENT SPECIAL,ELECTRICITY,1120,06-Feb-19,145981,210.94,BRITISH GAS,BRI040
EFDC,YB520,SUPERVISION/MANAGEMENT SPECIAL,ELECTRICITY,1120,06-Feb-19,145981,210.1,BRITISH GAS,BRI040
EFDC,FD100,LAND DRAINAGE/SEWERAGE,ELECTRICITY,1120,06-Feb-19,145981,6.3,BRITISH GAS,BRI040
EFDC,EH160,OTHER ACTIVITIES,ELECTRICITY,1120,06-Feb-19,145981,7.46,BRITISH GAS,BRI040
EFDC,RS302,NORTH WEALD CENTRE,ELECTRICITY,1120,06-Feb-19,145981,6.97,BRITISH GAS,BRI040
EFDC,TI190,LAND & PROPERTY,ELECTRICITY,1120,06-Feb-19,145981,72.23,BRITISH GAS,BRI040
EFDC,RS301,NORTH WEALD CENTRE,ELECTRICITY,1120,06-Feb-19,145981,13.67,BRITISH GAS,BRI040
EFDC,YB110,SUPERVISION/MANAGEMENT SPECIAL,ELECTRICITY,1120,06-Feb-19,145981,14.28,BRITISH GAS,BRI040
EFDC,35300,CONTRACT & TECH SUPPORT SERVIC,ELECTRICITY,1120,06-Feb-19,145981,134.25,BRITISH GAS,BRI040
EFDC,CH110,"MUSEUM, HERITAGE & CULTURE",ELECTRICITY,1120,06-Feb-19,145981,431.06,BRITISH GAS,BRI040
EFDC,EH160,OTHER ACTIVITIES,ELECTRICITY,1120,06-Feb-19,145981,39.4,BRITISH GAS,BRI040
EFDC,EH160,OTHER ACTIVITIES,ELECTRICITY,1120,06-Feb-19,145981,77.55,BRITISH GAS,BRI040
EFDC,EH160,OTHER ACTIVITIES,ELECTRICITY,1120,06-Feb-19,145981,39.02,BRITISH GAS,BRI040
EFDC,EH160,OTHER ACTIVITIES,ELECTRICITY,1120,06-Feb-19,145981,44.44,BRITISH GAS,BRI040
EFDC,UO130,LAND & PROPERTY,ELECTRICITY,1120,06-Feb-19,145981,23.57,BRITISH GAS,BRI040
EFDC,EH112,LAND DRAINAGE/SEWERAGE,ELECTRICITY,1120,06-Feb-19,145981,187.49,BRITISH GAS,BRI040
EFDC,27110,ACCOMMODATION,ELECTRICITY,1120,06-Feb-19,145981,56.8,BRITISH GAS,BRI040
EFDC,27110,ACCOMMODATION,ELECTRICITY,1120,06-Feb-19,145981,118.05,BRITISH GAS,BRI040
EFDC,27150,"COMMUNITY, HEALTH & WELLBEING",ELECTRICITY,1120,06-Feb-19,145981,630.35,BRITISH GAS,BRI040
EFDC,27150,"COMMUNITY, HEALTH & WELLBEING",ELECTRICITY,1120,06-Feb-19,145981,626.69,BRITISH GAS,BRI040
EFDC,YB620,SUPERVISION/MANAGEMENT SPECIAL,ELECTRICITY,1120,06-Feb-19,145981,395.25,BRITISH GAS,BRI040
EFDC,UO130,LAND & PROPERTY,ELECTRICITY,1120,06-Feb-19,145981,18.19,BRITISH GAS,BRI040
EFDC,UO130,LAND & PROPERTY,ELECTRICITY,1120,06-Feb-19,145981,29.23,BRITISH GAS,BRI040
EFDC,UO130,LAND & PROPERTY,ELECTRICITY,1120,06-Feb-19,145981,13.94,BRITISH GAS,BRI040
EFDC,27110,ACCOMMODATION,ELECTRICITY,1120,06-Feb-19,145981,78.01,BRITISH GAS,BRI040
EFDC,23130,ACCOMMODATION,ELECTRICITY,1120,06-Feb-19,145981,154.91,BRITISH GAS,BRI040
EFDC,UO130,LAND & PROPERTY,ELECTRICITY,1120,06-Feb-19,145981,4.27,BRITISH GAS,BRI040
EFDC,23140,ACCOMMODATION,ELECTRICITY,1120,06-Feb-19,145981,739.03,BRITISH GAS,BRI040
EFDC,23140,ACCOMMODATION,ELECTRICITY,1120,06-Feb-19,145981,646.77,BRITISH GAS,BRI040
EFDC,27050,ACCOMMODATION,ELECTRICITY,1120,06-Feb-19,145981,102.61,BRITISH GAS,BRI040
EFDC,32030,OTHER SUPPORT SERVICES,TRAINING EXPENSES,0310,06-Feb-19,145256,2550,CANON (UK) LTD,CAN004
EFDC,CAPCM,COMMUNITIES CAPITAL,EQUIPMENT ACQUISITION,C330,06-Feb-19,146169,43067.38,ESSEX LIFT SERVICES LTD,ESS032
EFDC,RM100,RESPONSIVE & VOID REPAIRS,BUILDING MAINTENANCE,1010,06-Feb-19,145810,660,FIELDWHITE SERVICES LTD,FIE003
EFDC,RM100,RESPONSIVE & VOID REPAIRS,BUILDING MAINTENANCE,1010,06-Feb-19,145811,585,FIELDWHITE SERVICES LTD,FIE003
EFDC,RM100,RESPONSIVE & VOID REPAIRS,BUILDING MAINTENANCE,1010,06-Feb-19,145812,585,FIELDWHITE SERVICES LTD,FIE003
EFDC,RM300,PLANNED & CYCLICAL MAINTENANCE,BUILDING MAINTENANCE,1010,06-Feb-19,146170,77203.36,FLOWLINE (BUILDERS) LTD,FLO003
EFDC,HI122,HIGHWAYS,TREE  MAINTENANCE,1070,06-Feb-19,144649,2424,GRISTWOOD & TOMS LTD,GRI001
EFDC,OS101,PARKS & GROUNDS,TREE  MAINTENANCE,1070,06-Feb-19,144649,5251,GRISTWOOD & TOMS LTD,GRI001
EFDC,YB400,SUPERVISION/MANAGEMENT SPECIAL,TREE  MAINTENANCE,1070,06-Feb-19,144649,2112,GRISTWOOD & TOMS LTD,GRI001
EFDC,32121,OTHER SUPPORT SERVICES,RECRUITMENT EXPENSES,0320,06-Feb-19,144789,1500,HAYS SPECIALIST RECRUITMENT LTD,HAY011
EFDC,32220,OTHER SUPPORT SERVICES,AGENCY STAFF,0120,06-Feb-19,144788,1589.28,HAYS SPECIALIST RECRUITMENT LTD,HAY011
EFDC,GT100,LOCAL PLAN IMPLEMENTATION,RENTS / HIRE OF HALL,1210,06-Feb-19,144869,599,HAYMARKET MEDIA GROUP LTD,HAY012
EFDC,32060,OTHER SUPPORT SERVICES,AGENCY STAFF,0120,06-Feb-19,145311,1749,LAW ABSOLUTE LIMITED,LAW009
EFDC,YA200,SUPERVISION/MANAGEMENT GENERAL,PROFESSIONAL FEES,3420,06-Feb-19,146078,532,ABBEY ENGRAVING,ABB007
EFDC,YA200,SUPERVISION/MANAGEMENT GENERAL,PROFESSIONAL FEES,3420,06-Feb-19,146078,810,ABBEY ENGRAVING,ABB007
EFDC,CH116,"MUSEUM, HERITAGE & CULTURE",PROFESSIONAL FEES,3420,06-Feb-19,146061,940.31,ACE SECURITY & ELECTRICAL LTD,ACE001
EFDC,YB120,SUPERVISION/MANAGEMENT SPECIAL,CLEANING MATERIALS,1610,06-Feb-19,146088,74.72,BUNZL CLEANING & HYGIENE SUPPLIES,BUN004
EFDC,YB120,SUPERVISION/MANAGEMENT SPECIAL,CLEANING MATERIALS,1610,06-Feb-19,146088,22.5,BUNZL CLEANING & HYGIENE SUPPLIES,BUN004
EFDC,YB120,SUPERVISION/MANAGEMENT SPECIAL,CLEANING MATERIALS,1610,06-Feb-19,146088,22.75,BUNZL CLEANING & HYGIENE SUPPLIES,BUN004
EFDC,YB120,SUPERVISION/MANAGEMENT SPECIAL,CLEANING MATERIALS,1610,06-Feb-19,146088,99.81,BUNZL CLEANING & HYGIENE SUPPLIES,BUN004
EFDC,YB120,SUPERVISION/MANAGEMENT SPECIAL,CLEANING MATERIALS,1610,06-Feb-19,146088,29.27,BUNZL CLEANING & HYGIENE SUPPLIES,BUN004
EFDC,YB120,SUPERVISION/MANAGEMENT SPECIAL,CLEANING MATERIALS,1610,06-Feb-19,146088,54.65,BUNZL CLEANING & HYGIENE SUPPLIES,BUN004
EFDC,YB120,SUPERVISION/MANAGEMENT SPECIAL,CLEANING MATERIALS,1610,06-Feb-19,146088,44.3,BUNZL CLEANING & HYGIENE SUPPLIES,BUN004
EFDC,YB120,SUPERVISION/MANAGEMENT SPECIAL,CLEANING MATERIALS,1610,06-Feb-19,146088,33.4,BUNZL CLEANING & HYGIENE SUPPLIES,BUN004
EFDC,YB120,SUPERVISION/MANAGEMENT SPECIAL,CLEANING MATERIALS,1610,06-Feb-19,146088,101.52,BUNZL CLEANING & HYGIENE SUPPLIES,BUN004
EFDC,YB120,SUPERVISION/MANAGEMENT SPECIAL,CLEANING MATERIALS,1610,06-Feb-19,146088,8.9,BUNZL CLEANING & HYGIENE SUPPLIES,BUN004
EFDC,YB120,SUPERVISION/MANAGEMENT SPECIAL,CLEANING MATERIALS,1610,06-Feb-19,146088,57.48,BUNZL CLEANING & HYGIENE SUPPLIES,BUN004
EFDC,YB120,SUPERVISION/MANAGEMENT SPECIAL,CLEANING MATERIALS,1610,06-Feb-19,146088,33,BUNZL CLEANING & HYGIENE SUPPLIES,BUN004
EFDC,YB120,SUPERVISION/MANAGEMENT SPECIAL,CLEANING MATERIALS,1610,06-Feb-19,146088,10.7,BUNZL CLEANING & HYGIENE SUPPLIES,BUN004
EFDC,YB120,SUPERVISION/MANAGEMENT SPECIAL,CLEANING MATERIALS,1610,06-Feb-19,146088,5.6,BUNZL CLEANING & HYGIENE SUPPLIES,BUN004
EFDC,DC120,PLANNING REGULATORY SERVICES,PUBLICITY,3360,06-Feb-19,145043,714,NEWSQUEST MEDIA GROUP,NEW002
EFDC,33080,OTHER ACTIVITIES,ANNUAL SUPPORT /  LICENSES,3872,06-Feb-19,145003,943.32,PHOENIX SOFTWARE LTD,PHO002
EFDC,33080,OTHER ACTIVITIES,ANNUAL SUPPORT /  LICENSES,3872,06-Feb-19,145003,582.24,PHOENIX SOFTWARE LTD,PHO002
EFDC,33080,OTHER ACTIVITIES,ANNUAL SUPPORT /  LICENSES,3872,06-Feb-19,145003,6122.52,PHOENIX SOFTWARE LTD,PHO002
EFDC,LA100,LAA POOLED FUNDS,LAA EXPENDITURE,Y100,06-Feb-19,145247,7000,POLICE & CRIME COMMISSIONER FOR ESSEX,POL007
EFDC,37100,PLANNING SUPPORT SERVICES,AGENCY STAFF,0120,06-Feb-19,146136,591.12,REED SPECIALIST RECRUITMENT LTD,REE002
EFDC,36200,HRA SUPPORT SERVICES,TRAINING EXPENSES,0310,06-Feb-19,144646,525,SOLACE GROUP LTD,SOL010
EFDC,YB520,SUPERVISION/MANAGEMENT SPECIAL,OTHER CONTRACTORS,4340,06-Feb-19,144654,4784.13,TUNSTALL HEALTHCARE (UK) LTD,TUN001
EFDC,26200,OTHER SUPPORT SERVICES,BUILDING MAINTENANCE,1010,06-Feb-19,145405,750,TANKER AND DRAIN SOLUTIONS LTD,TAN004
EFDC,26200,OTHER SUPPORT SERVICES,BUILDING MAINTENANCE,1010,06-Feb-19,145405,670,TANKER AND DRAIN SOLUTIONS LTD,TAN004
EFDC,78001,HRA SUPPORT SERVICES,MATERIALS,3080,06-Feb-19,145219,566.58,TRAVIS PERKINS TRADING COMPANY LTD,TRA001
EFDC,78001,HRA SUPPORT SERVICES,MATERIALS,3080,06-Feb-19,145216,594.22,TRAVIS PERKINS TRADING COMPANY LTD,TRA001
EFDC,32121,OTHER SUPPORT SERVICES,CONSULTANTS FEES,3490,06-Feb-19,145023,1805,VINE HR LTD,VIN003
EFDC,32121,OTHER SUPPORT SERVICES,CONSULTANTS FEES,3490,06-Feb-19,145022,1325,VINE HR LTD,VIN003
EFDC,EH150,REGULATORY SERVICES,EQUIPMENT - NEW,3010,06-Feb-19,144870,1256.87,VIP-SYSTEM LIMITED,VIP001
EFDC,CAPCM,COMMUNITIES CAPITAL,WORKS,A040,06-Feb-19,146173,8600,VSN ENTERPRISES LTD,VSN001
EFDC,CAPCM,COMMUNITIES CAPITAL,WORKS,A040,06-Feb-19,146173,9791.56,VSN ENTERPRISES LTD,VSN001
EFDC,UO120,LAND & PROPERTY,PREMISES,1030,06-Feb-19,146074,5961,UK POWER NETWORKS (OPERATIONS) LTD,UKP001
EFDC,FD100,LAND DRAINAGE/SEWERAGE,CLEANSING CONTRACTORS,4320,06-Feb-19,145757,292,EMERY ELECTRICAL LTD,EME001
EFDC,FD100,LAND DRAINAGE/SEWERAGE,CLEANSING CONTRACTORS,4320,06-Feb-19,145757,264.12,EMERY ELECTRICAL LTD,EME001
EFDC,CAPCM,COMMUNITIES CAPITAL,VEHICLES,L300,06-Feb-19,146075,10000,VOLUNTARY ACTION EPPING FOREST,VOL004
EFDC,RM100,RESPONSIVE & VOID REPAIRS,BUILDING MAINTENANCE,1010,06-Feb-19,145646,560,GRACELANDS COMPLETE MAINTENANCE SERVICES LTD,GRA007
EFDC,RM100,RESPONSIVE & VOID REPAIRS,BUILDING MAINTENANCE,1010,06-Feb-19,145234,1027.33,GRACELANDS COMPLETE MAINTENANCE SERVICES LTD,GRA007
EFDC,RM100,RESPONSIVE & VOID REPAIRS,BUILDING MAINTENANCE,1010,06-Feb-19,145057,6329.83,GRACELANDS COMPLETE MAINTENANCE SERVICES LTD,GRA007
EFDC,RM300,PLANNED & CYCLICAL MAINTENANCE,BUILDING MAINTENANCE,1010,06-Feb-19,146172,11840.61,GRACELANDS COMPLETE MAINTENANCE SERVICES LTD,GRA007
EFDC,RM200,RESPONSIVE & VOID REPAIRS,BUILDING MAINTENANCE,1010,06-Feb-19,144776,2259.7,GRACELANDS COMPLETE MAINTENANCE SERVICES LTD,GRA007
EFDC,RM200,RESPONSIVE & VOID REPAIRS,BUILDING MAINTENANCE,1010,06-Feb-19,144879,660,GRACELANDS COMPLETE MAINTENANCE SERVICES LTD,GRA007
EFDC,CAPCM,COMMUNITIES CAPITAL,WORKS,A040,06-Feb-19,146172,24434.28,GRACELANDS COMPLETE MAINTENANCE SERVICES LTD,GRA007
EFDC,OS110,PARKS & GROUNDS,GROUNDS MAINTENANCE,1040,06-Feb-19,145328,631,HUGH PEARL (LAND DRAINAGE) LTD,HUG001
EFDC,FD100,LAND DRAINAGE/SEWERAGE,HIGHWAYS CONTRACTORS,4310,06-Feb-19,144245,1862,HUGH PEARL (LAND DRAINAGE) LTD,HUG001
EFDC,26200,OTHER SUPPORT SERVICES,BUILDING MAINTENANCE,1010,06-Feb-19,145054,1131.28,HUGH PEARL (LAND DRAINAGE) LTD,HUG001
EFDC,UO130,LAND & PROPERTY,PREMISES,1030,06-Feb-19,146135,652.5,PURDY CONTRACTS LTD,PUR002
EFDC,RM100,RESPONSIVE & VOID REPAIRS,BUILDING MAINTENANCE,1010,06-Feb-19,144827,2542.35,M & J SERVICES LTD,SER009
EFDC,RM100,RESPONSIVE & VOID REPAIRS,BUILDING MAINTENANCE,1010,06-Feb-19,145664,5300.35,M & J SERVICES LTD,SER009
EFDC,36500,HRA SUPPORT SERVICES,AGENCY STAFF,0120,06-Feb-19,146122,883.48,MORGAN HUNT UK LTD,MOR001
EFDC,GD100,VOLUNTARY SECTOR SUPPORT,GRANTS TO VOLUNTARY ORGS,3710,06-Feb-19,146069,1615,LOUGHTON METHODIST CHURCH,LOU003
EFDC,32030,OTHER SUPPORT SERVICES,TRAINING EXPENSES,0310,06-Feb-19,146145,3525,SIMON HORSINGTON & ASSOCIATES LIMITED,SIM002
EFDC,32030,OTHER SUPPORT SERVICES,TRAINING EXPENSES,0310,06-Feb-19,145285,2315.7,HERTFORD REGIONAL COLLEGE,HER003
EFDC,26200,OTHER SUPPORT SERVICES,BUILDING MAINTENANCE,1010,06-Feb-19,145019,2730,T B PROPERTY SERVICES (ESSEX) LTD,TBP001
EFDC,26200,OTHER SUPPORT SERVICES,BUILDING MAINTENANCE,1010,06-Feb-19,145019,600,T B PROPERTY SERVICES (ESSEX) LTD,TBP001
EFDC,WC100,WASTE MANAGEMENT,CONSULTANTS FEES,3490,06-Feb-19,144831,3673,WYG ENVIRONMENT PLANNING TRANSPORT LTD,WYG001
EFDC,CAPCM,COMMUNITIES CAPITAL,VOIDS WORKS,A045,06-Feb-19,144799,1426,WOODS BUILDING SERVICES LTD,WOO001
EFDC,CAPCM,COMMUNITIES CAPITAL,WORKS,A040,06-Feb-19,144510,1150,WOODS BUILDING SERVICES LTD,WOO001
EFDC,CAPCM,COMMUNITIES CAPITAL,WORKS,A040,06-Feb-19,144800,990,WOODS BUILDING SERVICES LTD,WOO001
EFDC,42310,GOVERNANCE SUPPORT SERVICES,AGENCY STAFF,0120,06-Feb-19,144901,1404,MATCHTECH GROUP LTD,MAT002
EFDC,42310,GOVERNANCE SUPPORT SERVICES,AGENCY STAFF,0120,06-Feb-19,144902,864.63,MATCHTECH GROUP LTD,MAT002
EFDC,YA200,SUPERVISION/MANAGEMENT GENERAL,MATERIALS,3080,06-Feb-19,145271,1203.5,NSP (NORMANTON SCREEN PRINT),NSP001
EFDC,CAPNB,NEIGHBOURHOODS CAPITAL,WORKS,B040,06-Feb-19,146082,1260,M J ANDERSON MAINTENANCE CONTRACTORS LTD,AND003
EFDC,CAPNB,NEIGHBOURHOODS CAPITAL,WORKS,B040,06-Feb-19,146082,1069.26,M J ANDERSON MAINTENANCE CONTRACTORS LTD,AND003
EFDC,32220,OTHER SUPPORT SERVICES,AGENCY STAFF,0120,06-Feb-19,145435,3881.43,CAPSTONE PROPERTY RECRUITMENT LTD,CAP001
EFDC,YB400,SUPERVISION/MANAGEMENT SPECIAL,TREE  MAINTENANCE,1070,06-Feb-19,145752,2650,CROWN TREE SERVICES,CRO004
EFDC,CAPCM,COMMUNITIES CAPITAL,WORKS,E040,06-Feb-19,146068,24978.77,P A FINLAY & COMPANY LTD,FIN003
EFDC,CAPCM,COMMUNITIES CAPITAL,WORKS,E040,06-Feb-19,146068,24843.52,P A FINLAY & COMPANY LTD,FIN003
EFDC,CAPCM,COMMUNITIES CAPITAL,WORKS,E040,06-Feb-19,146068,6072.07,P A FINLAY & COMPANY LTD,FIN003
EFDC,CAPCM,COMMUNITIES CAPITAL,WORKS,E040,06-Feb-19,146068,15290.5,P A FINLAY & COMPANY LTD,FIN003
EFDC,RM500,OTHER ITEMS,CONSULTANTS FEES,3490,06-Feb-19,144456,522.5,ZENERGI LTD,ZEN001
EFDC,RM200,RESPONSIVE & VOID REPAIRS,BUILDING MAINTENANCE,1010,06-Feb-19,145347,3753,WICKES BUILDING SUPPLIES LTD,WIC004
EFDC,HI124,HIGHWAYS,OTHER MAINTENANCE,1050,06-Feb-19,145585,1430,W H CONSTRUCTION LTD,CON014
EFDC,PS100,CAR PARKING,OTHER MAINTENANCE,1050,06-Feb-19,145581,620,W H CONSTRUCTION LTD,CON014
EFDC,PS100,CAR PARKING,OTHER MAINTENANCE,1050,06-Feb-19,144832,4919.6,MURRILL CONSTRUCTION LTD,MUR004
EFDC,PS100,CAR PARKING,OTHER MAINTENANCE,1050,06-Feb-19,144834,1550,MURRILL CONSTRUCTION LTD,MUR004
EFDC,37600,PLANNING SUPPORT SERVICES,AGENCY STAFF,0120,06-Feb-19,144774,1977.5,VIVID RESOURCING LTD,VIV002
EFDC,37600,PLANNING SUPPORT SERVICES,AGENCY STAFF,0120,06-Feb-19,144773,3412.5,VIVID RESOURCING LTD,VIV002
EFDC,PS100,CAR PARKING,PARKING CONTRACTOR,4350,06-Feb-19,144894,17800.09,NSL LIMITED,NSL001
EFDC,PS100,CAR PARKING,PARKING CONTRACTOR,4350,06-Feb-19,144893,17530.68,NSL LIMITED,NSL001
EFDC,37500,PLANNING SUPPORT SERVICES,AGENCY STAFF,0120,06-Feb-19,146120,1792.05,LEE AND SIBLEY CONSTRUCTION & DEVELOPMENT LTD,LEE003
EFDC,PP111,LOCAL PLAN IMPLEMENTATION,PROFESSIONAL FEES,3420,06-Feb-19,146087,15094.8,BLOOM PROCUREMENT SERVICES LTD,BLO001
EFDC,GT100,LOCAL PLAN IMPLEMENTATION,CONSULTANTS FEES,3490,06-Feb-19,145020,5000,THINKING PLACE LIMITED,THI027
EFDC,CAPRS,RESOURCES CAPITAL,WORKS,B040,06-Feb-19,145741,1047.16,BALDWIN BOXALL COMMUNICATION LTD,BAL027
EFDC,CAPRS,RESOURCES CAPITAL,WORKS,B040,06-Feb-19,145742,1450,BALDWIN BOXALL COMMUNICATION LTD,BAL027
EFDC,CAPRS,RESOURCES CAPITAL,WORKS,B040,06-Feb-19,145741,18340,BALDWIN BOXALL COMMUNICATION LTD,BAL027
EFDC,PH100,PRIVATE SECTOR HOUSING,GRANTS GENERAL,3720,12-Feb-19,31899,5078,STANNAH LIFT SERVICES LTD,STA002
EFDC,PH100,PRIVATE SECTOR HOUSING,GRANTS GENERAL,3720,12-Feb-19,31900,7100,E M S LIFTS LIMITED,EMS001
EFDC,HL100,HOMELESSNESS,PROFESSIONAL FEES,3420,12-Feb-19,31905,20426.94,DUNCAN LEWIS SOLICITORS,8635P
EFDC,BAL01,EFDC BALANCE SHEET,DEPOSITS - PAID,Z223,12-Feb-19,31910,800,M WHELAN & CO,8639P
EFDC,BAL01,EFDC BALANCE SHEET,SUNDRY DEBTORS (OTHER),Z208,12-Feb-19,31910,800,M WHELAN & CO,8639P
EFDC,DC110,PLANNING REGULATORY SERVICES,LEGAL EXPENSES,3680,12-Feb-19,31912,9660,JIM PHILLIPS,8640P
EFDC,BAL01,EFDC BALANCE SHEET,AIMS,Z211,12-Feb-19,31892,7890.4,MOUNTAIN WAREHOUSE LIMITED,8625P
EFDC,BAL01,EFDC BALANCE SHEET,SUNDRY DEBTORS (OTHER),Z208,12-Feb-19,31897,1140,MONTAGUES PROPERTY MANAGEMENT LTD,8630P
EFDC,28030,OTHER SUPPORT SERVICES,MATERIALS,3080,13-Feb-19,145609,-51.15,CARE VENDING SERVICES LTD,CAR017
EFDC,28030,OTHER SUPPORT SERVICES,MATERIALS,3080,13-Feb-19,145609,586.72,CARE VENDING SERVICES LTD,CAR017
EFDC,33080,OTHER ACTIVITIES,EQUIPMENT - NEW,3010,13-Feb-19,146552,3150,CCS MEDIA LTD,CCS002
EFDC,32030,OTHER SUPPORT SERVICES,EQUIPMENT - NEW,3010,13-Feb-19,146552,41.12,CCS MEDIA LTD,CCS002
EFDC,32120,OTHER SUPPORT SERVICES,EMPLOYEES - OTHER PAYMENTS,0191,13-Feb-19,146533,134.21,COMPUTERSHAREVOUCHER SERVICES,BUS009
EFDC,BAL01,EFDC BALANCE SHEET,BUSY BEES,Z606,13-Feb-19,146533,2064.75,COMPUTERSHAREVOUCHER SERVICES,BUS009
EFDC,33055,OTHER ACTIVITIES,AGENCY STAFF,0120,13-Feb-19,146576,3176.4,EDEN BROWN LTD,EDE001
EFDC,26200,OTHER SUPPORT SERVICES,FIXED PLANT MAINTENANCE,1020,13-Feb-19,145374,704.15,EDMUNDSON ELECTRICAL LTD,EDM001
EFDC,RM400,PLANNED & CYCLICAL MAINTENANCE,BUILDING MAINTENANCE,1010,13-Feb-19,145370,227.28,EDMUNDSON ELECTRICAL LTD,EDM001
EFDC,RM400,PLANNED & CYCLICAL MAINTENANCE,BUILDING MAINTENANCE,1010,13-Feb-19,145370,568.68,EDMUNDSON ELECTRICAL LTD,EDM001
EFDC,26200,OTHER SUPPORT SERVICES,BUILDING MAINTENANCE,1010,13-Feb-19,144964,134.7,EDMUNDSON ELECTRICAL LTD,EDM001
EFDC,26200,OTHER SUPPORT SERVICES,BUILDING MAINTENANCE,1010,13-Feb-19,144964,830.85,EDMUNDSON ELECTRICAL LTD,EDM001
EFDC,CAPNB,NEIGHBOURHOODS CAPITAL,WORKS,B040,13-Feb-19,145755,32.69,EDMUNDSON ELECTRICAL LTD,EDM001
EFDC,CAPNB,NEIGHBOURHOODS CAPITAL,WORKS,B040,13-Feb-19,145755,75.6,EDMUNDSON ELECTRICAL LTD,EDM001
EFDC,CAPNB,NEIGHBOURHOODS CAPITAL,WORKS,B040,13-Feb-19,145755,25.84,EDMUNDSON ELECTRICAL LTD,EDM001
EFDC,CAPNB,NEIGHBOURHOODS CAPITAL,WORKS,B040,13-Feb-19,145755,2.94,EDMUNDSON ELECTRICAL LTD,EDM001
EFDC,CAPNB,NEIGHBOURHOODS CAPITAL,WORKS,B040,13-Feb-19,145755,3.39,EDMUNDSON ELECTRICAL LTD,EDM001
EFDC,CAPNB,NEIGHBOURHOODS CAPITAL,WORKS,B040,13-Feb-19,145755,6.9,EDMUNDSON ELECTRICAL LTD,EDM001
EFDC,CAPNB,NEIGHBOURHOODS CAPITAL,WORKS,B040,13-Feb-19,145755,34.06,EDMUNDSON ELECTRICAL LTD,EDM001
EFDC,CAPNB,NEIGHBOURHOODS CAPITAL,WORKS,B040,13-Feb-19,145755,3.02,EDMUNDSON ELECTRICAL LTD,EDM001
EFDC,CAPNB,NEIGHBOURHOODS CAPITAL,WORKS,B040,13-Feb-19,145755,9.95,EDMUNDSON ELECTRICAL LTD,EDM001
EFDC,CAPNB,NEIGHBOURHOODS CAPITAL,WORKS,B040,13-Feb-19,145755,24.9,EDMUNDSON ELECTRICAL LTD,EDM001
EFDC,CAPNB,NEIGHBOURHOODS CAPITAL,WORKS,B040,13-Feb-19,145755,182.97,EDMUNDSON ELECTRICAL LTD,EDM001
EFDC,CAPNB,NEIGHBOURHOODS CAPITAL,WORKS,B040,13-Feb-19,145755,4.97,EDMUNDSON ELECTRICAL LTD,EDM001
EFDC,CAPNB,NEIGHBOURHOODS CAPITAL,WORKS,B040,13-Feb-19,145755,4.23,EDMUNDSON ELECTRICAL LTD,EDM001
EFDC,CAPNB,NEIGHBOURHOODS CAPITAL,WORKS,B040,13-Feb-19,145755,31.64,EDMUNDSON ELECTRICAL LTD,EDM001
EFDC,CAPNB,NEIGHBOURHOODS CAPITAL,WORKS,B040,13-Feb-19,145755,36.12,EDMUNDSON ELECTRICAL LTD,EDM001
EFDC,CAPNB,NEIGHBOURHOODS CAPITAL,WORKS,B040,13-Feb-19,145755,36.12,EDMUNDSON ELECTRICAL LTD,EDM001
EFDC,26200,OTHER SUPPORT SERVICES,FIXED PLANT MAINTENANCE,1020,13-Feb-19,145374,40,EDMUNDSON ELECTRICAL LTD,EDM001
EFDC,LT120,LOCAL TAXATION,CONSULTANTS FEES,3490,13-Feb-19,146575,3150,DOCUMENT OUTPUT SOLUTIONS UK LIMITED,DOC006
EFDC,CAPCM,COMMUNITIES CAPITAL,WORKS,A040,13-Feb-19,146660,600.44,EXTERIOR PLAS,EXT001
EFDC,CAPCM,COMMUNITIES CAPITAL,WORKS,A040,13-Feb-19,146660,141989.44,EXTERIOR PLAS,EXT001
EFDC,RM100,RESPONSIVE & VOID REPAIRS,BUILDING MAINTENANCE,1010,13-Feb-19,145702,1990.86,EXTERIOR PLAS,EXT001
EFDC,RM100,RESPONSIVE & VOID REPAIRS,BUILDING MAINTENANCE,1010,13-Feb-19,145704,2011.11,EXTERIOR PLAS,EXT001
EFDC,RM100,RESPONSIVE & VOID REPAIRS,BUILDING MAINTENANCE,1010,13-Feb-19,145701,3018.99,EXTERIOR PLAS,EXT001
EFDC,CAPCM,COMMUNITIES CAPITAL,VOIDS WORKS,A045,13-Feb-19,146535,9465.54,FLOWLINE (BUILDERS) LTD,FLO003
EFDC,CAPCM,COMMUNITIES CAPITAL,WORKS,A040,13-Feb-19,146535,43679.93,FLOWLINE (BUILDERS) LTD,FLO003
EFDC,32200,OTHER SUPPORT SERVICES,STOCK ISSUES,3070,13-Feb-19,145766,668.5,HOUND ENVELOPES LTD,HOU003
EFDC,CAPCM,COMMUNITIES CAPITAL,SURVEYS,A120,13-Feb-19,145804,600,RICHARD F GILL & ASSOCIATES,GIL005
EFDC,32220,OTHER SUPPORT SERVICES,AGENCY STAFF,0120,13-Feb-19,145306,1191.96,HAYS SPECIALIST RECRUITMENT LTD,HAY011
EFDC,32220,OTHER SUPPORT SERVICES,AGENCY STAFF,0120,13-Feb-19,145305,1191.96,HAYS SPECIALIST RECRUITMENT LTD,HAY011
EFDC,32121,OTHER SUPPORT SERVICES,RECRUITMENT EXPENSES,0320,13-Feb-19,146594,10757,JGP RESCOURCING LTD,JGP001
EFDC,EI131,LOCAL PLAN IMPLEMENTATION,CONTRIBUTIONS,3740,13-Feb-19,146118,60,KING & CO (THE TREE NURSERY) LTD,KIN005
EFDC,EI131,LOCAL PLAN IMPLEMENTATION,CONTRIBUTIONS,3740,13-Feb-19,146118,75,KING & CO (THE TREE NURSERY) LTD,KIN005
EFDC,EI131,LOCAL PLAN IMPLEMENTATION,CONTRIBUTIONS,3740,13-Feb-19,146118,17.5,KING & CO (THE TREE NURSERY) LTD,KIN005
EFDC,EI131,LOCAL PLAN IMPLEMENTATION,CONTRIBUTIONS,3740,13-Feb-19,146118,6,KING & CO (THE TREE NURSERY) LTD,KIN005
EFDC,EI131,LOCAL PLAN IMPLEMENTATION,CONTRIBUTIONS,3740,13-Feb-19,146118,54.17,KING & CO (THE TREE NURSERY) LTD,KIN005
EFDC,EI131,LOCAL PLAN IMPLEMENTATION,CONTRIBUTIONS,3740,13-Feb-19,146118,197.8,KING & CO (THE TREE NURSERY) LTD,KIN005
EFDC,EI131,LOCAL PLAN IMPLEMENTATION,CONTRIBUTIONS,3740,13-Feb-19,146118,50,KING & CO (THE TREE NURSERY) LTD,KIN005
EFDC,EI131,LOCAL PLAN IMPLEMENTATION,CONTRIBUTIONS,3740,13-Feb-19,146118,20,KING & CO (THE TREE NURSERY) LTD,KIN005
EFDC,EI131,LOCAL PLAN IMPLEMENTATION,CONTRIBUTIONS,3740,13-Feb-19,146118,9,KING & CO (THE TREE NURSERY) LTD,KIN005
EFDC,EI131,LOCAL PLAN IMPLEMENTATION,CONTRIBUTIONS,3740,13-Feb-19,146118,13.75,KING & CO (THE TREE NURSERY) LTD,KIN005
EFDC,EI131,LOCAL PLAN IMPLEMENTATION,CONTRIBUTIONS,3740,13-Feb-19,146118,27.5,KING & CO (THE TREE NURSERY) LTD,KIN005
EFDC,EI131,LOCAL PLAN IMPLEMENTATION,CONTRIBUTIONS,3740,13-Feb-19,146118,35,KING & CO (THE TREE NURSERY) LTD,KIN005
EFDC,EI131,LOCAL PLAN IMPLEMENTATION,CONTRIBUTIONS,3740,13-Feb-19,146118,16.25,KING & CO (THE TREE NURSERY) LTD,KIN005
EFDC,EI131,LOCAL PLAN IMPLEMENTATION,CONTRIBUTIONS,3740,13-Feb-19,146118,45,KING & CO (THE TREE NURSERY) LTD,KIN005
EFDC,EI131,LOCAL PLAN IMPLEMENTATION,CONTRIBUTIONS,3740,13-Feb-19,146118,66,KING & CO (THE TREE NURSERY) LTD,KIN005
EFDC,EI131,LOCAL PLAN IMPLEMENTATION,CONTRIBUTIONS,3740,13-Feb-19,146118,86,KING & CO (THE TREE NURSERY) LTD,KIN005
EFDC,37500,PLANNING SUPPORT SERVICES,CONFERENCE EXPENSES,3620,13-Feb-19,146597,1000,LABC,LAB001
EFDC,YA210,SUPERVISION/MANAGEMENT GENERAL,PROFESSIONAL FEES,3420,13-Feb-19,145635,5250,LHS,LHS001
EFDC,YA300,SUPERVISION/MANAGEMENT GENERAL,BANKING AND CASH COLLECTION,3440,13-Feb-19,146366,1662.24,ALLPAY.NET.LIMITED,ALL010
EFDC,YA300,SUPERVISION/MANAGEMENT GENERAL,BANKING AND CASH COLLECTION,3440,13-Feb-19,146365,554.98,ALLPAY.NET.LIMITED,ALL010
EFDC,ED100,LOCAL PLAN IMPLEMENTATION,CONTRIBUTIONS,3740,13-Feb-19,146451,10000,NATHANIEL LICHFIELD AND PARTNERS,NAT018
EFDC,RE100,ELECTIONS,EQUIPMENT - HIRED,3020,13-Feb-19,146331,2366.97,NEOPOST FINANCE LTD,NEO002
EFDC,PS100,CAR PARKING,ADVERTISING,3820,13-Feb-19,145797,4795,NEWSQUEST MEDIA GROUP,NEW002
EFDC,33080,OTHER ACTIVITIES,MOBILE PHONE LINE COSTS,3580,13-Feb-19,146539,5269.66,O2 (UK) LTD,OTW002
EFDC,26200,OTHER SUPPORT SERVICES,FIXED PLANT MAINTENANCE,1020,13-Feb-19,146129,2824.5,PERT AIR CONDITIONING LTD,PER001
EFDC,32170,OTHER SUPPORT SERVICES,AGENCY STAFF,0120,13-Feb-19,146632,503.25,REED SPECIALIST RECRUITMENT LTD,REE002
EFDC,32170,OTHER SUPPORT SERVICES,AGENCY STAFF,0120,13-Feb-19,146630,533.75,REED SPECIALIST RECRUITMENT LTD,REE002
EFDC,YB120,SUPERVISION/MANAGEMENT SPECIAL,AGENCY STAFF,0120,13-Feb-19,146138,611.64,REED SPECIALIST RECRUITMENT LTD,REE002
EFDC,37100,PLANNING SUPPORT SERVICES,AGENCY STAFF,0120,13-Feb-19,146137,591.12,REED SPECIALIST RECRUITMENT LTD,REE002
EFDC,CAPRS,RESOURCES CAPITAL,EQUIPMENT ACQUISITION,C330,13-Feb-19,146144,10,SELECT SERVICE TELECOMMUNICATIONS LTD,SEL006
EFDC,CAPRS,RESOURCES CAPITAL,EQUIPMENT ACQUISITION,C330,13-Feb-19,146144,1008,SELECT SERVICE TELECOMMUNICATIONS LTD,SEL006
EFDC,CAPRS,RESOURCES CAPITAL,EQUIPMENT ACQUISITION,C330,13-Feb-19,146144,45,SELECT SERVICE TELECOMMUNICATIONS LTD,SEL006
EFDC,35900,CONTRACT & TECH SUPPORT SERVIC,POSTAGE,3510,13-Feb-19,145955,39.93,ROYAL MAIL GROUP PLC,ROY015
EFDC,35900,CONTRACT & TECH SUPPORT SERVIC,POSTAGE,3510,13-Feb-19,145636,186.45,ROYAL MAIL GROUP PLC,ROY015
EFDC,34110,HOUSING PROP SUPPORT SERVICES,POSTAGE,3510,13-Feb-19,145955,1.98,ROYAL MAIL GROUP PLC,ROY015
EFDC,34110,HOUSING PROP SUPPORT SERVICES,POSTAGE,3510,13-Feb-19,145636,5.61,ROYAL MAIL GROUP PLC,ROY015
EFDC,CH110,"MUSEUM, HERITAGE & CULTURE",POSTAGE,3510,13-Feb-19,145955,1.98,ROYAL MAIL GROUP PLC,ROY015
EFDC,32030,OTHER SUPPORT SERVICES,POSTAGE,3510,13-Feb-19,145636,64.68,ROYAL MAIL GROUP PLC,ROY015
EFDC,32030,OTHER SUPPORT SERVICES,POSTAGE,3510,13-Feb-19,145955,15.18,ROYAL MAIL GROUP PLC,ROY015
EFDC,33075,OTHER ACTIVITIES,POSTAGE,3510,13-Feb-19,145955,483.57,ROYAL MAIL GROUP PLC,ROY015
EFDC,33055,OTHER ACTIVITIES,POSTAGE,3510,13-Feb-19,145636,487.41,ROYAL MAIL GROUP PLC,ROY015
EFDC,33055,OTHER ACTIVITIES,POSTAGE,3510,13-Feb-19,145955,263.67,ROYAL MAIL GROUP PLC,ROY015
EFDC,33075,OTHER ACTIVITIES,POSTAGE,3510,13-Feb-19,145636,1134.88,ROYAL MAIL GROUP PLC,ROY015
EFDC,37100,PLANNING SUPPORT SERVICES,POSTAGE,3510,13-Feb-19,145636,316.14,ROYAL MAIL GROUP PLC,ROY015
EFDC,37100,PLANNING SUPPORT SERVICES,POSTAGE,3510,13-Feb-19,145955,119.46,ROYAL MAIL GROUP PLC,ROY015
EFDC,36200,HRA SUPPORT SERVICES,POSTAGE,3510,13-Feb-19,145955,97.68,ROYAL MAIL GROUP PLC,ROY015
EFDC,CH110,"MUSEUM, HERITAGE & CULTURE",POSTAGE,3510,13-Feb-19,145636,1.32,ROYAL MAIL GROUP PLC,ROY015
EFDC,36200,HRA SUPPORT SERVICES,POSTAGE,3510,13-Feb-19,145636,331.65,ROYAL MAIL GROUP PLC,ROY015
EFDC,RE100,ELECTIONS,POSTAGE,3510,13-Feb-19,145636,135.63,ROYAL MAIL GROUP PLC,ROY015
EFDC,RE100,ELECTIONS,POSTAGE,3510,13-Feb-19,145955,74.91,ROYAL MAIL GROUP PLC,ROY015
EFDC,CAPCM,COMMUNITIES CAPITAL,EQUIPMENT ACQUISITION,C330,13-Feb-19,146635,607.5,RVTV SECURITY LTD,RVT001
EFDC,RS301,NORTH WEALD CENTRE,FIXED PLANT MAINTENANCE,1020,13-Feb-19,145610,1000,C.Q SURFACING LTD,SUR008
EFDC,RS301,NORTH WEALD CENTRE,FIXED PLANT MAINTENANCE,1020,13-Feb-19,145610,2890,C.Q SURFACING LTD,SUR008
EFDC,78001,HRA SUPPORT SERVICES,MATERIALS,3080,13-Feb-19,145246,589.5,TRAVIS PERKINS TRADING COMPANY LTD,TRA001
EFDC,32115,OTHER SUPPORT SERVICES,CONSULTANTS FEES,3490,13-Feb-19,145415,650,TRAINING & COACHING SOLUTIONS LTD,TRA029
EFDC,32060,OTHER SUPPORT SERVICES,RECRUITMENT EXPENSES,0320,13-Feb-19,145312,754,VENN GROUP LTD,VEN004
EFDC,CAPNB,NEIGHBOURHOODS CAPITAL,EQUIPMENT ACQUISITION,C330,13-Feb-19,145734,18718.25,VEOLIA ES (UK) LTD,VER004
EFDC,CAPCM,COMMUNITIES CAPITAL,WORKS,A040,13-Feb-19,146073,1639,UK POWER NETWORKS (OPERATIONS) LTD,UKP001
EFDC,26200,OTHER SUPPORT SERVICES,FIXED PLANT MAINTENANCE,1020,13-Feb-19,145351,980.48,ALLIED MECHANICAL SERVICES LTD,ALL002
EFDC,26200,OTHER SUPPORT SERVICES,BUILDING MAINTENANCE,1010,13-Feb-19,145750,970,CONTACT ROLLER SHUTTERS LTD,CON006
EFDC,CAPNB,NEIGHBOURHOODS CAPITAL,WORKS,B040,13-Feb-19,145756,1140,EMERY ELECTRICAL LTD,EME001
EFDC,RS301,NORTH WEALD CENTRE,FIXED PLANT MAINTENANCE,1020,13-Feb-19,145758,487.54,EMERY ELECTRICAL LTD,EME001
EFDC,26200,OTHER SUPPORT SERVICES,FIXED PLANT MAINTENANCE,1020,13-Feb-19,145758,1300,EMERY ELECTRICAL LTD,EME001
EFDC,RM100,RESPONSIVE & VOID REPAIRS,BUILDING MAINTENANCE,1010,13-Feb-19,146348,546.49,GRACELANDS COMPLETE MAINTENANCE SERVICES LTD,GRA007
EFDC,CAPCM,COMMUNITIES CAPITAL,VOIDS WORKS,A045,13-Feb-19,146536,5433,GRACELANDS COMPLETE MAINTENANCE SERVICES LTD,GRA007
EFDC,CAPCM,COMMUNITIES CAPITAL,VOIDS WORKS,A045,13-Feb-19,146536,45511.02,GRACELANDS COMPLETE MAINTENANCE SERVICES LTD,GRA007
EFDC,RM100,RESPONSIVE & VOID REPAIRS,BUILDING MAINTENANCE,1010,13-Feb-19,146339,828.41,GRACELANDS COMPLETE MAINTENANCE SERVICES LTD,GRA007
EFDC,RM200,RESPONSIVE & VOID REPAIRS,BUILDING MAINTENANCE,1010,13-Feb-19,145729,838.19,GRACELANDS COMPLETE MAINTENANCE SERVICES LTD,GRA007
EFDC,RM100,RESPONSIVE & VOID REPAIRS,BUILDING MAINTENANCE,1010,13-Feb-19,146340,696.49,GRACELANDS COMPLETE MAINTENANCE SERVICES LTD,GRA007
EFDC,OS110,PARKS & GROUNDS,GROUNDS MAINTENANCE,1040,13-Feb-19,145575,718.75,HUGH PEARL (LAND DRAINAGE) LTD,HUG001
EFDC,FD100,LAND DRAINAGE/SEWERAGE,CLEANSING CONTRACTORS,4320,13-Feb-19,145577,1467.5,HUGH PEARL (LAND DRAINAGE) LTD,HUG001
EFDC,OS100,PARKS & GROUNDS,GROUNDS MAINTENANCE,1040,13-Feb-19,145937,2370,HUGH PEARL (LAND DRAINAGE) LTD,HUG001
EFDC,GD190,VOLUNTARY SECTOR SUPPORT,GROUNDS MAINTENANCE,1040,13-Feb-19,145937,2228.44,HUGH PEARL (LAND DRAINAGE) LTD,HUG001
EFDC,FD100,LAND DRAINAGE/SEWERAGE,HIGHWAYS CONTRACTORS,4310,13-Feb-19,145949,868.94,HUGH PEARL (LAND DRAINAGE) LTD,HUG001
EFDC,FD100,LAND DRAINAGE/SEWERAGE,HIGHWAYS CONTRACTORS,4310,13-Feb-19,145645,836,HUGH PEARL (LAND DRAINAGE) LTD,HUG001
EFDC,FD100,LAND DRAINAGE/SEWERAGE,CLEANSING CONTRACTORS,4320,13-Feb-19,145644,2982,HUGH PEARL (LAND DRAINAGE) LTD,HUG001
EFDC,RM400,PLANNED & CYCLICAL MAINTENANCE,BUILDING MAINTENANCE,1010,13-Feb-19,146627,3733.33,PURDY CONTRACTS LTD,PUR002
EFDC,33075,OTHER ACTIVITIES,AGENCY STAFF,0120,13-Feb-19,146617,843.97,MORGAN HUNT UK LTD,MOR001
EFDC,33055,OTHER ACTIVITIES,AGENCY STAFF,0120,13-Feb-19,146614,952.75,MORGAN HUNT UK LTD,MOR001
EFDC,36500,HRA SUPPORT SERVICES,AGENCY STAFF,0120,13-Feb-19,146615,879.49,MORGAN HUNT UK LTD,MOR001
EFDC,33075,OTHER ACTIVITIES,AGENCY STAFF,0120,13-Feb-19,146616,843.97,MORGAN HUNT UK LTD,MOR001
EFDC,32120,OTHER SUPPORT SERVICES,RECRUITMENT EXPENSES,0320,13-Feb-19,146148,4200,SOLACE IN BUSINESS LTD,SOL003
EFDC,CAPCM,COMMUNITIES CAPITAL,WORKS,E040,13-Feb-19,146493,48530.31,TSG BUILDING SERVICES PLC,TSG001
EFDC,CAPCM,COMMUNITIES CAPITAL,VOIDS WORKS,A045,13-Feb-19,144881,3040,WOODS BUILDING SERVICES LTD,WOO001
EFDC,CAPCM,COMMUNITIES CAPITAL,WORKS,A040,13-Feb-19,145061,962,WOODS BUILDING SERVICES LTD,WOO001
EFDC,WC100,WASTE MANAGEMENT,CLEANSING CONTRACTORS,4320,13-Feb-19,146444,6270.22,BIFFA MUNICIPAL LTD,BIF001
EFDC,WC102,WASTE MANAGEMENT,CLEANSING CONTRACTORS,4320,13-Feb-19,146444,525.87,BIFFA MUNICIPAL LTD,BIF001
EFDC,FD100,LAND DRAINAGE/SEWERAGE,PROFESSIONAL FEES,3420,13-Feb-19,146444,8.92,BIFFA MUNICIPAL LTD,BIF001
EFDC,WC100,WASTE MANAGEMENT,EQUIPMENT - NEW,3010,13-Feb-19,146444,4937.05,BIFFA MUNICIPAL LTD,BIF001
EFDC,WC300,WASTE MANAGEMENT,CLEANSING CONTRACTORS,4320,13-Feb-19,146444,588,BIFFA MUNICIPAL LTD,BIF001
EFDC,CY100,COMMUNITY & PARTNERSHIP,CONTRIBUTIONS,3740,13-Feb-19,146444,105,BIFFA MUNICIPAL LTD,BIF001
EFDC,WC100,WASTE MANAGEMENT,EQUIPMENT - NEW,3010,13-Feb-19,146444,912,BIFFA MUNICIPAL LTD,BIF001
EFDC,WC200,WASTE MANAGEMENT,CLEANSING CONTRACTORS,4320,13-Feb-19,146444,18479.21,BIFFA MUNICIPAL LTD,BIF001
EFDC,GD190,VOLUNTARY SECTOR SUPPORT,GROUNDS MAINTENANCE,1040,13-Feb-19,146444,75.68,BIFFA MUNICIPAL LTD,BIF001
EFDC,OS100,PARKS & GROUNDS,GROUNDS MAINTENANCE,1040,13-Feb-19,146444,4.2,BIFFA MUNICIPAL LTD,BIF001
EFDC,OS110,PARKS & GROUNDS,GROUNDS MAINTENANCE,1040,13-Feb-19,146444,8.33,BIFFA MUNICIPAL LTD,BIF001
EFDC,OS110,PARKS & GROUNDS,GROUNDS MAINTENANCE,1040,13-Feb-19,146444,166.97,BIFFA MUNICIPAL LTD,BIF001
EFDC,YB620,SUPERVISION/MANAGEMENT SPECIAL,REFUSE REMOVAL,1640,13-Feb-19,146444,11.01,BIFFA MUNICIPAL LTD,BIF001
EFDC,OS100,PARKS & GROUNDS,GROUNDS MAINTENANCE,1040,13-Feb-19,146444,75.45,BIFFA MUNICIPAL LTD,BIF001
EFDC,23110,ACCOMMODATION,REFUSE REMOVAL,1640,13-Feb-19,146444,25,BIFFA MUNICIPAL LTD,BIF001
EFDC,WC100,WASTE MANAGEMENT,CLEANSING CONTRACTORS,4320,13-Feb-19,146444,456,BIFFA MUNICIPAL LTD,BIF001
EFDC,27050,ACCOMMODATION,OTHER MAINTENANCE,1050,13-Feb-19,146444,310.35,BIFFA MUNICIPAL LTD,BIF001
EFDC,YB500,SUPERVISION/MANAGEMENT SPECIAL,REFUSE REMOVAL,1640,13-Feb-19,146444,11.01,BIFFA MUNICIPAL LTD,BIF001
EFDC,23110,ACCOMMODATION,REFUSE REMOVAL,1640,13-Feb-19,146444,11.01,BIFFA MUNICIPAL LTD,BIF001
EFDC,GD190,VOLUNTARY SECTOR SUPPORT,GROUNDS MAINTENANCE,1040,13-Feb-19,146444,50,BIFFA MUNICIPAL LTD,BIF001
EFDC,YB400,SUPERVISION/MANAGEMENT SPECIAL,REFUSE REMOVAL,1640,13-Feb-19,146444,981.32,BIFFA MUNICIPAL LTD,BIF001
EFDC,PS100,CAR PARKING,CLEANSING CONTRACTORS,4320,13-Feb-19,146444,-284.17,BIFFA MUNICIPAL LTD,BIF001
EFDC,PS100,CAR PARKING,CLEANSING CONTRACTORS,4320,13-Feb-19,146444,30.93,BIFFA MUNICIPAL LTD,BIF001
EFDC,SC100,WASTE MANAGEMENT,CLEANSING CONTRACTORS,4320,13-Feb-19,146444,1426.78,BIFFA MUNICIPAL LTD,BIF001
EFDC,RS301,NORTH WEALD CENTRE,RENTS,9410,13-Feb-19,146444,-600,BIFFA MUNICIPAL LTD,BIF001
EFDC,27110,ACCOMMODATION,REFUSE REMOVAL,1640,13-Feb-19,146444,11.01,BIFFA MUNICIPAL LTD,BIF001
EFDC,27150,"COMMUNITY, HEALTH & WELLBEING",REFUSE REMOVAL,1640,13-Feb-19,146444,11.01,BIFFA MUNICIPAL LTD,BIF001
EFDC,27050,ACCOMMODATION,REFUSE REMOVAL,1640,13-Feb-19,146444,440.4,BIFFA MUNICIPAL LTD,BIF001
EFDC,23140,ACCOMMODATION,REFUSE REMOVAL,1640,13-Feb-19,146444,22.02,BIFFA MUNICIPAL LTD,BIF001
EFDC,PH110,PRIVATE SECTOR HOUSING,CLEANSING CONTRACTORS,4320,13-Feb-19,146444,13,BIFFA MUNICIPAL LTD,BIF001
EFDC,RS301,NORTH WEALD CENTRE,FIXED PLANT MAINTENANCE,1020,13-Feb-19,146605,580.64,MAINTECH POWER SERVICES LTD,MAI003
EFDC,YB200,SUPERVISION/MANAGEMENT SPECIAL,ELECTRICITY,1120,13-Feb-19,146409,22.57,EDF ENERGY,EDF001
EFDC,YB200,SUPERVISION/MANAGEMENT SPECIAL,ELECTRICITY,1120,13-Feb-19,146409,10.53,EDF ENERGY,EDF001
EFDC,YB200,SUPERVISION/MANAGEMENT SPECIAL,ELECTRICITY,1120,13-Feb-19,146409,41.81,EDF ENERGY,EDF001
EFDC,PS100,CAR PARKING,ELECTRICITY,1120,13-Feb-19,146409,82.53,EDF ENERGY,EDF001
EFDC,PS100,CAR PARKING,ELECTRICITY,1120,13-Feb-19,146409,21.72,EDF ENERGY,EDF001
EFDC,PS100,CAR PARKING,ELECTRICITY,1120,13-Feb-19,146409,41.87,EDF ENERGY,EDF001
EFDC,PS100,CAR PARKING,ELECTRICITY,1120,13-Feb-19,146409,12.3,EDF ENERGY,EDF001
EFDC,PS100,CAR PARKING,ELECTRICITY,1120,13-Feb-19,146409,122.84,EDF ENERGY,EDF001
EFDC,PS100,CAR PARKING,ELECTRICITY,1120,13-Feb-19,146409,77.76,EDF ENERGY,EDF001
EFDC,PS100,CAR PARKING,ELECTRICITY,1120,13-Feb-19,146409,5.08,EDF ENERGY,EDF001
EFDC,PS100,CAR PARKING,ELECTRICITY,1120,13-Feb-19,146409,398.26,EDF ENERGY,EDF001
EFDC,YB500,SUPERVISION/MANAGEMENT SPECIAL,ELECTRICITY,1120,13-Feb-19,146409,28.02,EDF ENERGY,EDF001
EFDC,YB500,SUPERVISION/MANAGEMENT SPECIAL,ELECTRICITY,1120,13-Feb-19,146409,39.88,EDF ENERGY,EDF001
EFDC,PS100,CAR PARKING,ELECTRICITY,1120,13-Feb-19,146409,146.78,EDF ENERGY,EDF001
EFDC,35009,CONTRACT & TECH SUPPORT SERVIC,ELECTRICITY,1120,13-Feb-19,146409,16.44,EDF ENERGY,EDF001
EFDC,35009,CONTRACT & TECH SUPPORT SERVIC,ELECTRICITY,1120,13-Feb-19,146409,15.6,EDF ENERGY,EDF001
EFDC,YB110,SUPERVISION/MANAGEMENT SPECIAL,ELECTRICITY,1120,13-Feb-19,146409,210.52,EDF ENERGY,EDF001
EFDC,YB110,SUPERVISION/MANAGEMENT SPECIAL,ELECTRICITY,1120,13-Feb-19,146409,133.58,EDF ENERGY,EDF001
EFDC,YB110,SUPERVISION/MANAGEMENT SPECIAL,ELECTRICITY,1120,13-Feb-19,146409,16.36,EDF ENERGY,EDF001
EFDC,YB110,SUPERVISION/MANAGEMENT SPECIAL,ELECTRICITY,1120,13-Feb-19,146409,6.66,EDF ENERGY,EDF001
EFDC,YB110,SUPERVISION/MANAGEMENT SPECIAL,ELECTRICITY,1120,13-Feb-19,146409,16,EDF ENERGY,EDF001
EFDC,FD100,LAND DRAINAGE/SEWERAGE,ELECTRICITY,1120,13-Feb-19,146409,6.68,EDF ENERGY,EDF001
EFDC,42310,GOVERNANCE SUPPORT SERVICES,AGENCY STAFF,0120,13-Feb-19,145268,1381.38,MATCHTECH GROUP LTD,MAT002
EFDC,32220,OTHER SUPPORT SERVICES,AGENCY STAFF,0120,13-Feb-19,146361,3573.38,CAPSTONE PROPERTY RECRUITMENT LTD,CAP001
EFDC,32220,OTHER SUPPORT SERVICES,AGENCY STAFF,0120,13-Feb-19,145815,2464.4,CAPSTONE PROPERTY RECRUITMENT LTD,CAP001
EFDC,35300,CONTRACT & TECH SUPPORT SERVIC,PROFESSIONAL FEES,3420,13-Feb-19,145677,630,DAY'S RENTAL,DAY002
EFDC,26200,OTHER SUPPORT SERVICES,BUILDING MAINTENANCE,1010,13-Feb-19,146123,695,NASSAU INDUSTRIAL DOORS LIMITED,NAS001
EFDC,33080,OTHER ACTIVITIES,EQUIPMENT - HIRED,3020,13-Feb-19,145679,4076.54,XEROX (UK) LTD,XER002
EFDC,33080,OTHER ACTIVITIES,EQUIPMENT - HIRED,3020,13-Feb-19,145678,1363.29,XEROX (UK) LTD,XER002
EFDC,OS101,PARKS & GROUNDS,TREE  MAINTENANCE,1070,13-Feb-19,145209,520,KENDAL TREE SURGERY LTD,KEN004
